Workbook

Sheet C1.2_Gen Requirements
A1: C1.2 | E1: GENERAL REQUIREMENTS AND PROVISIONS
A2: ITEM | D2: DESCRIPTION | E2: UNIT | F2: QTY | G2: RATE | H2: AMT
A5: C1.2.1 | D5: Environmental Management
B6: C1.2.1.1 | D6: Monitoring of compliance with and reporting on the EMP | E6: month | G6: R1,836.67 | H6: =ROUND(F6*G6,2) -> 0
B7: C1.2.1.2 | D7: Dedicated environmental officer (if specified in the Contract Documentation) | E7: month | H7: =F7*G7 -> 0
A8: C1.2.2 | D8: Programming and Reporting
B9: C1.2.2.1 | D9: Submission of a Scheme 1 Programme | E9: lump sum | F9: lump | G9: sum
B10: C1.2.2.2 | D10: Reviewing and updating a Scheme 1 Programme | E10: month | H10: =F10*G10 -> 0
B11: C1.2.2.3 | D11: Submission of a Scheme 2 Initial Programme | E11: lump sum | F11: lump | G11: sum
B12: C1.2.2.4 | D12: Submission of a Scheme 2 Full Programme | E12: lump sum | F12: lump | G12: sum
B13: C1.2.2.5 | D13: Reviewing and updating a Scheme 2 programme every month | E13: month | F13: =F6 -> 0 | G13: R1,836.67 | H13: =ROUND(F13*G13,2) -> 0
B14: C1.2.2.6 | D14: Preparation and submission of all information and reports specified in the Contract Documentation | E14: month | F14: =F13 -> 0 | G14: R2,003.33 | H14: 0
A15: C1.2.3 | D15: Routine road maintenance of existing public roads within the Site of the Works or other public roads outside the Site of the Works which are used as detours
B16: C 1.2.3.1 | D16: Grass cutting | E16: hectare (ha) | H16: =F16*G16 -> 0
B17: C1.2.3.2 | D17: Drain cleaning | E17: kilometre (km) | H17: 0
B18: C1.2.3.3 | D18: Cleaning out culverts | E18: cubic metre (m3) | H18: 0
B19: C1.2.3.4 | D19: Collection of rubbish / litter | E19: kilometre (km) | G19: R500.00 | H19: =ROUND(F19*G19,2) -> 0
B20: C1.2.3.5 | D20: Base patching using crushed stone material stabilised with bitumen emulsion and cement | E20: cubic metre (m3) | H20: 0
B21: C1.2.3.6 | D21: Base and/or surface patching using cold premixed asphalt | E21: kilogram (kg) | H21: 0
B22: C1.2.3.7 | D22: Base and/or surface patching using hot plant mixed asphalt | E22: ton (t) | H22: 0
B23: C1.2.3.8 | D23: Replacement of damaged guardrails including posts | E23: metre (m) | H23: 0
B24: C1.2.3.9 | D24: Grading of temporary gravel deviations and existing roads used as detours | E24: kilometre (km) | H24: 0
B25: C1.2.3.10 | D25: Watering of temporary gravel deviations and existing roads used as detours | E25: kilolitre (kℓ) | H25: 0
B26: C1.2.3.11 | D26: Other road maintenance work ordered by the Engineer | E26: provisional sum | F26: Prov | G26: Sum
B27: C1.2.3.12 | D27: Handling cost, profit and all other charges in respect of item C1.2.3.11 | E27: percentage (%) | F27: =H26 -> 0 | H27: =ROUND(F27*G27,2) -> 0
B28: C1.2.3.13 | D28: Liaison with the routine road maintenance contractor | E28: month | G28: R1,000.00 | H28: =ROUND(F28*G28,2) -> 0
A29: C1.2.4 | D29: Stakeholder liaison | E29: month | F29: =F6 -> 0 | G29: R1,000.00 | H29: =ROUND(F29*G29,2) -> 0
A30: C1.2.5 | D30: Safety
B31: C1.2.5.1 | D31: Health and safety plan | E31: lump sum | F31: lump | G31: sum
B32: C1.2.5.2 | D32: Implementation of health and safety plan | E32: month | F32: 2 | H32: =ROUND(F32*G32,2) -> 0
A33: C1.2.6 | D33: Work adjacent to properties
B34: C1.2.6.1 | D34: Survey of adjacent properties | E34: number (No.) | H34: =F34*G34 -> 0
B35: C1.2.6.2 | D35: Preventive and/or mitigation measures | E35: provisional sum | F35: Prov | G35: Sum
B36: C1.2.6.3 | D36: Handling cost, profit and all other charges in respect of item C1.2.6.2 | E36: percentage (%) | F36: =H35 -> 0 | H36: =G36*F36 -> 0
A37: PC1.2.7 | D37: Road safety audits
B38: C1.2.7.1 | D38: Stage 4 work zone traffic management audit | E38: provisional sum | F38: Prov | G38: Sum
B39: C1.2.7.2 | D39: Handling cost, profit and all other charges in respect of item C1.2.7.1 | E39: percentage (%) | F39: =H38 -> 0 | H39: =ROUND(F39*G39,2) -> 0
B40: C1.2.7.3 | D40: Stage 5 pre-opening stage traffic safety audit | E40: provisional sum | F40: Prov | G40: Sum
B41: C1.2.7.4 | D41: Handling cost, profit and all other charges in respect of item C1.2.7.3 | E41: percentage (%) | F41: =H40 -> 0 | H41: =G41*F41 -> 0
A42: C1.2.8 | D42: Dayworks
B43: C1.2.8.1 | D43: Personnel
C44: (a) | D44: Unskilled labourer | E44: hour (h) | G44: R27.67 | H44: =ROUND(F44*G44,2) -> 0
C45: (b) | D45: Semi-skilled labourer | E45: hour (h) | G45: R34.67 | H45: 0
C46: (c) | D46: Skilled labourer | E46: hour (h) | G46: R40.67 | H46: 0
C47: (d) | D47: Gang leader | E47: hour (h) | G47: R45.33 | H47: 0
C48: (e) | D48: Foreman | E48: hour (h) | G48: R126.67 | H48: 0
C49: (f) | D49: Skilled artisan | E49: hour (h) | H49: 0
B50: C1.2.8.2 | D50: Construction equipment (specify size and/or model number)
C51: (a) | D51: Motor grader | E51: hour (h) | G51: R350.33 | H51: =ROUND(F51*G51,2) -> 0
C52: (b) | D52: Vibratory roller | E52: hour (h) | G52: R207.00 | H52: 0
C53: (c) | D53: Pneumatic roller | E53: hour (h) | G53: R145.00 | H53: 0
C54: (d) | D54: Front end loader | E54: hour (h) | G54: R113.33 | H54: 0
C55: (e) | D55: Tractor loader backhoe | E55: hour (h) | G55: R233.00 | H55: 0
C56: (f) | D56: Excavator | E56: hour (h) | G56: R250.00 | H56: 0
C57: (g) | D57: Compressor | E57: hour (h) | G57: R200.00 | H57: 0
C58: (h) | D58: Other equipment (specify) | E58: hour (h) | H58: =F58*G58 -> 0
B59: C1.2.8.3 | D59: Vehicles (specify size)
C60: (a) | D60: Light delivery vehicle (2000cc engine capacity) | E60: kilometre (km) | G60: R4.73 | H60: =ROUND(F60*G60,2) -> 0
C61: (b) | D61: Flatbed truck (2 - 3 ton) | E61: kilometre (km) | G61: R9.33 | H61: 0
C62: (c) | D62: Dump truck (6m3) | E62: kilometre (km) | G62: R9.33 | H62: 0
C63: (d) | D63: Other vehicles (specify) | E63: kilometre (km) | H63: =F63*G63 -> 0
B64: C1.2.8.4 | D64: Materials
C65: (a) | D65: Procurement of materials | E65: provisional sum | F65: Prov | G65: Sum
C66: (b) | D66: Contractor's handling costs, profit and all other charges in respect of item C1.2.8.4(a) | E66: percentage (%) | F66: =H65 -> 0 | G66: 1.0% | H66: =ROUND(F66*G66,2) -> 0
A67: C1.2.9 | D67: Disposal of non-useable assets
B68: C1.2.9.1 | D68: Disposal of non-useable assets identified in the Contract Documentation at time of tender (list items and quantity) | E68: rate (per asset)
B69: C1.2.9.2 | D69: Disposal of non-useable assets not identified at time of tender | E69: provisional sum | F69: Prov | G69: Sum
B70: C1.2.9.3 | D70: Handling cost, profit and all other charges in respect of item C1.2.9.2 | E70: percentage (%) | F70: =H69 -> 0 | H70: =G70*F70 -> 0
A71: PC1.2.10 | D71: Dispute Adjudication Board (DAB)
B72: PC1.2.10.1 | D72: Employer’s contribution to DAB (50%) | E72: prime cost (PC) sum | F72: Prime | G72: Cost
A76: TOTAL CARRIED FORWARD TO SUMMARY | H76: =SUM(H5:H75) -> 0

Sheet C1.3_Estab & Obligations
A1: C1.3 | E1: CONTRACTOR’S SITE ESTABLISHMENT AND GENERAL OBLIGATIONS
A2: ITEM | D2: DESCRIPTION | E2: UNIT | F2: QTY | G2: RATE | H2: AMT
A5: PC1.3.1 | D5: The Contractor's general obligations
B6: C1.3.1.1 | D6: Fixed obligations | E6: lump sum | F6: lump | G6: sum
B7: C1.3.1.2 | D7: Value-related obligations | E7: lump sum | F7: lump | G7: sum
B8: PC1.3.1.3 | D8: Time-related obligations
C9: (a) | D9: Mobilisation period | E9: month | F9: =[1]Units!B5 -> 0 | G9: R173,333.33 | H9: =F9*G9 -> 0
C10: (b) | D10: Execution of the works | E10: month | F10: 2 | H10: 0
B11: PC1.3.1.4 | D11: Suspension Cost
C12: (a) | D12: De-establishment | E12: number | G12: R12,000.00 | H12: 0
C13: (b) | D13: Re-establishment | E13: number | G13: R22,166.67 | H13: 0
C14: (c) | D14: Suspension period | E14: month | F14: =F9 -> 0 | G14: R8,366.67 | H14: 0
C15: (d) | D15: Engineer's cost | E15: prime cost (PC) sum | F15: prime | G15: Cost
B16: PC1.3.1.5 | D16: Standing time (Plant and Labour)
C17: (a) | D17: Asphalt Milling team | E17: hour (h) | G17: R10,000.00 | H17: =F17*G17 -> 0
C18: (b) | D18: Asphalt paving team | E18: hour (h) | G18: R10,000.00 | H18: 0
C19: (c) | D19: Paint Marking team | E19: hour (h) | G19: R10,000.00 | H19: 0
C20: (d) | D20: Electrical team | E20: hour (h) | G20: R10,000.00 | H20: 0
B21: PC1.3.1.6 | D21: Control of dust and FOD pollution at all work areas including haul and site access roads and campsite/site offices | E21: lump sum | G21: R20,000.00 | H21: 0
B22: PC1.3.1.7 | D22: Airside induction courses and permits | E22: lump sum | G22: R80,000.00 | H22: 0
B23: PC1.3.1.8 | D23: Penalty to be deducted for non-compliance with requirements for accommodation of traffic as set out in A1.2.3.25, A1.5 and Volume 5
C24: (a) | D24: Fixed penalty per occurrence | E24: number | G24: -R5,000.00 | H24: RATE ONLY
C25: (b) | D25: Time related penalty | E25: hour (h) | G25: -R5,000.00 | H25: RATE ONLY
B26: PC1.3.1.9 | D26: Security Guard
C27: (a) | D27: Provision of security guards | E27: provisional sum | G27: R500,000.00 | H27: =F27*G27 -> 0
C28: (b) | D28: Contractors charge in respect of item C1.3.1.9(a) above | E28: % | F28: =H27 -> 0 | G28: 1% | H28: 0
A29: C1.3.2 | D29: Contract sign boards | E29: square metre (m2) | G29: R600.00 | H29: =F29*G29 -> 0
A30: PC1.3.3 | D30: Provision of site supervisory staff | E30: provisional sum | F30: Prov | G30: Sum | H30: R300,000.00
A35: TOTAL CARRIED FORWARD TO SUMMARY | H35: =SUM(H5:H34) -> R300,000.00
F171: metre (m)
F172: metre (m)
A177: C2.3.27 | E177: Extra over item C2.3.21 for encasing (wrapping) joints
B178: C2.3.27.1 | E178: State for each water main the number of joints to be encased (wrapped)
E179: State diameter
E180: State diameter
A181: C2.3.28 | E181: Installation of hydrants and water meters
B182: C2.3.28.1 | E182: Describe hydrant type
B183: C2.3.28.2 | E183: Describe water meter type
B184: C2.3.28.3 | E184: Etc., insert additional items as required
A185: C2.3.29 | E185: Bedding for water mains (Class B and C) and fill blanket compacted to 90 % of MDD (100 % for sand)
B186: C2.3.29.1
B191: C2.3.29.2

Sheet C1.4_Facilities for the Eng
A1: C1.4 | D1: FACILITIES FOR THE ENGINEER
A2: ITEM | C2: DESCRIPTION | D2: UNIT | E2: QTY | F2: RATE | G2: AMT
A5: C1.4.1 | C5: Site accommodation
B6: C1.4.1.1 | C6: Offices and conference room | D6: square metre (m2) | F6: R450.33 | G6: =ROUND(E6*F6,2) -> 0
B7: C1.4.1.2 | C7: Laboratories | D7: square metre (m2) | F7: R450.33 | G7: =ROUND(E7*F7,2) -> 0
B8: C1.4.1.3 | C8: Open concrete working floors and verandas | D8: square metre (m2) | F8: R450.33 | G8: 0
B9: C1.4.1.4 | C9: Roofs over open concrete working floors and verandas | D9: square metre (m2) | F9: R450.33 | G9: 0
B10: C1.4.1.5 | C10: Store rooms inside the laboratory | D10: square metre (m2) | F10: R450.33 | G10: 0
B11: C1.4.1.6 | C11: Car ports | D11: number (No.) | F11: R4,333.33 | G11: 0
B12: C1.4.1.7 | C12: Ablution unit (equipped as specified) | D12: number (No.) | F12: R31,983.33 | G12: 0 | H12: X
B13: C1.4.1.8 | C13: Change room with a shower | D13: number (No.) | G13: 0
B14: C1.4.1.9 | C14: Kitchen unit (equipped as specified) | D14: number (No.) | F14: R3,333.33 | G14: 0 | H14: X
B15: C1.4.1.10 | C15: Type A prefabricated house (equipped as specified) | D15: number (No.) | G15: =E15*F15 -> 0 | H15: X
B16: C1.4.1.11 | C16: Type B prefabricated house (equipped as specified) | D16: number (No.) | G16: 0 | H16: X
B17: C1.4.1.12 | C17: Type C prefabricated house (equipped as specified) | D17: number (No.) | G17: 0 | H17: X
B18: C1.4.1.13 | C18: Rented housing paid for by the Contractor | D18: provisional sum | F18: Sum
B19: C1.4.1.14 | C19: Contractor's handling costs, profit and all other charges in respect of item C1.4.1.13 | D19: percentage (%) | F19: 1.0% | G19: =ROUND(E19*F19,2) -> 0
A20: C1.4.2 | C20: Items measured by area
B21: C1.4.2.1 | C21: Shelving as specified, complete with brackets | D21: square metre (m2) | F21: R200.00 | G21: =ROUND(E21*F21,2) -> 0
B22: C1.4.2.2 | C22: Work benches with a concrete slab top | D22: square metre (m2) | F22: R500.00 | G22: 0
B23: C1.4.2.3 | C23: Work-benches with a wooden top | D23: square metre (m2) | F23: R500.00 | G23: 0
B24: C1.4.2.4 | C24: Constant-temperature baths of concrete and/or plastered brick | D24: square metre (m2) | F24: R500.00 | G24: 0
B25: C1.4.2.5 | C25: Concrete footings and pedestals for laboratory equipment | D25: square metre (m2) | F25: R1,000.00 | G25: 0
B26: C1.4.2.6 | C26: Roller blinds, opaque type | D26: square metre (m2) | F26: R800.00 | G26: 0
B27: C1.4.2.7 | C27: Venetian blinds | D27: square metre (m2) | F27: R600.00 | G27: 0
B28: C1.4.2.8 | C28: Notice boards | D28: square metre (m2) | F28: R1,266.67 | G28: 0
B29: C1.4.2.9 | C29: White boards | D29: square metre (m2) | F29: R500.00 | G29: 0
B30: C1.4.2.10 | C30: Galvanised wire mesh fencing for store rooms | D30: square metre (m2) | F30: R500.00 | G30: 0
B31: C1.4.2.11 | C31: Galvanised wire mesh store room gate with a padlock | D31: square metre (m2) | F31: R800.00 | G31: 0
A32: C1.4.3 | C32: Items measured by number
B33: C1.4.3.1 | C33: Office swivel chair | D33: number (No.) | F33: R1,000.00 | G33: =ROUND(E33*F33,2) -> 0
B34: C1.4.3.2 | C34: Office chair | D34: number (No.) | F34: R800.00 | G34: 0
B35: C1.4.3.3 | C35: Draughtsman's stool | D35: number (No.) | F35: R500.00 | G35: 0
B36: C1.4.3.4 | C36: Laboratory high chair | D36: number (No.) | F36: R500.00 | G36: 0
B37: C1.4.3.5 | C37: Office desk with 3 drawers (at least one lockable drawer) | D37: number (No.) | F37: R5,000.00 | G37: 0
B38: C1.4.3.6 | C38: Typist desk (L-shaped) | D38: number (No.) | F38: R1,000.00 | G38: 0
B39: C1.4.3.7 | C39: Drawing table | D39: number (No.) | F39: R5,000.00 | G39: 0
B40: C1.4.3.8 | C40: Conference table | D40: number (No.) | F40: R10,000.00 | G40: 0
B41: C1.4.3.9 | C41: Bookcase | D41: number (No.) | F41: R1,000.00 | G41: 0
B42: C1.4.3.10 | C42: Filing cabinet | D42: number (No.) | F42: R2,000.00 | G42: 0
B43: C1.4.3.11 | C43: General purpose steel cabinet with shelves | D43: number (No.) | F43: R906.67 | G43: 0
B44: C1.4.3.12 | C44: Wall mounted pivot plan filing system | D44: number (No.) | F44: R456.67 | G44: 0
B45: C1.4.3.13 | C45: 220/250 volt power outlet plug point | D45: number (No.) | F45: R800.00 | G45: 0
B46: C1.4.3.14 | C46: 400/231 volt 3-phase power outlet plug point | D46: number (No.) | F46: R100.00 | G46: 0
B47: C1.4.3.15 | C47: Single 1500m, 58 watt fluorescent tube ceiling light | D47: number (No.) | F47: R200.00 | G47: 0
B48: C1.4.3.16 | C48: Single 1500mm, 22 watt LED tube ceiling light | D48: number (No.) | F48: R1,000.00 | G48: 0
B49: C1.4.3.17 | C49: 11 watt compact fluorescent bulb ceiling light | D49: number (No.) | F49: R100.00 | G49: 0
B50: C1.4.3.18 | C50: 7 watt LED bulb ceiling light | D50: number (No.) | F50: R200.00 | G50: 0
B51: C1.4.3.19 | C51: Wash-hand basin | D51: number (No.) | F51: R200.00 | G51: 0
B52: C1.4.3.20 | C52: Laboratory basin | D52: number (No.) | F52: R500.00 | G52: 0
B53: C1.4.3.21 | C53: Extractor fan | D53: number (No.) | F53: R500.00 | G53: 0
B54: C1.4.3.22 | C54: Fume cupboard | D54: number (No.) | F54: R600.00 | G54: 0
B55: C1.4.3.23 | C55: Fire extinguisher 9,0 kg, dry powder type | D55: number (No.) | F55: R978.33 | G55: 0
B56: C1.4.3.24 | C56: Air-conditioning unit | D56: number (No.) | F56: R1,836.67 | G56: 0
B57: C1.4.3.25 | C57: Heater | D57: number (No.) | F57: R1,000.00 | G57: 0
B58: C1.4.3.26 | C58: Concrete specimen curing bath | D58: number (No.) | G58: 0
B59: C1.4.3.27 | C59: Waste paper basket | D59: number (No.) | F59: R200.00 | G59: 0
B60: C1.4.3.28 | C60: UPS / Voltage stabiliser | D60: number (No.) | F60: R3,033.33 | G60: 0
B61: C1.4.3.29 | C61: A3 / A4 colour printer, copier, scanner | D61: number (No.) | F61: R10,503.33 | G61: 0
B62: C1.4.3.30 | C62: A4 colour printer, copier, scanner | D62: number (No.) | G62: 0
B63: C1.4.3.31 | C63: Rain gauge | D63: number (No.) | F63: R1,000.00 | G63: 0
B64: C1.4.3.32 | C64: Minimum/maximum atmospheric temperature gauge | D64: number (No.) | F64: R500.00 | G64: 0
B65: C1.4.3.33 | C65: Digital thermometer | D65: number (No.) | F65: R1,283.33 | G65: 0
B66: PC1.4.3.34 | C66: Mobile outdoor weather station | D66: number (No.) | F66: R5,000.00 | G66: 0
B67: C1.4.3.35 | C67: 3,0m aluminium straight edge complete with two measuring wedges | D67: number (No.) | F67: R500.00 | G67: 0
B68: C1.4.3.36 | C68: Measuring wheel | D68: number (No.) | F68: R736.67 | G68: 0
B69: C1.4.3.37 | C69: First aid kit | D69: number (No.) | F69: R1,250.00 | G69: 0
B70: C1.4.3.38 | C70: Standpipe complete with 30m of 19mm dia. heavy duty hose pipe | D70: number (No.) | G70: =E70*F70 -> 0
A71: C1.4.4 | C71: Prime cost items
B72: C1.4.4.1 | C72: Cell phones costs, including pro-rata rentals, for calls made in connection with contract administration | D72: prime cost (PC) sum | E72: prime | F72: cost
B73: C1.4.4.2 | C73: Handling costs and profit in respect of item C1.4.4.1 | D73: percentage (%) | E73: =G72 -> 0 | F73: 1.0% | G73: =ROUND(E73*F73,2) -> 0
B74: C1.4.4.3 | C74: The provision of a direct independent telephone line for the Engineer, including the monthly rental charges and the cost of business calls | D74: prime cost (PC) sum | E74: prime | F74: cost
B75: C1.4.4.4 | C75: Handling costs and profit in respect of item C1.4.4.3 | D75: percentage (%) | E75: =G74 -> 0 | F75: 1.0%
B76: C1.4.4.5 | C76: The provision of internet connectivity and WiFi data for Engineer’s site staff | D76: prime cost (PC) sum | E76: prime | F76: cost
B77: C1.4.4.6 | C77: Handling costs and profit in respect of item C1.4.4.5 | D77: percentage (%) | E77: =G76 -> 0 | F77: 1.0% | G77: =ROUND(E77*F77,2) -> 0
B78: C1.4.4.7 | C78: The provision of paper and ink for a combination colour printer/copier/scanner | D78: prime cost (PC) sum | E78: prime | F78: cost
B79: C1.4.4.8 | C79: Handling costs and profit in respect of item C1.4.4.7 | D79: percentage (%) | E79: =G78 -> 0 | F79: 1.0% | G79: =ROUND(E79*F79,2) -> 0
B80: C1.4.4.9 | C80: The provision of a complete 220/250 volt single phase electrical power installation, including all poles, insulators, wiring, switchboards, mains connections, meters etc. | D80: prime cost (PC) sum | E80: prime | F80: cost
B81: C1.4.4.10 | C81: Handling costs and profit in respect of item C1.4.4.9 | D81: percentage (%) | E81: =G80 -> 0 | G81: =ROUND(E81*F81,2) -> 0
B82: C1.4.4.11 | C82: The provision of a complete 440/231 volt three phase electrical power installation, including all poles, insulators, wiring, switchboards, mains connections, meters etc. | D82: prime cost (PC) sum | E82: prime | F82: cost
B83: C1.4.4.12 | C83: Handling costs and profit in respect of item C1.4.4.11 | D83: percentage (%) | E83: =G82 -> 0 | G83: =ROUND(E83*F83,2) -> 0
B84: C1.4.4.13 | C84: Provision of a 440/231 volt three phase electricity generator if electricity from a power supply authority is not available on site | D84: prime cost (PC) sum | E84: prime | F84: cost
B85: C1.4.4.14 | C85: Handling costs and profit in respect of item C1.4.4.13 | D85: percentage (%) | E85: =G84 -> 0 | G85: =ROUND(E85*F85,2) -> 0
B86: C1.4.4.15 | C86: The provision of all gas installations required at the site offices, laboratories and at the Engineer’s staff accommodation (if required), including gas storage cylinders, tubing, regulators, gas burners and shut-off cocks | D86: prime cost (PC) sum | E86: prime | F86: cost
B87: C1.4.4.16 | C87: Handling costs and profit in respect of item C1.4.4.15 | D87: percentage (%) | E87: =G86 -> 0 | G87: =ROUND(E87*F87,2) -> 0
A88: C1.4.5 | C88: Services at site offices, laboratories and site accommodation
B89: C1.4.5.1 | C89: Fixed costs | D89: lump sum | E89: lump | F89: sum
B90: C1.4.5.2 | C90: Running costs | D90: month | F90: R1,670.00 | G90: =ROUND(E90*F90,2) -> 0
A91: C1.4.6 | C91: Office staff
B92: C1.4.6.1 | C92: Secretary / receptionist | D92: month | G92: =E92*F92 -> 0
B93: C1.4.6.2 | C93: Technical assistant | D93: month | G93: =E93*F93 -> 0
A94: C1.4.7 | C94: Site inspection transport
B95: C1.4.7.1 | C95: Provision of a bus, mini-bus or combi van for site inspection purposes (10 seater mini-bus) | D95: per day | F95: R4,000.00 | G95: =ROUND(E95*F95,2) -> 0 | H95: X
B96: C1.4.7.2 | C96: Travel on site | D96: kilometre (km) | F96: R6.67 | G96: 0
B97: PC1.4.7.3 | C97: The provision of site vehicle for Engineer’s site staff | D97: prime cost (PC) sum | E97: prime | F97: cost | G97: R60,000.00
B98: PC1.4.7.4 | C98: Handling costs and profit in respect of item C1.4.7.3 | D98: percentage (%) | E98: =G97 -> R60,000.00 | G98: =ROUND(E98*F98,2) -> 0
A99: C1.4.8 | C99: Site security measures for the Engineer’s facilities
B100: C1.4.8.1 | C100: Supply and installation of all required security measures at the Engineer’s site offices and laboratories | D100: lump sum | E100: lump | F100: sum
B101: C1.4.8.2 | C101: Provision of security guards / watchmen and an armed response service at the Engineer’s site offices and laboratories | D101: month | F101: R5,000.00 | G101: =ROUND(E101*F101,2) -> 0
B102: C1.4.8.3 | C102: Supply and installation of all required security measures at the Engineer’s site accommodation | D102: lump sum | E102: lump | F102: sum
B103: C1.4.8.4 | C103: Provision of security guards / watchmen and an armed response service at the Engineer’s site accommodation | D103: month | G103: =E103*F103 -> 0
B104: C1.4.8.5 | C104: Supply and installation of an alarm system at the Engineer’s rented accommodation (No. of houses is five (2)) | D104: lump sum | E104: lump | F104: sum | H104: X
B105: C1.4.8.6 | C105: Provision of an armed response service at the Engineer’s rented accommodation (No. of houses is five (2)) | D105: month | F105: R5,000.00 | G105: =ROUND(E105*F105,2) -> 0 | H105: X
A109: TOTAL CARRIED FORWARD TO SUMMARY | G109: =SUM(G5:G108) -> R60,000.00

Sheet C1.7 (hidden)
A1: C1.7 | E1: LOADING AND HAULING
A2: ITEM | D2: DESCRIPTION | E2: UNIT | F2: QTY | G2: RATE | H2: AMT
A5: C1.7.1 | D5: Loading
B6: C1.7.1.1 | D6: Loading from stockpile using machines and some hand labour where necessary | E6: cubic metre (m3) | H6: =F6*G6 -> 0
B7: C1.7.1.2 | D7: Loading from heaps or windrows using machines and/some hand labour where necessary | E7: cubic metre (m3) | H7: =F7*G7 -> 0
B8: C1.7.1.3 | D8: Loading by hand only from stockpile or heaps when labour enhancement work is specified or it is not possible to use machines | E8: cubic metre (m3) | H8: =F8*G8 -> 0
A9: C1.7.2 | D9: Hauling
B10: C1.7.2.1 | D10: Hauling material for use in the Works and off-loading it on the site of the Works:
C11: (a) | D11: Soil, gravel, crushed stone and pavement layer material | E11: cubic metre - kilometre (m3 - km) | H11: =F11*G11 -> 0
C12: (b) | D12: Boulders and hard material | E12: cubic metre - kilometre (m3 - km) | H12: =F12*G12 -> 0
B13: C1.7.2.2 | D13: Hauling material to spoil and off-loading it at a designated spoil or stockpile area:
C14: (a) | D14: Cleared and grubbed material (organic matter and all other unsuitable or waste material) | E14: cubic metre - kilometre (m3 - km) | H14: =F14*G14 -> 0
C15: (b) | D15: Soil and gravel material | E15: cubic metre - kilometre (m3 - km) | H15: =F15*G15 -> 0
C16: (c) | D16: Boulders, hard material and concrete | E16: cubic metre - kilometre (m3 - km) | H16: =F16*G16 -> 0
A20: TOTAL CARRIED FORWARD TO SUMMARY | H20: =SUM(H6:H19) -> 0

Sheet C1.5_Traffic Accom
A1: C1.5 | F1: ACCOMMODATION OF TRAFFIC
A2: ITEM | E2: DESCRIPTION | F2: UNIT | G2: QTY | H2: RATE | I2: AMT
A5: C1.5.1 | E5: Accommodation of pedestrian and non-motorised traffic
B6: C1.5.1.1 | E6: Accommodation of pedestrian and non-motorised traffic | F6: month | I6: =G6*H6 -> 0
B7: C1.5.1.2 | E7: Construction of temporary pedestrian walkways and/or cycle paths:
C8: (a) | E8: Gravel surfaced pedestrian walkways / cycle paths | F8: square metre (m2) | I8: =G8*H8 -> 0
C9: (b) | E9: Bitumen surfaced pedestrian walkways / cycle paths | F9: square metre (m2) | I9: =G9*H9 -> 0
C10: (c) | E10: 60mm concrete block paved pedestrian walkways / cycle paths | F10: square metre (m2) | I10: =G10*H10 -> 0
A11: C1.5.2 | E11: Accommodation of traffic | F11: month | G11: 2 | I11: =ROUND(G11*H11,2) -> 0
A12: PC1.5.3 | E12: Liaison with traffic Air Traffic Control | F12: month | I12: =ROUND(G12*H12,2) -> 0
A13: PC1.5.4 | E13: Construction of temporary deviations | I13: 0
E14: The applicable payment items required for the construction of temporary deviations shall be taken from the relevant chapters and sections in Chapters 1, 3, 5, 9 and 10 and inserted into the Pricing Schedule here. Each payment item for the construction of temporary deviations shall be preceded by the main payment item number C1.5.4 / followed by the payment number for the applicable payment item
A15: C1.5.4/C9.1.5 | E15: Do some patches and do a slurry seal over
E16: After the project we can do another
E17: Paint markings
E18: Road studs
E19: Or don’t do temp deviation
A20: C1.5.5 | E20: Maintenance of temporary deviations | I20: 0
B21: C1.5.5.1 | E21: Grass cutting | F21: hectare (ha) | I21: 0
B22: C1.5.5.2 | E22: Drain cleaning | F22: kilometre (km) | I22: 0
B23: C1.5.5.3 | E23: Cleaning out culverts | F23: cubic metre (m3) | I23: 0
B24: C1.5.5.4 | E24: Collection of rubbish / litter | F24: kilometre (km) | I24: 0
B25: C1.5.5.5 | E25: Base patching using crushed stone material stabilised with bitumen emulsion and cement | F25: cubic metre (m3) | I25: 0
B26: C1.5.5.6 | E26: Base and/or surface patching using cold premixed asphalt | F26: kilogram (kg) | I26: 0
B27: C1.5.5.7 | E27: Base and/or surface patching using hot plant mixed asphalt | F27: tonne (t) | I27: 0
B28: C1.5.5.8 | E28: Replacement of damaged guardrails | F28: metre (m) | I28: 0
B29: C1.5.5.9 | E29: Grading of temporary deviations and existing roads used as detours | F29: kilometre (km) | I29: 0
B30: C1.5.5.10 | E30: Watering of temporary deviations and existing roads used as detours | F30: kilolitre (kℓ) | I30: 0
B31: C1.5.5.11 | E31: Other road maintenance work ordered by the Engineer | F31: provisional sum | G31: Prov
B32: C1.5.5.12 | E32: Handling cost, profit and all other charges in respect of item C1.5.6.11 | F32: percentage (%) | G32: 0
A33: C1.5.6 | E33: Removal of temporary deviations | F33: kilometre (km) | I33: 0
A34: C1.5.7 | E34: Temporary traffic control facilities
B35: C1.5.7.1 | E35: Delineators including mounting bases and ballast:
C36: (a) | E36: Single sided, reversible left or right (TW401 (200 x 800mm) & TW402 (200 x 800mm)) | F36: number (No.) | I36: =ROUND(G36*H36,2) -> 0
C37: (b) | E37: Double sided, reversible left or right (TW401 (200 x 800mm) & TW402 (200 x 800mm)) | F37: number (No.) | I37: 0
B38: C1.5.7.2 | E38: Traffic cones, minimum height 750mm | F38: number (No.) | G38: 100 | I38: 0
B39: C1.5.7.3 | E39: Flagmen | F39: man-shift | G39: 50 | I39: 0
B40: C1.5.7.4 | E40: Traffic controllers | F40: man-shift | I40: 0
B41: C1.5.7.5 | E41: Provision of illuminated traffic signs:
C42: (a) | E42: Sign mounted flashing amber lights (2 lights with the specified power supply) mounted on a backing board which is:
D43: (i) | E43: 900mm wide x 150mm high | F43: number (No.) | I43: =G43*H43 -> 0
D44: (ii) | E44: 1200mm wide x 200mm high | F44: number (No.) | G44: 16 | I44: =ROUND(G44*H44,2) -> 0
C45: (b) | E45: Flashing LED illuminated arrow board | F45: number (No.) | G45: 8 | I45: 0
C46: (c) | E46: Illuminated road sign – R & TR series (1200mm diameter) | F46: number (No.) | G46: 10 | I46: 0
C47: (d) | E47: Illuminated road sign – TW series (1500mm sides) | F47: number (No.) | G47: 10 | I47: 0
C48: (e) | E48: Mobile variable message sign | F48: number (No.) | I48: 0
C49: (f) | E49: Mobile variable message sign with a speed measuring and display capability | F49: month | I49: 0
B50: C1.5.7.6 | E50: Maintenance of illuminated traffic signs:
C51: (a) | E51: Sign mounted flashing amber lights (a pair of two lights mounted on a separate backing board) | F51: month | G51: 2 | I51: =ROUND(G51*H51,2) -> 0
C52: (b) | E52: Flashing LED illuminated arrow board | F52: month | G52: 2 | I52: 0
C53: (c) | E53: Illuminated road sign – R & TR series (1200mm diameter) | F53: month | G53: 2 | I53: 0
C54: (d) | E54: Illuminated road sign – TW series (1500mm sides) | F54: month | G54: 2 | I54: 0
C55: (e) | E55: Mobile variable message sign | F55: month | I55: 0
C56: (f) | E56: Mobile variable message sign with a speed measuring and display capability | F56: month | I56: 0
B57: C1.5.7.7 | E57: Traffic calming devices: | I57: 0
C58: (a) | E58: 25mm high x 100mm wide asphalt rumble strips | F58: metre (m) | I58: 0
C59: (b) | E59: 50mm high x 500m wide asphalt rumble strips | F59: metre (m) | I59: 0
C60: (c) | E60: 150mm high x 3m wide asphalt speed control humps | F60: metre (m) | I60: 0
B61: C1.5.7.8 | E61: Traffic control stations | F61: month | G61: 2 | I61: 0
B62: C1.5.7.9 | E62: Cleaning of traffic control facilities | F62: month | G62: 2 | I62: 0
A63: C1.5.8 | E63: Traffic safety officer | F63: man-month | G63: 2 | I63: 0
A64: C1.5.9 | E64: Traffic safety vehicle | F64: month | I64: 0
A65: C1.5.10 | E65: Tow trucks
B66: C1.5.10.1 | E66: Provision of a tow truck on call for light vehicles weighing less than two tonnes | F66: month | I66: =G66*H66 -> 0
B67: C1.5.10.2 | E67: Provision of a tow truck on call for heavy vehicles weighing two tonnes or more | F67: month | I67: =G67*H67 -> 0
A68: C1.5.11 | E68: Provision of safety equipment for visitors
B69: C1.5.11.1 | E69: Provision of reflective safety vests for visitors | F69: number (No.) | G69: 20 | I69: =ROUND(G69*H69,2) -> 0
B70: C1.5.11.2 | E70: Provision of hard hats for visitors | F70: number (No.) | I70: =G70*H70 -> 0
A71: C1.5.12 | E71: Additional traffic accommodation facilities ordered by the Engineer:
B72: C1.5.12.1 | E72: Provision of additional traffic accommodation facilities | F72: provisional sum | G72: Prov
B73: C1.5.12.2 | E73: Handling cost, profit and all other charges in respect of item C1.5.12.1 | F73: percentage (%) | G73: 0 | I73: =ROUND(G73*H73,2) -> 0
A74: PC1.5.13 | E74: Safety Barriers
B75: PC1.5.13.1 | E75: Provide HDPE plastic mobile road safety barrier, NJ type (2 m x 1 high) taped with yellow reflective tape, two strips on either side | F75: number (No.) | G75: 4 | I75: =ROUND(G75*H75,2) -> 0
B76: PC1.5.13.2 | E76: Placing, moving and final removal of HDPE NJ type barriers upon completion of the works | F76: Lump sum | G76: Lump | H76: sum
B77: PC1.5.13.3 | E77: Provide precast concrete temporary barrier, NJ type (2 m x 0.8 high with 0.6m base) taped with yellow reflective tape, two strips on either side and with two amber flashing lights mounted on each barrier | F77: number (No.) | G77: 6 | I77: =ROUND(G77*H77,2) -> 0
B78: PC1.5.13.4 | E78: Placing, moving and final removal of concrete barriers upon completion of the apron works | F78: Lump sum | G78: Lump | H78: sum
B79: PC1.5.13.5 | E79: Provide Taxiway/Runway closure barriers as per drawing complete | F79: number (No.) | H79: R18,000.00 | I79: =ROUND(G79*H79,2) -> 0
B80: PC1.5.13.6 | E80: Placing, moving and final removal of taxiway/runway closure barriers upon completion of the works | F80: Lump sum | G80: Lump | H80: sum
A81: PC1.5.14 | E81: Provision of lighting on site for works areas during night work or where instructed | F81: Lump sum | G81: Lump | H81: sum
A82: PC1.5.14 | E82: Traffic Safety Officer | F82: month | G82: 2 | I82: =ROUND(G82*H82,2) -> 0
A83: PC1.5.16 | E83: Provision of escort services for all project vehicles | F83: Lump sum | G83: Lump | H83: sum
A88: TOTAL CARRIED FORWARD TO SUMMARY | I88: =SUM(I5:I87) -> 0

Sheet C1.6_Clearing
A1: C1.6 | D1: CLEARING AND GRUBBING
A2: ITEM | C2: DESCRIPTION | D2: UNIT | E2: QTY | F2: RATE | G2: AMT
A5: C1.6.1 | C5: Clearing
B6: C1.6.1.1 | C6: Clearing with machines and some hand labour where necessary | D6: hectare (ha) | E6: 0.5 | G6: =E6*F6 -> 0
B7: C1.6.1.2 | C7: Clearing with hand labour only when labour enhanced work is specified | D7: hectare (ha) | G7: =E7*F7 -> 0
B8: C1.6.1.3 | C8: Clearing for new fence lines (over a width of 2,0m) | D8: kilometre (km) | G8: =E8*F8 -> 0
B9: C1.6.1.4 | C9: Clearing for service trenches (over the agreed width required) | D9: square metre (m2) | G9: =E9*F9 -> 0
A10: C1.6.2 | C10: Grubbing
B11: C1.6.2.1 | C11: Grubbing with machines and some hand labour where necessary | D11: hectare (ha) | G11: =E11*F11 -> 0
B12: C1.6.2.2 | C12: Grubbing with hand labour when labour enhancement work is specified or it is not practical to use a machine | D12: hectare (ha) | G12: =E12*F12 -> 0
B13: C1.6.2.3 | C13: Grubbing by hand for new fence lines (over a width of 2,0m) | D13: kilometre (km) | G13: =E13*F13 -> 0
B14: C1.6.2.4 | C14: Grubbing by hand for service trenches (over the agreed width required) | D14: square metre (m2) | G14: =E14*F14 -> 0
A15: C1.6.3 | C15: Removal and grubbing of large trees and tree stumps:
B16: C1.6.3.1 | C16: Girth equal to or exceeding 1,0m up to and including 2,0m | D16: number (No.) | E16: 3 | G16: =E16*F16 -> 0
B17: C1.6.3.2 | C17: Girth exceeding 2,0m up to and including 3,0m | D17: number (No.) | E17: 1 | G17: =E17*F17 -> 0
B18: C1.6.3.3 | C18: Girth exceeding 3,0m | D18: number (No.) | G18: =E18*F18 -> 0
B19: C1.6.3.4 | C19: Removal of trees in forests and plantations | D19: hectare (ha) | F19: R10,000.00 | G19: =E19*F19 -> 0
A20: C1.6.4 | C20: Removal of buildings and structures | H20: X
B21: C1.6.4.1 | C21: … (Identify type and location of each building or structure with a separate sub-item) | D21: lump sum | E21: lump | F21: sum | H21: X
A22: C1.6.5 | C22: Spreading organic matter and covering with soil | D22: cubic metre (m3) | G22: =E22*F22 -> 0
A23: C1.6.6 | C23: Mulching selected organic matter | D23: cubic metre (m3) | G23: =E23*F23 -> 0
A24: C1.6.7 | C24: Re-clearing of previously cleared areas | D24: hectare (ha) | G24: =E24*F24 -> 0
A25: C1.6.8 | C25: Conservation of vegetation:
B26: C1.6.8.1 | C26: Establishment of a temporary nursery | D26: number (No.) | G26: =E26*F26 -> 0
B27: C1.6.8.2 | C27: Removal, storage and maintenance of shrubs | D27: number (No.) | G27: 0
B28: C1.6.8.3 | C28: Removal, storage and maintenance of trees, girth up to and including 1,0m | D28: number (No.) | G28: 0
B29: C1.6.8.4 | C29: Removal, storage and maintenance of trees, girth exceeding 1,0m up to and including 2,0m | D29: number (No.) | G29: 0
B30: C1.6.8.5 | C30: Removal, storage and maintenance of trees, girth exceeding 2,0m up to and including 3,0m | D30: number (No.) | G30: 0
B31: C1.6.8.6 | C31: Removal, storage and maintenance of trees, girth exceeding 3,0m | D31: number (No.) | G31: 0
A32: C1.6.9 | C32: Conservation of topsoil:
B33: C1.6.9.1 | C33: Stockpiling topsoil | D33: cubic metre (m3) | G33: =E33*F33 -> 0
B34: C1.6.9.2 | C34: Windrowing topsoil | D34: cubic metre (m3) | G34: =E34*F34 -> 0
A35: C1.6.10 | C35: Disposal of hazardous waste material:
B36: C1.6.10.1 | C36: Disposal of hazardous waste material at an approved hazardous waste material facility | D36: provisional sum | E36: Prov | F36: Sum
B37: C1.6.10.2 | C37: Handling cost, profit and all other charges in respect of item C1.6.10.1 | D37: percentage (%) | E37: =G36 -> 0 | G37: =F37*E37 -> 0
A41: TOTAL CARRIED FORWARD TO SUMMARY | G41: =SUM(G6:G40) -> 0

Sheet C2.1_Services
A1: C2.1 | E1: GENERAL REQUIREMENTS AND TRENCHING FOR SERVICES
A2: ITEM | D2: DESCRIPTION | E2: UNIT | F2: QTY | G2: RATE | H2: AMT
A5: C2.1.1 | D5: Location, identification, protection and relocation of existing services
B6: C2.1.1.1 | D6: Contractor’s obligations | E6: lump sum | F6: lump | G6: sum
B7: C2.1.1.2 | D7: Permanent services relocation or protection work by others | E7: prime cost (PC) sum | F7: prime | G7: cost | H7: R100,000.00
B8: C2.1.1.3 | D8: Handling costs and profit in respect of item C2.1.1.2 above | E8: percentage (%) | F8: R100,000.00 | H8: =G8*F8 -> 0
B9: C2.1.1.4 | D9: Permanent services relocation or protection work by the Contractor | E9: provisional sum | F9: Prov | G9: Sum
B10: C2.1.1.5 | D10: Handling costs and profit in respect of item C2.1.1.4 above | E10: percentage (%) | F10: 0 | H10: =G10*F10 -> 0
A11: C2.1.2 | D11: Existing services location, detection and verification
B12: C2.1.2.1 | D12: Using specialist detection services (ground penetrating radar, radio detection etc.) | E12: prime cost (PC) sum | F12: prime | G12: cost
B13: C2.1.2.2 | D13: Handling costs and profit in respect of item C2.1.2.1 above | E13: percentage (%) | F13: 0 | H13: =G13*F13 -> 0
B14: C2.1.2.3 | D14: Survey to verify existing service positions | E14: prime cost (PC) sum | F14: prime | G14: cost
B15: C2.1.2.4 | D15: Handling costs and profit in respect of item C2.1.2.3 above | E15: percentage (%) | F15: 0 | H15: =G15*F15 -> 0
B16: C2.1.2.5 | D16: Using hand excavation to locate, expose and verify services | E16: cubic metre (m3) | F16: 100 | H16: =F16*G16 -> 0
A17: C2.1.3 | D17: Obtaining construction or work permits | E17: lump sum | F17: lump | G17: sum
A18: C2.1.4 | D18: Provision of guarantees or deposits for services
B19: C2.1.4.1 | D19: Providing guarantees and deposits | E19: prime cost (PC) sum | F19: prime | G19: cost
B20: C2.1.4.2 | D20: Handling costs and profit in respect of item C2.1.4.1 above | E20: percentage (%) | F20: 0
A21: C2.1.5 | D21: Provision of record drawings and applicable data | E21: lump sum | F21: lump | G21: sum
A22: C2.1.6 | D22: Trench excavation (in soft material)
B23: C2.1.6.1 | D23: Trenches up to 1,0m wide
C24: (a) | D24: Up to 1,0m deep | E24: cubic metre (m3) | G24: 105 | H24: =F24*G24 -> 0
C25: (b) | D25: Over 1,0m and up to 2,0m deep | E25: cubic metre (m3) | G25: 145 | H25: =F25*G25 -> 0
C26: (c) | D26: Over 2,0m deep etc. to be inserted, increased by additional 1,0m depths as required | E26: cubic metre (m3) | G26: 225 | H26: =F26*G26 -> 0 | I26: X
B27: C2.1.6.2 | D27: Trenches over 1,0m and up to 2,0m wide
C28: (a) | D28: Up to 1,0m deep | E28: cubic metre (m3) | H28: =F28*G28 -> 0
C29: (b) | D29: Over 1,0m and up to 2,0m deep | E29: cubic metre (m3) | H29: =F29*G29 -> 0
C30: (c) | D30: Over 2,0m deep etc., increased by additional 1,0m depths as required | E30: cubic metre (m3) | H30: =F30*G30 -> 0 | I30: X
B31: C2.1.6.3 | D31: Trenches over 2,0m wide and up to 3,0m etc., increased by additional 1,0m widths as required
C32: (a) | D32: Up to 1,0m deep | E32: cubic metre (m3) | H32: =F32*G32 -> 0
C33: (b) | D33: Over 1,0m and up to 2,0m deep | E33: cubic metre (m3) | H33: =F33*G33 -> 0
C34: (c) | D34: Over 2,0m deep etc., increased by additional 1,0m depths as required | E34: cubic metre (m3) | H34: =F34*G34 -> 0 | I34: X
A35: C2.1.7 | D35: Extra over items C2.1.6, C2.1.8 and C2.1.16 for excavating in:
B36: C2.1.7.1 | D36: Hard material irrespective of depth | E36: cubic metre (m3) | G36: 550 | H36: =F36*G36 -> 0
B37: C2.1.7.2 | D37: Stabilised material irrespective of depth | E37: cubic metre (m3) | G37: 550 | H37: =F37*G37 -> 0
A38: C2.1.8 | D38: Excavations outside the normal trench profile | E38: cubic metre (m3) | H38: =F38*G38 -> 0
A39: C2.1.9 | D39: Trench excavation using labour enhanced construction methods
B40: C2.1.9.1 | D40: Trenches up to 1,0m wide (in soft material)
C41: (a) | D41: Up to 1,0m deep | E41: cubic metre (m3) | F41: 50 | H41: =F41*G41 -> 0
C42: (b) | D42: Over 1,0m and up to 1,5m deep | E42: cubic metre (m3) | H42: =F42*G42 -> 0
B43: C2.1.9.2 | D43: Trenches over 1,0m and up to 2,0m wide (in soft material)
C44: (a) | D44: Up to 1,0m deep | E44: cubic metre (m3) | H44: =F44*G44 -> 0
C45: (b) | D45: Over 1,0m and up to 1,5m deep | E45: cubic metre (m3) | H45: =F45*G45 -> 0
B46: C2.1.9.3 | D46: Trenches up to 1,0m wide (in intermediate material)
C47: (a) | D47: Up to 1,0m deep | E47: cubic metre (m3) | G47: 135 | H47: =F47*G47 -> 0
C48: (b) | D48: Over 1,0m and up to 1,5m deep | E48: cubic metre (m3) | H48: =F48*G48 -> 0
B49: C2.1.9.4 | D49: Trenches over 1,0m and up to 2,0m wide (in intermediate material)
C50: (a) | D50: Up to 1,0m deep | E50: cubic metre (m3) | H50: =F50*G50 -> 0
C51: (b) | D51: Over 1,0m and up to 1,5m deep | E51: cubic metre (m3) | H51: =F51*G51 -> 0
A52: C2.1.10 | D52: Excavation in tunnels exceeding 3,0m in length in:
B53: C2.1.10.1 | D53: Soft material | E53: cubic metre (m3) | H53: =F53*G53 -> 0
B54: C2.1.10.2 | D54: Hard material | E54: cubic metre (m3) | H54: =F54*G54 -> 0
A55: C2.1.11 | D55: Backfilling of trenches
B56: C2.1.11.1 | D56: Backfill compacted to 93% (100% for sand) of MDD (areas subject to traffic loads) using material:
C57: (a) | D57: From the excavated trench material | E57: cubic metre (m3) | G57: 175 | H57: =F57*G57 -> 0
C58: (b) | D58: From other excavations on Site | E58: cubic metre (m3) | H58: =F58*G58 -> 0
C59: (c) | D59: From approved borrow areas | E59: cubic metre (m3) | H59: =F59*G59 -> 0
C60: (d) | D60: From sources provided by the Contractor | E60: cubic metre (m3) | H60: =F60*G60 -> 0
C61: (e) | D61: From commercial sources (state material type) | E61: cubic metre (m3) | H61: =F61*G61 -> 0 | I61: X
B62: C2.1.11.2 | D62: Backfill compacted to 90% (100% for sand) of MDD or complying with the DCP requirements of Clause A2.1.8.2c) (areas not subject to traffic loads) using material:
C63: (a) | D63: From the excavated trench material | E63: cubic metre (m3) | G63: 200 | H63: =F63*G63 -> 0
C64: (b) | D64: From other excavations on Site | E64: cubic metre (m3) | H64: =F64*G64 -> 0
C65: (c) | D65: From approved borrow areas | E65: cubic metre (m3) | H65: =F65*G65 -> 0
C66: (d) | D66: From sources provided by the Contractor | E66: cubic metre (m3) | H66: =F66*G66 -> 0
C67: (e) | D67: From commercial sources (state material type) | E67: cubic metre (m3) | H67: =F67*G67 -> 0 | I67: X
A68: C2.1.12 | D68: Backfilling additional excavations in trench floors due to poor founding conditions using:
B69: C2.1.12.1 | D69: Geotextile (state grade or class) | E69: square metre (m2) | H69: =F69*G69 -> 0 | I69: X
B70: C2.1.12.2 | D70: Concrete aggregate (37,5mm aggregate size) | E70: cubic metre (m3) | H70: =F70*G70 -> 0
B71: C2.1.12.3 | D71: Concrete (state class) | E71: cubic metre (m3) | H71: =F71*G71 -> 0 | I71: X
A72: C2.1.13 | D72: Extra over item C2.1.11 for backfilling with soil cement or stabilised material
B73: C2.1.13.1 | D73: Backfilling trenches using soil cement using (state type of material i.e. G5, G7 or G8) material | E73: cubic metre (m3) | H73: =F73*G73 -> 0 | I73: X
B74: C2.1.13.2 | D74: Backfilling trenches using soil cement using G7 material with 5% cement | E74: cubic metre (m3) | G74: 550 | H74: =F74*G74 -> 0 | I74: X
B75: C2.1.13.3 | D75: Backfilling around poles using stabilised (state type of material i.e. G5, G7 or G8) material compacted to 95% of MDD | E75: cubic metre (m3) | H75: =F75*G75 -> 0 | I75: X
B76: C2.1.13.4 | D76: Cement (CEM II B-L (V-S) 32,5N) | E76: kilogram (kg) | G76: 50 | H76: =F76*G76 -> 0 | I76: X
A77: C2.1.14 | D77: Extra over items C2.1.11, C2.1.12 and C2.1.13 for additional compaction of backfill
B78: C2.1.14.1 | D78: Compaction increased from 90% of MDD to 93% of MDD | E78: cubic metre (m3) | H78: =F78*G78 -> 0
B79: C2.1.14.2 | D79: Compaction increased from 93% of MDD to 95% of MDD | E79: cubic metre (m3) | H79: =F79*G79 -> 0
B80: C2.1.14.3 | D80: Compaction increased from 95% of MDD to 98% of MDD | E80: cubic metre (m3) | H80: =F80*G80 -> 0
A81: C2.1.15 | D81: Stone packing
B82: C2.1.15.1 | D82: In bolsters | E82: cubic metre (m3) | H82: =F82*G82 -> 0
B83: C2.1.15.2 | D83: In tunnels | E83: cubic metre (m3) | H83: =F83*G83 -> 0
A84: C2.1.16 | D84: Subsurface drains in trench bottoms (Contract Documentation reference or drawing number indicated) | E84: metre (m) | H84: =F84*G84 -> 0 | I84: X
A85: C2.1.17 | D85: Removal and disposal of spoil material from trench excavations:
B86: C2.1.17.1 | D86: To spoil sites provided by the Employer as indicated in the Contract Documentation or as instructed by the Engineer | E86: cubic metre (m3) | H86: =F86*G86 -> 0
B87: C2.1.17.2 | D87: To spoil sites or dumping areas provided by the Contractor | E87: cubic metre (m3) | G87: 200 | H87: =F87*G87 -> 0
A88: C2.1.18 | D88: Timbering, strutting and shoring
B89: C2.1.18.1 | D89: Timbering, strutting and shoring left in excavations | E89: square metre (m2) | H89: =F89*G89 -> 0
B90: C2.1.18.2 | D90: Timbering, strutting and shoring opposite a structure or service (state reference in Contract Documentation or indicate drawing number etc.) | E90: metre (m) | H90: =F90*G90 -> 0 | I90: X
A91: C2.1.19 | D91: Dealing with water during services work
B92: C2.1.19.1 | D92: Dealing with surface water | E92: lump sum | G92: sum
B93: C2.1.19.2 | D93: Dealing with subsurface water | E93: lump sum | G93: sum
A94: C2.1.20 | D94: Specified temporary works to control water inflow (state reference in Contract Documentation or indicate drawing number etc.) | I94: X
B95: C2.1.20.1 | D95: Provide equipment | E95: lump sum | G95: sum
B96: C2.1.20.2 | D96: Operate and maintain | E96: day | H96: =F96*G96 -> 0
B97: C2.1.20.3 | D97: Remove equipment | E97: lump sum | G97: sum
A98: C2.1.21 | D98: Supply and installation of sandbags in trenches
B99: C2.1.21.1 | D99: Biodegradable bags (state bag size, material type and description) | E99: number of bags (No.) | H99: =F99*G99 -> 0 | I99: X
B100: C2.1.21.2 | D100: Geofabric bags (state bag size, material type and description) | E100: number of bags (No.) | H100: =F100*G100 -> 0 | I100: X
A101: C2.1.22 | D101: Existing services that intersect or adjoin a trench
B102: C2.1.22.1 | D102: Services that intersect a trench (angles between centre-lines in plan 45o to 90o)
C103: (a) | D103: … (State type and size of each intersecting service) | E103: number (No.) | H103: =F103*G103 -> 0 | I103: X
C104: (b) | D104: … (State type and size of each intersecting service) | E104: number (No.) | H104: =F104*G104 -> 0 | I104: X
C105: (c) | D105: … (State type and size of each intersecting service etc.) | E105: number (No.) | H105: =F105*G105 -> 0 | I105: X
B106: C2.1.22.2 | D106: Services that adjoin a trench (parallel to or at an angle between centre-lines in plan of less than 45o)
C107: (a) | D107: … (State type and size of each adjoining service) | E107: metre (m) | H107: =F107*G107 -> 0 | I107: X
C108: (b) | D108: … (State type and size of each adjoining service) | E108: metre (m) | H108: =F108*G108 -> 0 | I108: X
C109: (c) | D109: … (State type and size of each adjoining service etc.) | E109: metre (m) | H109: =F109*G109 -> 0 | I109: X
A110: C2.1.23 | D110: Reinstatement of trenches in existing surfaced roads using:
B111: C2.1.23.1 | D111: Selected material (state material type and source G7, from commercial sources compacted to 93% of MDD in 150 mm layers | E111: cubic metre (m3) | G111: 200 | H111: =F111*G111 -> 0 | I111: X
B112: C2.1.23.2 | D112: Subbase material (state material type and source e.g. G5 or G6, commercial/borrow pit etc. and layer thickness) compacted to (state minimum compaction) ...% of MDD | E112: cubic metre (m3) | H112: 0 | I112: X
B113: C2.1.23.3 | D113: Stabilised subbase material (state material type and source e.g. C3 or C4, commercial/borrow pit etc. and layer thickness) using (state percentage and type of stabilising agent) compacted to (state minimum compaction) ...% of MDD | E113: cubic metre (m3) | H113: 0 | I113: X
B114: C2.1.23.4 | D114: Base material (state material type and source e.g. G1 or G2, commercial/quarry etc. and layer thickness) compacted to (state minimum compaction either 102% for G2 or 104% for G1) ...% of MDD | E114: cubic metre (m3) | H114: 0 | I114: X
B115: C2.1.23.5 | D115: Prime coat (state type of material and application rate) | E115: square metre (m2) | H115: 0 | I115: X
B116: C2.1.23.6 | D116: Tack coat (state type of material and application rate) | E116: square metre (m2) | H116: 0 | I116: X
B117: C2.1.23.7 | D117: Asphalt material (state asphalt type e.g. continuously graded, binder type, layer thickness and minimum density) | E117: ton (t) | H117: 0 | I117: X
B118: C2.1.23.8 | D118: Surface treatments (state surfacing type, binder type and application rate, aggregate size and application rate etc.) | E118: square metre (m2) | H118: 0 | I118: X
A119: C2.1.24 | D119: Saw-cutting before excavation
B120: C2.1.24.1 | D120: Saw-cutting asphalt to an average depth:
C121: (a) | D121: Not exceeding 50mm | E121: square metre (m2) | H121: =F121*G121 -> 0
C122: (b) | D122: Exceeding 50mm but not exceeding 100mm | E122: square metre (m2) | H122: =F122*G122 -> 0
C123: (c) | D123: Exceeding 100mm but not exceeding 150mm | E123: square metre (m2) | H123: =F123*G123 -> 0
B124: C2.1.24.2 | D124: Saw-cutting concrete to an average depth:
C125: (a) | D125: Not exceeding 50mm | E125: square metre (m2) | H125: =F125*G125 -> 0
C126: (b) | D126: Exceeding 50mm but not exceeding 100mm | E126: square metre (m2) | H126: =F126*G126 -> 0
C127: (c) | D127: Exceeding 100mm but not exceeding 150mm | E127: square metre (m2) | H127: =F127*G127 -> 0
B128: C2.1.24.3 | D128: Saw-cutting other materials (type of material to be specified) to an average depth: | I128: X
C129: (a) | D129: Not exceeding 50mm | E129: square metre (m2) | H129: =F129*G129 -> 0
C130: (b) | D130: Exceeding 50mm but not exceeding 100mm | E130: square metre (m2) | H130: =F130*G130 -> 0
C131: (c) | D131: Exceeding 100mm but not exceeding 150mm | E131: square metre (m2) | H131: =F131*G131 -> 0
A132: C2.1.25 | D132: Removal of existing services:
B133: C2.1.25.1 | D133: … (State type and size of each service (duct, pipe or cable) removed) | E133: metre (m) | H133: =F133*G133 -> 0 | I133: X
B134: C2.1.25.2 | D134: … (State type and size of each service (duct, pipe or cable) removed) | E134: metre (m) | H134: =F134*G134 -> 0 | I134: X
B135: C2.1.25.3 | D135: … etc. (insert additional items as required) | E135: metre (m) | H135: =F135*G135 -> 0 | I135: X
A136: C2.1.26 | D136: Disposal of existing service materials:
B137: C2.1.26.1 | D137: … (State type and size of each service (duct, pipe or cable) disposed of) | E137: metre (m) | H137: =F137*G137 -> 0 | I137: X
B138: C2.1.26.2 | D138: … (State type and size of each service (duct, pipe or cable) disposed of) | E138: metre (m) | H138: =F138*G138 -> 0 | I138: X
B139: C2.1.26.3 | D139: … etc. (insert additional items as required) | E139: metre (m) | H139: =F139*G139 -> 0 | I139: X
A140: C2.1.27 | D140: Demolition of existing manholes, access chambers and other service structures consisting of:
B141: C2.1.27.1 | D141: Unreinforced concrete | E141: cubic metre (m3) | H141: =F141*G141 -> 0
B142: C2.1.27.2 | D142: Reinforced concrete | E142: cubic metre (m3) | H142: =F142*G142 -> 0
B143: C2.1.27.3 | D143: Masonry | E143: cubic metre (m3) | H143: =F143*G143 -> 0
A147: TOTAL CARRIED FORWARD TO SUMMARY | H147: =SUM(H5:H146) -> R100,000.00

Sheet C2.2 (hidden)
A1: C2.2 | E1: DRY SERVICES
A2: ITEM | D2: DESCRIPTION | E2: UNIT | F2: QTY | G2: RATE | H2: AMT | I2: Note to compiler: Items requiring additional information to be provided by compiler is marked in this column by X.
A5: C2.2.1 | D5: Supply, lay and prove ducts
B6: C2.2.1.1 | D6: … (state for each duct the material type, class, joint type etc. (example HDPE pliable type N450 with compression couplings)) | I6: X
C7: (a) | D7: … (state diameter (example 110mm diameter (OD)) | E7: metre (m) | H7: =F7*G7 -> 0 | I7: X
C8: (b) | D8: … (state diameter (example 160mm diameter (OD)) | E8: metre (m) | H8: =F8*G8 -> 0 | I8: X
B9: C2.2.1.2 | D9: … (state for each duct the material type, class, joint type etc.) | I9: X
C10: (a) | D10: … (state diameter) | E10: metre (m) | H10: =F10*G10 -> 0 | I10: X
C11: (b) | D11: … (state diameter) | E11: metre (m) | H11: =F11*G11 -> 0 | I11: X
A12: C2.2.2 | D12: Extra over item C2.2.1 for the provision of split ducts
B13: C2.2.2.1 | D13: … (state for each duct the material type, class, etc.) | I13: X
C14: (a) | D14: … (state diameter (example 110mm diameter (OD)) | E14: metre (m) | H14: =F14*G14 -> 0 | I14: X
C15: (b) | D15: … (state diameter (example 160mm diameter (OD)) | E15: metre (m) | H15: =F15*G15 -> 0 | I15: X
B16: C2.2.2.2 | D16: … (state for each duct the material type, class etc.) | I16: X
C17: (a) | D17: … (state diameter) | E17: metre (m) | H17: =F17*G17 -> 0 | I17: X
C18: (b) | D18: … (state diameter) | E18: metre (m) | H18: =F18*G18 -> 0 | I18: X
A19: C2.2.3 | D19: Lay and prove ducts provided by others
B20: C2.2.3.1 | D20: … (state for each duct to be laid the material type) | I20: X
C21: (a) | D21: … (state diameter (example 110mm diameter (OD)) | E21: metre (m) | H21: =F21*G21 -> 0 | I21: X
C22: (b) | D22: … (state diameter (example 160mm diameter (OD)) | E22: metre (m) | H22: =F22*G22 -> 0 | I22: X
B23: C2.2.3.2 | D23: … (state for each duct to be laid the material type) | I23: X
C24: (a) | D24: … (state diameter) | E24: metre (m) | H24: =F24*G24 -> 0 | I24: X
C25: (b) | D25: … (state diameter) | E25: metre (m) | H25: =F25*G25 -> 0 | I25: X
A26: C2.2.4 | D26: Bedding for ducts compacted to 90 % of MDD (100 % for sand) using material:
B27: C2.2.4.1 | D27: Selected from the excavated trench material | E27: cubic metre (m3) | H27: =F27*G27 -> 0
B28: C2.2.4.2 | D28: Selected from other excavations on site | E28: cubic metre (m3) | H28: =F28*G28 -> 0
B29: C2.2.4.3 | D29: Selected from approved borrow areas | E29: cubic metre (m3) | H29: =F29*G29 -> 0
B30: C2.2.4.4 | D30: Selected from sources provided by the Contractor | E30: cubic metre (m3) | H30: =F30*G30 -> 0
B31: C2.2.4.5 | D31: From commercial sources
C32: (a) | D32: Non-cohesive material (state material type) | E32: cubic metre (m3) | H32: =F32*G32 -> 0 | I32: X
C33: (b) | D33: Crushed stone material (state material type) | E33: cubic metre (m3) | H33: =F33*G33 -> 0 | I33: X
B34: C2.2.4.6 | D34: Extra over items C2.2.4.1 to C2.2.4.5 for stabilising material with cement | E34: cubic metre (m3) | H34: =F34*G34 -> 0
B35: C2.2.4.7 | D35: Cement (state class/type of cement) for stabilising bedding | E35: kilogram (kg) | H35: =F35*G35 -> 0 | I35: X
A36: C2.2.5 | D36: Concrete for bedding and encasement of ducts
B37: C2.2.5.1 | D37: Concrete bedding (state class of concrete) | E37: cubic metre (m3) | H37: =F37*G37 -> 0 | I37: X
B38: C2.2.5.2 | D38: Concrete encasement of ducts (state class of concrete) | E38: cubic metre (m3) | H38: =F38*G38 -> 0 | I38: X
A39: C2.2.6 | D39: Duct accessories (markers, marking, draw wires and end caps etc.)
B40: C2.2.6.1 | D40: Duct markers (state type) | E40: number (No.) | H40: =F40*G40 -> 0 | I40: X
B41: C2.2.6.2 | D41: Duct marking (state type) | E41: number (No.) | H41: =F41*G41 -> 0 | I41: X
B42: C2.2.6.3 | D42: Draw wires (state type) | E42: metre (m) | H42: =F42*G42 -> 0 | I42: X
B43: C2.2.6.4 | D43: End caps or plugs (state type) | E43: number (No.) | H43: =F43*G43 -> 0 | I43: X
B44: C2.2.6.5 | D44: Other accessories
C45: (a) | D45: … (state type) | E45: number (No.) | H45: =F45*G45 -> 0 | I45: X
C46: (b) | D46: … (state type) | E46: metre (m) | H46: =F46*G46 -> 0 | I46: X
A47: C2.2.7 | D47: Handholes, manholes and access chambers for ducts
B48: C2.2.7.1 | D48: Handholes (state type and drawing reference etc.) | I48: X
C49: (a) | D49: … (state depth range (example over 1,0m and up to 1,5m deep)) | E49: number (No.) | H49: =F49*G49 -> 0 | I49: X
C50: (b) | D50: … (state depth range (example over 1,5m and up to 2,0m deep)) | E50: number (No.) | H50: =F50*G50 -> 0 | I50: X
B51: C2.2.7.2 | D51: Manholes (state type and drawing reference etc.) | I51: X
C52: (a) | D52: … (state depth range) | E52: number (No.) | H52: =F52*G52 -> 0 | I52: X
C53: (b) | D53: … (state depth range) | E53: number (No.) | H53: =F53*G53 -> 0 | I53: X
B54: C2.2.7.3 | D54: Access chambers (state type and drawing reference etc.) | I54: X
C55: (a) | D55: … (state depth range) | E55: number (No.) | H55: =F55*G55 -> 0 | I55: X
C56: (b) | D56: … (state depth range) | E56: number (No.) | H56: =F56*G56 -> 0 | I56: X
B57: C2.2.7.4 | D57: Other structures
C58: (a) | D58: … (state type, depth range and drawing reference etc.) | E58: number (No.) | H58: =F58*G58 -> 0 | I58: X
C59: (b) | D59: … (state type, depth range and drawing reference etc.) | E59: number (No.) | H59: =F59*G59 -> 0 | I59: X
A60: C2.2.8 | D60: Covers and frames for duct handholes, manholes and access chambers
B61: C2.2.8.1 | D61: … (State type, strength class and size of cover and frame) | E61: number (No.) | H61: =F61*G61 -> 0 | I61: X
B62: C2.2.8.2 | D62: … (State type, strength class and size of cover and frame) | E62: number (No.) | H62: =F62*G62 -> 0 | I62: X
B63: C2.2.8.3 | D63: … (State type, strength class and size of cover and frame) | E63: number (No.) | H63: =F63*G63 -> 0 | I63: X
B64: C2.2.8.4 | D64: … etc. (insert additional items as required) | E64: number (No.) | H64: =F64*G64 -> 0 | I64: X
A65: C2.2.9 | D65: Install duct handhole, manhole and access chamber covers and frames provided by others
B66: C2.2.9.1 | D66: … (State type, strength class and size of cover and frame) | E66: number (No.) | H66: =F66*G66 -> 0 | I66: X
B67: C2.2.9.2 | D67: … (State type, strength class and size of cover and frame) | E67: number (No.) | H67: =F67*G67 -> 0 | I67: X
B68: C2.2.9.3 | D68: … (State type, strength class and size of cover and frame) | E68: number (No.) | H68: =F68*G68 -> 0 | I68: X
B69: C2.2.9.4 | D69: … etc. (insert additional items as required) | E69: number (No.) | H69: =F69*G69 -> 0 | I69: X
A73: TOTAL CARRIED FORWARD TO SUMMARY | H73: =SUM(H5:H72) -> 0

Sheet C2.3 (hidden)
A1: C2.3 | E1: WET SERVICES
A2: ITEM | D2: DESCRIPTION | E2: UNIT | F2: QTY | G2: RATE | H2: AMT | I2: Note to compiler: Items requiring additional information to be provided by compiler is marked in this column by X.
A5: C2.3.1 | D5: Supply, lay, joint and test sewers
B6: C2.3.1.1 | D6: … (State for each sewer the pipe material type, class, joint type and the class of bedding etc.) | I6: X
C7: (a) | D7: … (state diameter) | E7: metre (m) | H7: =F7*G7 -> 0 | I7: X
C8: (b) | D8: … (state diameter) | E8: metre (m) | H8: =F8*G8 -> 0 | I8: X
B9: C2.3.1.2 | D9: … (state for each sewer the pipe material type, class, joint type and the class of bedding etc.) | I9: X
C10: (a) | D10: … (state diameter) | E10: metre (m) | H10: =F10*G10 -> 0 | I10: X
C11: (b) | D11: … (state diameter) | E11: metre (m) | H11: =F11*G11 -> 0 | I11: X
B12: C2.3.1.3 | D12: …etc. (insert additional items as required) | H12: =F12*G12 -> 0 | I12: X
A13: C2.3.2 | D13: Extra over item C2.3.1 for sewer specials
B14: C2.3.2.1 | D14: … (state for each sewer special the type, class, etc.) | I14: X
C15: (a) | D15: … (state diameter) | E15: number (No.) | H15: =F15*G15 -> 0 | I15: X
C16: (b) | D16: … (state diameter) | E16: number (No.) | H16: =F16*G16 -> 0 | I16: X
B17: C2.3.2.2 | D17: … (state for each sewer special the type, class, etc.) | I17: X
C18: (a) | D18: … (state diameter) | E18: number (No.) | H18: =F18*G18 -> 0 | I18: X
C19: (b) | D19: … (state diameter) | E19: number (No.) | H19: =F19*G19 -> 0 | I19: X
B20: C2.3.2.3 | D20: …etc. (insert additional items as required) | H20: =F20*G20 -> 0 | I20: X
A21: C2.3.3 | D21: Bedding for sewers (Class B and C) and fill blanket compacted to 90% of MDD (100% for sand)
B22: C2.3.3.1 | D22: Bedding using selected granular material
C23: (a) | D23: From the excavated trench material | E23: cubic metre (m3) | H23: =F23*G23 -> 0
C24: (b) | D24: From other excavations on site | E24: cubic metre (m3) | H24: =F24*G24 -> 0
C25: (c) | D25: From approved borrow areas | E25: cubic metre (m3) | H25: =F25*G25 -> 0
C26: (d) | D26: From sources provided by the Contractor | E26: cubic metre (m3) | H26: =F26*G26 -> 0
C27: (e) | D27: From commercial sources | E27: cubic metre (m3) | H27: =F27*G27 -> 0
B28: C2.3.3.2 | D28: Selected fill blanket material
C29: (a) | D29: From the excavated trench material | E29: cubic metre (m3) | H29: =F29*G29 -> 0
C30: (b) | D30: From other excavations on Site | E30: cubic metre (m3) | H30: 0
C31: (c) | D31: From approved borrow areas | E31: cubic metre (m3) | H31: 0
C32: (d) | D32: From sources provided by the Contractor | E32: cubic metre (m3) | H32: 0
C33: (e) | D33: From commercial sources | E33: cubic metre (m3) | H33: 0
B34: C2.3.3.3 | D34: Extra over items C2.3.3.1(a) to C2.3.3.1(c) and C2.3.3.2(a) to C2.3.3.2(c) for screening material | E34: cubic metre (m3) | H34: 0
A35: C2.3.4 | D35: Concrete for bedding (Class A) and encasement for sewers
B36: C2.3.4.1 | D36: Concrete (Class A) bedding (state class of concrete) | E36: cubic metre (m3) | H36: =F36*G36 -> 0 | I36: X
B37: C2.3.4.2 | D37: Concrete encasement (state class of concrete) | E37: cubic metre (m3) | H37: =F37*G37 -> 0 | I37: X
A38: C2.3.5 | D38: Manholes, inspection chambers and cleaning eyes for sewers
B39: C2.3.5.1 | D39: Manholes (state type and drawing reference etc.) | I39: X
C40: (a) | D40: … (state pipe size and depth range) | E40: number (No.) | H40: =F40*G40 -> 0 | I40: X
C41: (b) | D41: … (state pipe size and depth range) | E41: number (No.) | H41: =F41*G41 -> 0 | I41: X
B42: C2.3.5.2 | D42: Extra over item C2.3.5.1 for backdrops for manholes (state type and drawing reference etc.) | I42: X
C43: (a) | D43: … (state pipe size and depth range) | E43: number (No.) | H43: =F43*G43 -> 0 | I43: X
C44: (b) | D44: … (state pipe size and depth range) | E44: number (No.) | H44: =F44*G44 -> 0 | I44: X
B45: C2.3.5.3 | D45: Inspection chambers (state type and drawing reference etc.) | I45: X
C46: (a) | D46: … (state pipe size and depth range) | E46: number (No.) | H46: =F46*G46 -> 0 | I46: X
C47: (b) | D47: … (state pipe size and depth range) | E47: number (No.) | H47: =F47*G47 -> 0 | I47: X
B48: C2.3.5.4 | D48: Cleaning eyes (state type and drawing reference etc.) | I48: X
C49: (a) | D49: … (state depth range) | E49: number (No.) | H49: =F49*G49 -> 0 | I49: X
C50: (b) | D50: … (state depth range) | E50: number (No.) | H50: =F50*G50 -> 0 | I50: X
B51: C2.3.5.5 | D51: Other structures (state type and drawing reference etc.) | I51: X
C52: (a) | D52: … (state pipe size and depth range) | E52: number (No.) | H52: =F52*G52 -> 0 | I52: X
C53: (b) | D53: … (state pipe size and depth range) | E53: number (No.) | H53: =F53*G53 -> 0 | I53: X
A54: C2.3.6 | D54: Covers and frames for sewer manholes, inspection chambers and other structures
B55: C2.3.6.1 | D55: … (state type, strength class and size of cover and frame) | E55: number (No.) | H55: =F55*G55 -> 0 | I55: X
B56: C2.3.6.2 | D56: … (state type, strength class and size of cover and frame) | E56: number (No.) | H56: =F56*G56 -> 0 | I56: X
B57: C2.3.6.3 | D57: … (state type, strength class and size of cover and frame) | E57: number (No.) | H57: =F57*G57 -> 0 | I57: X
B58: C2.3.6.4 | D58: … etc. (insert additional items as required) | E58: number (No.) | H58: =F58*G58 -> 0 | I58: X
A59: C2.3.7 | D59: Sewer accessories (anchor blocks, marker posts, plug stoppers etc.)
B60: C2.3.7.1 | D60: Anchor blocks (state type and drawing reference) | E60: number (No.) | H60: =F60*G60 -> 0 | I60: X
B61: C2.3.7.2 | D61: Anchor blocks (state type and drawing reference) | E61: cubic metre (m3) | H61: =F61*G61 -> 0 | I61: X
B62: C2.3.7.3 | D62: Marker posts (state type and drawing reference) | E62: number (No.) | H62: =F62*G62 -> 0 | I62: X
B63: C2.3.7.4 | D63: Plug stoppers (state type) | E63: number (No.) | H63: =F63*G63 -> 0 | I63: X
B64: C2.3.7.5 | D64: Other accessories
C65: (a) | D65: … (state type) | E65: number (No.) | H65: =F65*G65 -> 0 | I65: X
C66: (b) | D66: … (state type) | E66: number (No.) | H66: =F66*G66 -> 0 | I66: X
A67: C2.3.8 | D67: Sewer connections (erf and existing line connections)
B68: C2.3.8.1 | D68: Erf connections (state type, depth range and drawing reference) | I68: X
C69: (a) | D69: Connection length (state length in metres) | E69: number (No.) | H69: =F69*G69 -> 0 | I69: X
C70: (b) | D70: Connection length (state length in metres) | E70: number (No.) | H70: =F70*G70 -> 0 | I70: X
C71: (c) | D71: Etc., (insert additional items as required) | E71: number (No.) | H71: =F71*G71 -> 0 | I71: X
B72: C2.3.8.2 | D72: Erf connections (state type, depth range and drawing reference) | I72: X
C73: (a) | D73: Connection length (state length in metres) | E73: number (No.) | H73: =F73*G73 -> 0 | I73: X
C74: (b) | D74: Connection length (state length in metres) | E74: number (No.) | H74: =F74*G74 -> 0 | I74: X
C75: (c) | D75: … etc. (insert additional items as required) | E75: number (No.) | H75: =F75*G75 -> 0 | I75: X
B76: C2.3.8.3 | D76: Erf connections to sewer manholes
C77: (a) | D77: … (state type, depth range, etc.) | E77: Sum | H77: =F77*G77 -> 0 | I77: X
C78: (b) | D78: … (state type, depth range, etc.) | E78: Sum | H78: =F78*G78 -> 0 | I78: X
B79: C2.3.8.4 | D79: Connecting sewers to existing manholes
C80: (a) | D80: … (state position, specification and drawing reference etc.) | E80: Sum | H80: =F80*G80 -> 0 | I80: X
C81: (b) | D81: … (state position, specification and drawing reference etc.) | E81: Sum | H81: =F81*G81 -> 0 | I81: X
C82: (c) | D82: … etc. (insert additional items as required) | E82: Sum | H82: =F82*G82 -> 0 | I82: X
B83: C2.3.8.5 | D83: Breaking into an existing sewer and building a new manhole
C84: (a) | D84: … (state position, specification and drawing reference etc.) | E84: Sum | H84: =F84*G84 -> 0 | I84: X
C85: (b) | D85: … (state position, specification and drawing reference etc.) | E85: Sum | H85: =F85*G85 -> 0 | I85: X
C86: (c) | D86: … etc. (insert additional items as required) | E86: Sum | H86: =F86*G86 -> 0 | I86: X
A87: C2.3.9 | D87: Raising and lowering existing sewer manholes
B88: C2.3.9.1 | D88: Raising manholes
C89: (a) | D89: … (state manhole type and drawing reference and height raised) | E89: number (No.) | H89: =F89*G89 -> 0 | I89: X
C90: (b) | D90: … (state manhole type and drawing reference and height raised) | E90: number (No.) | H90: =F90*G90 -> 0 | I90: X
B91: C2.3.9.2 | D91: Lowering manholes
C92: (a) | D92: … (state manhole type and drawing reference and height lowered) | E92: number (No.) | H92: =F92*G92 -> 0 | I92: X
C93: (b) | D93: … (state manhole type and drawing reference and height lowered) | E93: number (No.) | H93: =F93*G93 -> 0 | I93: X
A94: C2.3.10 | D94: Testing of sewer manholes | E94: number (No.) | H94: =F94*G94 -> 0
A95: C2.3.11 | D95: CCTV camera inspections
B96: C2.3.11.1 | D96: … (state pipe diameter) | E96: metre (m) | H96: =F96*G96 -> 0 | I96: X
B97: C2.3.11.2 | D97: … (state pipe diameter) | E97: metre (m) | H97: 0 | I97: X
A98: C2.3.12 | D98: … (Pay items C2.3.12 to C2.3.20 have been deliberately left for use for additional contract specific sewer related pay items inserted via the Contract Documentation) | H98: 0 | I98: X
A99: C2.3.13 | H99: 0 | I99: X
A100: C2.3.14 | H100: 0 | I100: X
A101: C2.3.15 | H101: 0 | I101: X
A102: C2.3.16 | H102: 0 | I102: X
A103: C2.3.17 | H103: 0 | I103: X
A104: C2.3.18 | H104: 0 | I104: X
A105: C2.3.19 | H105: 0 | I105: X
A106: C2.3.20 | H106: 0 | I106: X
A107: C2.3.21 | D107: Supply and lay water mains complete with couplings
B108: C2.3.21.1 | D108: … (state for each water main the pipe material type, class, coupling type and the class of bedding etc.) | I108: X
C109: (a) | D109: … (state diameter) | E109: metre (m) | H109: =F109*G109 -> 0 | I109: X
C110: (b) | D110: … (state diameter) | E110: metre (m) | H110: =F110*G110 -> 0 | I110: X
B111: C2.3.21.2 | D111: … (state for each water main the pipe material type, class, coupling type and the class of bedding etc.) | I111: X
C112: (a) | D112: … (state diameter) | E112: metre (m) | H112: =F112*G112 -> 0 | I112: X
C113: (b) | D113: … (state diameter) | E113: metre (m) | H113: =F113*G113 -> 0 | I113: X
B114: C2.3.21.3 | D114: … etc. (insert additional items as required) | H114: =F114*G114 -> 0 | I114: X
A115: C2.3.22 | D115: Extra over item C2.3.21 for supplying and fixing water main fittings or specials complete with couplings
B116: C2.3.22.1 | D116: … (state for each water main fitting or special the type, class etc.) | I116: X
C117: (a) | D117: … (state diameter) | E117: number (No.) | H117: =F117*G117 -> 0 | I117: X
C118: (b) | D118: … (state diameter) | E118: number (No.) | H118: =F118*G118 -> 0 | I118: X
B119: C2.3.22.2 | D119: … (state for each water main fitting or special the type, class etc.) | I119: X
C120: (a) | D120: … (state diameter) | E120: number (No.) | H120: =F120*G120 -> 0 | I120: X
C121: (b) | D121: … (state diameter) | E121: number (No.) | H121: =F121*G121 -> 0 | I121: X
B122: C2.3.22.3 | D122: … etc. (insert additional items as required) | H122: =F122*G122 -> 0 | I122: X
A123: C2.3.23 | D123: Extra over item C2.3.21 for supplying and fixing water main valves
B124: C2.3.23.1 | D124: … (state for each water main valve the type, class etc.) | I124: X
C125: (a) | D125: … (state diameter) | E125: number (No.) | H125: =F125*G125 -> 0 | I125: X
C126: (b) | D126: … (state diameter) | E126: number (No.) | H126: =F126*G126 -> 0 | I126: X
B127: C2.3.23.2 | D127: ... (state for each water main valve the type, class etc.) | I127: X
C128: (a) | D128: … (state diameter) | E128: number (No.) | H128: =F128*G128 -> 0 | I128: X
C129: (b) | D129: … (state diameter) | E129: number (No.) | H129: =F129*G129 -> 0 | I129: X
B130: C2.3.23.3 | D130: … etc. (insert additional items as required) | H130: =F130*G130 -> 0 | I130: X
A131: C2.3.24 | D131: Extra over item C2.3.21 for cutting of pipes and the supplying and fixing of extra couplings
B132: C2.3.24.1 | D132: … (state for each water main the pipe material type and coupling type) | I132: X
C133: (a) | D133: … (state diameter) | E133: number (No.) | H133: =F133*G133 -> 0 | I133: X
C134: (b) | D134: … (state diameter) | E134: number (No.) | H134: =F134*G134 -> 0 | I134: X
B135: C2.3.24.2 | D135: … (state for each water main the pipe material type and coupling type) | I135: X
C136: (a) | D136: … (state diameter) | E136: number (No.) | H136: =F136*G136 -> 0 | I136: X
C137: (b) | D137: … (state diameter) | E137: number (No.) | H137: =F137*G137 -> 0 | I137: X
B138: C2.3.24.3 | D138: … etc. (insert additional items as required) | H138: =F138*G138 -> 0 | I138: X
A139: C2.3.25 | D139: Extra over items C2.3.21, C2.3.22 and C2.3.23 for supplying and installing joints with machined collars and special couplings
B140: C2.3.25.1 | D140: … (state for each water main the pipe collar and special coupling type) | I140: X
C141: (a) | D141: … (state diameter) | E141: number (No.) | H141: =F141*G141 -> 0 | I141: X
C142: (b) | D142: … (state diameter) | E142: number (No.) | H142: =F142*G142 -> 0 | I142: X
B143: C2.3.25.2 | D143: … (state for each water main the pipe collar and special coupling type) | I143: X
C144: (a) | D144: … (state diameter) | E144: number (No.) | H144: =F144*G144 -> 0 | I144: X
C145: (b) | D145: … (state diameter) | E145: number (No.) | H145: =F145*G145 -> 0 | I145: X
B146: C2.3.25.3 | D146: … etc. (insert additional items as required) | H146: =F146*G146 -> 0 | I146: X
A147: C2.3.26 | D147: Supplying and installing pipes, specials and valves on short pipe runs
B148: C2.3.26.1 | D148: … (state for each short run water main the pipe material type, class and class of bedding etc.) | I148: X
C149: (a) | D149: … (state pipe diameter and length) | E149: metre (m) | H149: =F149*G149 -> 0 | I149: X
C150: (b) | D150: … (state pipe diameter and length) | E150: metre (m) | H150: =F150*G150 -> 0 | I150: X
B151: C2.3.26.2 | D151: … (state for each short run water main the fitting, bend or special type, class etc.) | I151: X
C152: (a) | D152: … (state diameter) | E152: number (No.) | H152: =F152*G152 -> 0 | I152: X
C153: (b) | D153: … (state diameter) | E153: number (No.) | H153: =F153*G153 -> 0 | I153: X
B154: C2.3.26.3 | D154: … etc. (insert additional items as required) | H154: =F154*G154 -> 0
A155: C2.3.27 | D155: Extra over item C2.3.21 for encasing (wrapping) joints
B156: C2.3.27.1 | D156: … (state for each water main the number of joints to be encased (wrapped)) | I156: X
C157: (a) | D157: … (state diameter) | E157: number (No.) | H157: =F157*G157 -> 0 | I157: X
C158: (b) | D158: … (state diameter) | E158: number (No.) | H158: =F158*G158 -> 0 | I158: X
A159: C2.3.28 | D159: Installation of hydrants and water meters
B160: C2.3.28.1 | D160: … (describe hydrant type) | E160: number (No.) | H160: =F160*G160 -> 0 | I160: X
B161: C2.3.28.2 | D161: … (describe water meter type) | E161: number (No.) | H161: =F161*G161 -> 0 | I161: X
B162: C2.3.28.3 | D162: … etc. (insert additional items as required) | E162: number (No.) | H162: =F162*G162 -> 0 | I162: X
A163: C2.3.29 | D163: Bedding for water mains (Class B and C) and fill blanket compacted to 90% of MDD (100% for sand)
B164: C2.3.29.1 | D164: Bedding using selected granular material
C165: (a) | D165: From the excavated trench material | E165: cubic metre (m3) | H165: =F165*G165 -> 0
C166: (b) | D166: From other excavations on Site | E166: cubic metre (m3) | H166: =F166*G166 -> 0
C167: (c) | D167: From approved borrow areas | E167: cubic metre (m3) | H167: =F167*G167 -> 0
C168: (d) | D168: From sources provided by the Contractor | E168: cubic metre (m3) | H168: =F168*G168 -> 0
C169: (e) | D169: From commercial sources | E169: cubic metre (m3) | H169: =F169*G169 -> 0
B170: C2.3.29.2 | D170: Selected fill blanket material
C171: (a) | D171: From the excavated trench material | E171: cubic metre (m3) | H171: =F171*G171 -> 0
C172: (b) | D172: From other excavations on Site | E172: cubic metre (m3) | H172: 0
C173: (c) | D173: From approved borrow areas | E173: cubic metre (m3) | H173: 0
C174: (d) | D174: From sources provided by the Contractor | E174: cubic metre (m3) | H174: 0
C175: (e) | D175: From commercial sources | E175: cubic metre (m3) | H175: 0
B176: C2.3.29.3 | D176: Extra over items C2.3.29.1(a) to C2.3.29.1(c) and C2.3.29.2(a) to C2.3.29.2(c) for screening material | E176: cubic metre (m3) | H176: 0
A177: C2.3.30 | D177: Concrete for bedding (Class A) and encasement for water mains
B178: C2.3.30.1 | D178: Concrete (Class A) bedding (state class of concrete) | E178: cubic metre (m3) | H178: =F178*G178 -> 0 | I178: X
B179: C2.3.30.2 | D179: Concrete encasement (state class of concrete) | E179: cubic metre (m3) | H179: =F179*G179 -> 0 | I179: X
A180: C2.3.31 | D180: Manholes, valve and hydrant chambers etc. for water mains
B181: C2.3.31.1 | D181: Manholes (state type and drawing references etc.) | I181: X
C182: (a) | D182: … (state pipe size and depth range) | E182: number (No.) | H182: =F182*G182 -> 0 | I182: X
C183: (b) | D183: … (state pipe size and depth range) | E183: number (No.) | H183: =F183*G183 -> 0 | I183: X
B184: C2.3.31.2 | D184: Valve chambers (state valve type (gate valve, single or double air valve etc.) and drawing references etc. | I184: X
C185: (a) | D185: … (state pipe size and depth range) | E185: number (No.) | H185: =F185*G185 -> 0 | I185: X
C186: (b) | D186: … (state pipe size and depth range) | E186: number (No.) | H186: =F186*G186 -> 0 | I186: X
B187: C2.3.31.3 | D187: Hydrant chambers (state type etc. and drawing references etc.) | I187: X
C188: (a) | D188: … (state pipe size and depth range) | E188: number (No.) | H188: =F188*G188 -> 0 | I188: X
C189: (b) | D189: … (state pipe size and depth range) | E189: number (No.) | H189: =F189*G189 -> 0 | I189: X
B190: C2.3.31.4 | D190: Other structures (state type etc. and drawing reference etc.) | I190: X
C191: (a) | D191: … (state pipe size and depth range) | E191: number (No.) | H191: =F191*G191 -> 0 | I191: X
C192: (b) | D192: … (state pipe size and depth range) | E192: number (No.) | H192: =F192*G192 -> 0 | I192: X
A193: C2.3.32 | D193: Covers and frames for water main manholes, valve and hydrant chambers and other structures
B194: C2.3.32.1 | D194: … (describe manhole or chamber and state type of cover and frame) | E194: number (No.) | H194: =F194*G194 -> 0 | I194: X
B195: C2.3.32.2 | D195: … (describe manhole or chamber and state type of cover and frame) | E195: number (No.) | H195: =F195*G195 -> 0 | I195: X
B196: C2.3.32.3 | D196: … (describe manhole or chamber and state type of cover and frame) | E196: number (No.) | H196: =F196*G196 -> 0 | I196: X
B197: C2.3.32.4 | D197: … etc. (insert additional items as required) | E197: number (No.) | H197: =F197*G197 -> 0 | I197: X
A198: C2.3.33 | D198: Water main accessories (anchor or thrust blocks, pedestals or marker posts etc.)
B199: C2.3.33.1 | D199: Anchor or thrust blocks (state type and drawing reference) | E199: number (No.) | H199: =F199*G199 -> 0 | I199: X
B200: C2.3.33.2 | D200: Anchor or thrust blocks (state type and drawing reference) | E200: cubic metre (m3) | H200: =F200*G200 -> 0 | I200: X
B201: C2.3.33.3 | D201: Pedestals (state type and drawing reference) | E201: number (No.) | H201: =F201*G201 -> 0 | I201: X
B202: C2.3.33.4 | D202: Pedestals (state type and drawing reference) | E202: cubic metre (m3) | H202: =F202*G202 -> 0 | I202: X
... 21 more rows

Sheet C2.4 (hidden)
A1: C2.4 | E1: ENERGY AND OTHER SERVICES
A2: ITEM | D2: DESCRIPTION | E2: UNIT | F2: QTY | G2: RATE | H2: AMT | I2: Note to compiler: Items requiring additional information to be provided by compiler is marked in this column by X.
A5: C2.4.1 | D5: Bedding for electric power cables using material:
B6: C2.4.1.1 | D6: Selected from the excavated trench material | E6: cubic metre (m3) | H6: =F6*G6 -> 0
B7: C2.4.1.2 | D7: Selected from other excavations on site | E7: cubic metre (m3) | H7: =F7*G7 -> 0
B8: C2.4.1.3 | D8: Selected from approved borrow areas | E8: cubic metre (m3) | H8: =F8*G8 -> 0
B9: C2.4.1.4 | D9: Selected from sources provided by the Contractor | E9: cubic metre (m3) | H9: =F9*G9 -> 0
B10: C2.4.1.5 | D10: From commercial sources
C11: (a) | D11: Uncrushed material (state material type) | E11: cubic metre (m3) | H11: =F11*G11 -> 0 | I11: X
C12: (b) | D12: Crushed stone material (state material type) | E12: cubic metre (m3) | H12: =F12*G12 -> 0 | I12: X
A13: C2.4.2 | D13: Concrete for bedding and encasement for electric power cables
B14: C2.4.2.1 | D14: Concrete bedding (Class C16/20-20 concrete) | E14: cubic metre (m3) | H14: =F14*G14 -> 0
B15: C2.4.2.2 | D15: Concrete encasement of cables (Class C16/20-20 concrete) | E15: cubic metre (m3) | H15: =F15*G15 -> 0
A16: C2.4.3 | D16: Cable laying accessories (warning tape, protection slabs, markers etc.)
B17: C2.4.3.1 | D17: Electrical warning tape (state type) | E17: metre (m) | H17: =F17*G17 -> 0 | I17: X
B18: C2.4.3.2 | D18: Concrete slab protection (state type and dimensions etc.) | E18: metre (m) | H18: =F18*G18 -> 0 | I18: X
B19: C2.4.3.3 | D19: Cable markers (state type) | E19: number (No.) | H19: =F19*G19 -> 0 | I19: X
B20: C2.4.3.4 | D20: Other accessories
C21: (a) | D21: … (state type) | E21: metre (m) | H21: =F21*G21 -> 0 | I21: X
C22: (b) | D22: … (state type) | E22: number (No.) | H22: =F22*G22 -> 0 | I22: X
A26: TOTAL CARRIED FORWARD TO SUMMARY | H26: =SUM(H5:H25) -> 0

Sheet C3.1_Drains
A1: C3.1 | E1: DRAINS
A2: ITEM | D2: DESCRIPTION | E2: UNIT | F2: QTY | G2: RATE | H2: AMT
A5: C3.1.1 | D5: Excavation for open drains:
B6: C3.1.1.1 | D6: Excavating all material situated within the following depth ranges below the surface level using conventional methods:
C7: (a) | D7: 0m to 1,5m | E7: cubic metre (m3) | F7: 450 | H7: =F7*G7 -> 0
C8: (b) | D8: Exceeding 1,5m and up to 3,0m | E8: cubic metre (m3) | H8: 0
C9: (c) | D9: Etc. in increments of 1,5m | E9: cubic metre (m3) | H9: 0
B10: C3.1.1.2 | D10: Extra over sub-item C3.1.1.1 for excavation in hard and boulder material, irrespective of depth | E10: cubic metre (m3) | F10: 150 | H10: 0
B11: C3.1.1.3 | D11: Extra over sub-item C3.1.1.1 for excavation in stabilised existing road layers, irrespective of depth | E11: cubic metre (m3) | H11: 0
B12: C3.1.1.4 | D12: Excavating soft material situated 0m to 1,5m below the surface level using labour enhanced construction methods | E12: cubic metre (m3) | H12: 0
B13: C3.1.1.5 | D13: Excavating intermediate material situated 0m to 1,5m below the surface level using labour enhanced construction methods | E13: cubic metre (m3) | F13: 150 | H13: 0
A14: C3.1.2 | D14: Clearing, shaping and disposal of accumulated sediment in existing unlined open drains
B15: C3.1.2.1 | D15: Using conventional methods | E15: cubic metre (m3) | H15: =F15*G15 -> 0
B16: C3.1.2.2 | D16: Using labour enhanced construction methods | E16: cubic metre (m3) | H16: =F16*G16 -> 0
A17: C3.1.3 | D17: Excavation, clearing and disposal of accumulated sediment in existing lined drains and drainage systems
B18: C3.1.3.1 | D18: Using conventional methods (up to 1,5m):
C19: (a) | D19: Manholes and inlet and outlet structures | E19: cubic metre (m3) | H19: =F19*G19 -> 0
C20: (b) | D20: Culvert barrels | E20: cubic metre (m3) | H20: =F20*G20 -> 0
C21: (c) | D21: Concrete or other lined side drains | E21: cubic metre (m3) | H21: =F21*G21 -> 0
B22: C3.1.3.2 | D22: Using conventional methods (in excess of 1,5m):
C23: (a) | D23: Manholes and inlet and outlet structures | E23: cubic metre (m3) | H23: =F23*G23 -> 0
C24: (b) | D24: Culvert barrels | E24: cubic metre (m3) | H24: =F24*G24 -> 0
C25: (c) | D25: Concrete or other lined side drains | E25: cubic metre (m3) | H25: =F25*G25 -> 0
B26: C3.1.3.3 | D26: Using labour enhanced construction methods:
C27: (a) | D27: Manholes and inlet and outlet structures | E27: cubic metre (m3) | H27: =F27*G27 -> 0
C28: (b) | D28: Culvert barrels | E28: cubic metre (m3) | H28: =F28*G28 -> 0
C29: (c) | D29: Concrete or other lined side drains | E29: cubic metre (m3) | H29: =F29*G29 -> 0
A30: C3.1.4 | D30: Excavation and disposal of material for subsoil drainage systems:
B31: C3.1.4.1 | D31: Excavating in all material situated within the following depth ranges below the surface:
C32: (a) | D32: 0m to 1,5m | E32: cubic metre (m3) | H32: =F32*G32 -> 0
C33: (b) | D33: Exceeding 1,5m and up to 3,0m | E33: cubic metre (m3) | H33: 0
C34: (c) | D34: Etc. in increments of 1,5m | E34: cubic metre (m3) | H34: 0
B35: C3.1.4.2 | D35: Excavating soft material situated within 0m to 1,5m below the surface level using labour enhanced construction methods | E35: cubic metre (m3) | H35: 0
B36: C3.1.4.3 | D36: Excavating intermediate material situated within 0m to 1,5m below the surface level using labour enhanced construction methods | E36: cubic metre (m3) | H36: 0
B37: C3.1.4.4 | D37: Extra over sub-item C3.1.4.1 for excavation in hard and boulder material, irrespective of depth | E37: cubic metre (m3) | H37: 0
B38: C3.1.4.5 | D38: Extra over sub-item C3.1.4.1 for excavation through stabilised existing road layers | E38: cubic metre (m3) | H38: 0
B39: C3.1.4.6 | D39: Excavation and disposal of material for composite in-plane fin-drain type drainage systems using a trenching machine:
C40: (a) | D40: Trench width of 300mm and depth of 1,5m | E40: metre (m) | H40: =F40*G40 -> 0
C41: (b) | D41: Etc. for width of … and depth of … | E41: metre (m) | H41: =F41*G41 -> 0
A42: C3.1.5 | D42: Impermeable backfilling to subsoil drainage systems
B43: C3.1.5.1 | D43: Un-stabilised natural gravel obtained from approved sources on the site | E43: cubic metre (m3) | H43: =F43*G43 -> 0
B44: C3.1.5.2 | D44: G5 material obtained from commercial sources | E44: cubic metre (m3) | H44: =F44*G44 -> 0
B45: C3.1.5.3 | D45: Extra over items C3.1.5.1 and C3.1.5.2 for stabilisation with 4,0% CEM II (32.5) cement | E45: cubic metre (m3) | H45: =F45*G45 -> 0
A46: C3.1.6 | D46: Construction of banks and dykes:
B47: C3.1.6.1 | D47: Banks and dykes using conventional methods | E47: cubic metre (m3) | H47: =F47*G47 -> 0
B48: C3.1.6.2 | D48: Banks and dykes using labour enhanced construction methods | E48: cubic metre (m3) | H48: =F48*G48 -> 0
A49: C3.1.7 | D49: Natural permeable material in subsoil drainage systems (approved crushed stone):
B50: C3.1.7.1 | D50: Crushed stone obtained from approved sources on the site (G1) | E50: cubic metre (m3) | H50: =F50*G50 -> 0
B51: C3.1.7.2 | D51: Crushed stone obtained from commercial sources (G1) | E51: cubic metre (m3) | H51: =F51*G51 -> 0
A52: C3.1.8 | D52: Natural permeable material in subsoil drainage systems (approved natural sand):
B53: C3.1.8.1 | D53: Natural sand obtained from approved sources (state grade & source) | E53: cubic metre (m3) | F53: 0 | H53: =F53*G53 -> 0
B54: C3.1.8.2 | D54: Natural sand from commercial sources (crushed stone) | E54: cubic metre (m3) | F54: 0 | H54: =F54*G54 -> 0
A55: C3.1.9 | D55: Pipes in subsoil drainage systems:
B56: C3.1.9.1 | D56: U-PVC pipes and fittings, normal duty, complete with couplings (state size and whether or not perforated or slotted) | E56: metre (m) | H56: =F56*G56 -> 0
A57: C3.1.10 | D57: Polymer film sheeting or similar approved material, for lining subsoil drainage systems:
B58: C3.1.10.1 | D58: 0,15mm thick | E58: square metre (m2) | H58: =F58*G58 -> 0
B59: C3.1.10.2 | D59: 0,25mm thick | E59: square metre (m2) | H59: =F59*G59 -> 0
A60: C3.1.11 | D60: Geotextiles (indicate type, grade, etc.) | E60: square metre (m2) | H60: =F60*G60 -> 0
A61: C3.1.12 | D61: Composite drainage systems
B62: C3.1.12.1 | D62: In-plane drainage systems (state size, type of core and type grade, etc. of geotextile) | E62: metre (m) | H62: =F62*G62 -> 0
B63: C3.1.12.2 | D63: Vertical subsoil strip drainage systems (100mm, u-PVC, wrapped in geotextile, 1,5m deep fins) | E63: metre (m) | F63: 1000 | H63: =F63*G63 -> 0
B64: C3.1.12.3 | D64: Panel drainage systems (100mm, u-PVC, wrapped in geotextile, 1m deep fins) | E64: metre (m) | H64: =F64*G64 -> 0
B65: C3.1.12.4 | D65: Alternative drainage systems as detailed in Contract Documentation (state size, type and other details) | E65: metre (m) | H65: =F65*G65 -> 0
A66: C3.1.13 | D66: Concrete outlet structures, manhole boxes, junction boxes and cleaning eyes for subsoil drainage systems:
B67: C3.1.13.1 | D67: Outlet structures (specify each type and drawing reference) | E67: number (No.) | F67: 2 | H67: =F67*G67 -> 0
B68: C3.1.13.2 | D68: Inspection boxes (specify each type and drawing reference) | E68: number (No.) | H68: =F68*G68 -> 0
B69: C3.1.13.3 | D69: Junction boxes (specify each type and drawing reference) | E69: number (No.) | F69: 7 | H69: =F69*G69 -> 0
B70: C3.1.13.4 | D70: Cleaning eyes (specify each type and drawing reference) | E70: number (No.) | F70: 1 | H70: =F70*G70 -> 0
A71: C3.1.14 | D71: Caps for subsoil drain pipes:
B72: C3.1.14.1 | D72: Concrete caps | E72: number (No.) | G72: R300.00 | H72: =F72*G72 -> 0
B73: C3.1.14.2 | D73: Cast metal iron caps | E73: number (No.) | H73: =F73*G73 -> 0
B74: C3.1.14.3 | D74: Other (Glass fibre reinforced, PVC etc.) (specify) | E74: number (No.) | H74: =F74*G74 -> 0
A75: C3.1.15 | D75: Repairing or replacing existing drainage systems | E75: provisional sum | F75: Prov | G75: Sum | H75: R300,000.00
A76: C3.1.16 | D76: Loading and hauling of material in excess of 1,0 km | E76: cubic metre - kilometre (m3 - km) | F76: 300 | H76: =F76*G76 -> 0
A77: C3.1.17 | D77: Backfilling existing eroded side drains | E77: cubic metre (m3) | H77: =F77*G77 -> 0
A78: C3.1.18 | D78: Backfilling of drains with selected material compacted to 93% of MDD prior to construction of concrete lining and/or stone pitched lining | E78: cubic metre (m3) | H78: =F78*G78 -> 0
A79: C3.1.19 | D79: Exposing of existing subsoil drains | E79: cubic metre (m3) | G79: R500.00 | H79: =F79*G79 -> 0
A80: C3.1.20 | D80: Breaking into existing drainage structures and install subsoil drain pipe | E80: number (No.) | G80: R1,000.00 | H80: =F80*G80 -> 0
A81: C3.1.21 | D81: Clearing of existing subsoil drains
B82: C3.1.21.1 | D82: Cleaning rod, brush and flushing | E82: metre (m) | G82: R500.00 | H82: =F82*G82 -> 0
B83: C3.1.21.2 | D83: Hydro jetting | E83: metre (m) | G83: R500.00 | H83: =F83*G83 -> 0
A84: C3.1.22 | D84: Test flushing of subsoil drain pipe systems | E84: number (No.) | G84: R500.00 | H84: =F84*G84 -> 0
A85: C3.1.23 | D85: Subsoil drain outlet marker (type or drawing specified) | E85: number (No.) | G85: R2,000.00 | H85: =F85*G85 -> 0
A86: C3.1.24 | D86: Submission of as built drawings by the Contractor | E86: provisional sum | F86: Prov | G86: Sum | H86: R100,000.00
A90: TOTAL CARRIED FORWARD TO SUMMARY | H90: =SUM(H5:H89) -> R400,000.00

Sheet C3.2_Culverts
A1: C3.2 | E1: CULVERTS
A2: ITEM | D2: DESCRIPTION | E2: UNIT | F2: QTY | G2: RATE | H2: AMT
A5: C3.2.1 | D5: Excavation for culvert structures:
B6: C3.2.1.1 | D6: Excavating in all material situated within the following depth ranges below the surface level:
C7: (a) | D7: 0m to 1,5m | E7: cubic metre (m3) | H7: =F7*G7 -> 0
C8: (b) | D8: Exceeding 1,5m and up to 3,0m | E8: cubic metre (m3) | H8: 0
C9: (c) | D9: Etc. in increments of 1,5m | E9: cubic metre (m3) | H9: 0
B10: C3.2.1.2 | D10: Excavating soft material 0m to 1,5m below the surface level using labour enhanced construction methods, or instructed by hand under Clause A3.2.7.2(d) | E10: cubic metre (m3) | H10: 0
B11: C3.2.1.3 | D11: Excavating intermediate material 0m to 1,5m below the surface level using labour enhanced construction methods, or instructed by hand under Clause A3.2.7.2(d) | E11: cubic metre (m3) | H11: 0
B12: C3.2.1.4 | D12: Extra over sub-item C3.2.1.1 for excavation in hard or boulder material, irrespective of depth | E12: cubic metre (m3) | H12: 0
B13: C3.2.1.5 | D13: Extra over sub-item C3.2.1.1 for excavation in stabilised existing road layers, irrespective of depth | E13: cubic metre (m3) | H13: 0
A14: C3.2.2 | D14: Backfilling
B15: C3.2.2.1 | D15: Using the excavated material | E15: cubic metre (m3) | F15: 154 | H15: =F15*G15 -> 0
B16: C3.2.2.2 | D16: Using imported selected material:
C17: (a) | D17: From commercial sources (State type) | E17: cubic metre (m3) | H17: =F17*G17 -> 0
C18: (b) | D18: From sources on site (State type) | E18: cubic metre (m3) | H18: =F18*G18 -> 0
B19: C3.2.2.3 | D19: Extra over sub-items C3.2.2.1 and C3.2.2.2 for soil cement backfilling
C20: (a) | D20: With wet mixture (specify cement content) of 3% cement | E20: cubic metre (m3) | H20: =F20*G20 -> 0
C21: (b) | D21: With dry mixture (specify cement content) of 3% cement | E21: cubic metre (m3) | H21: =F21*G21 -> 0
C22: (c) | D22: Variation in cement | E22: kilogram (kg) | H22: =F22*G22 -> 0
B23: C3.2.2.4 | D23: Extra over sub-items C3.2.2.1 and C3.2.2.2 for screed layers (class of concrete indicated) | E23: cubic metre (m3) | H23: =F23*G23 -> 0
A24: C3.2.3 | D24: Concrete pipe culverts:
B25: C3.2.3.1 | D25: On Class A bedding (type and diameter indicated) | E25: metre (m) | H25: =F25*G25 -> 0
B26: C3.2.3.2 | D26: On Class B bedding (type and diameter indicated) | E26: metre (m) | H26: =F26*G26 -> 0
B27: C3.2.3.3 | D27: On Class C bedding (type and diameter indicated) | H27: =F27*G27 -> 0
C28: (a) | D28: 450mm diameter | E28: metre (m) | F28: 285 | H28: =F28*G28 -> 0
C29: (b) | D29: 525mm diameter | E29: metre (m) | H29: 0
C30: (b) | D30: 600mm diameter | E30: metre (m) | F30: 0 | H30: 0
C31: (d) | D31: 825mm diameter | E31: metre (m) | H31: 0
C32: (c) | D32: 900mm diameter | E32: metre (m) | F32: 0 | H32: 0
B33: C3.2.3.4 | D33: On Class D bedding (type and diameter indicated) | E33: metre (m) | H33: =F33*G33 -> 0
B34: C3.2.3.5 | D34: Provision of skew ends of pipe culvert (type and diameter indicated) | E34: number (No.) | H34: =F34*G34 -> 0
A35: C3.2.4 | D35: Metal and U-PVC culverts:
B36: C3.2.4.1 | D36: … (size, wall thickness and type indicated) | E36: metre (m) | H36: =F36*G36 -> 0
B37: C3.2.4.2 | D37: Provision of skew or bevelled ends for metal culverts | E37: number (No.) | H37: =F37*G37 -> 0
B38: C3.2.4.3 | D38: Anchor bolts (size and type indicated) | E38: number (No.) | H38: =F38*G38 -> 0
B39: C3.2.4.4 | D39: Protective coating to metal culverts (culvert size; inside/outside/ both sides; coating type & thickness indicated) | E39: metre (m) | H39: =F39*G39 -> 0
A40: C3.2.5 | D40: Rectangular culverts with prefabricated elements:
B41: C3.2.5.1 | D41: Prefabricated portal culverts; wall and roof combination (size and type indicated) | H41: =F41*G41 -> 0
C42: (a) | D42: 1500mm X 450mm | E42: metre (m) | F42: 0 | H42: =F42*G42 -> 0
B43: C3.2.5.2 | D43: Prefabricated floor slabs (size and type indicated) | E43: metre (m) | H43: =F43*G43 -> 0
B44: C3.2.5.3 | D44: Prefabricated roof slabs (size and type indicated) | E44: metre (m) | H44: =F44*G44 -> 0
A45: C3.2.6 | D45: Extra over items C3.2.3, C3.2.4 and C3.2.5 for constructing inclined culverts | E45: metre (m) | H45: =F45*G45 -> 0
A46: C3.2.7 | D46: Cast in situ concrete and formwork:
B47: C3.2.7.1 | D47: In Class A bedding, screeds, concrete backfill and the encasing for pipes, including formwork (class of concrete indicated) | E47: cubic metre (m3) | H47: =F47*G47 -> 0
B48: C3.2.7.2 | D48: In complete in situ floor slabs for rectangular culverts, manholes and catchpits including formwork, joints and Class U2 surface finish (class of concrete indicated) (installed at a standard depth of 1,0m) | E48: cubic metre (m3) | H48: 0
B49: C3.2.7.3 | D49: In walls, excluding formwork but including Class U2 surface finish (class of concrete indicated) | E49: cubic metre (m3) | H49: 0
B50: C3.2.7.4 | D50: In roof slabs for rectangular culverts, excluding formwork but including Class U2 surfacing finish and joints (class of concrete indicated) | E50: cubic metre (m3) | H50: 0
B51: C3.2.7.5 | D51: In inlet and outlet structures including kerbs, chutes and downpipes, skewed ends, catchpits, manholes, thrust and anchor blocks, excluding formwork but including Class U2 surfacing finish (class of concrete indicated) | E51: cubic metre (m3) | H51: 0
B52: C3.2.7.6 | D52: Formwork of concrete under items C3.2.7.3 to 5 above (Class of finish indicated) | E52: square metre (m2) | H52: 0
B53: C3.2.7.7 | D53: Concrete linings for the inverts of metal culverts, including formwork and Class U2 surface finish (class of concrete indicated) | E53: cubic metre (m3) | H53: 0
A54: C3.2.8 | D54: Concrete backfill or encasement for culverts (Type and Class of concrete indicated) | E54: cubic metre (m3) | H54: 0
A55: C3.2.9 | D55: Prefabricated concrete inlets and outlets to culverts (size and type indicated) | H55: 0
C56: (a) | D56: Field outlets (as per detail Drawing) | E56: number (No.) | F56: 0 | H56: 0
A57: C3.2.10 | D57: Reinforcement:
B58: C3.2.10.1 | D58: Mild steel bars | E58: ton (t) | H58: =F58*G58 -> 0
B59: C3.2.10.2 | D59: High-tensile steel bars | E59: ton (t) | H59: =F59*G59 -> 0
B60: C3.2.10.3 | D60: Welded steel fabric | E60: kilogram (kg) | H60: =F60*G60 -> 0
B61: C3.2.10.4 | D61: Other material (specify) | E61: kilogram (kg) | H61: =F61*G61 -> 0
A62: C3.2.11 | D62: Anchoring of reinforcing steel: Reinforcing (type, bar diameter) into formed holes (hole diameter and depth stated) in (description of member) | E62: number (No.) | H62: =F62*G62 -> 0
A63: C3.2.12 | D63: Demolition of concrete members or elements:
B64: C3.2.12.1 | D64: Full member or element (location and description) | E64: cubic metre (m3) | H64: =F64*G64 -> 0
B65: C3.2.12.2 | D65: Partial member or element (location and description) | E65: cubic metre (m3) | H65: =F65*G65 -> 0
A66: C3.2.13 | D66: Removing and re-laying existing culverts:
B67: C3.2.13.1 | D67: Removing and stacking existing culverts for re-use (size and type indicated) | E67: metre (m) | H67: =F67*G67 -> 0
B68: C3.2.13.2 | D68: Removing and re-laying existing culverts without stacking (size and type of bedding indicated) | E68: metre (m) | H68: =F68*G68 -> 0
B69: C3.2.13.3 | D69: Re-laying existing culverts from stacking (size and type of bedding indicated) | E69: metre (m) | H69: =F69*G69 -> 0
A70: C3.2.14 | D70: Protective mastic asphalt coating for corrugated metal culvert units (state whether to be applied by brush or by spray gun) | E70: square metre (m2) | H70: =F70*G70 -> 0
A71: C3.2.15 | D71: Manholes and catch pits, with prefabricated elements
B72: C3.2.15.1 | D72: Prefabricated floors (installed at a standard depth of 1,0m):
C73: (a) | D73: … (size and type indicated) | E73: number (No.) | H73: =F73*G73 -> 0
C74: (b) | D74: … (size and type indicated etc.) | E74: number (No.) | H74: =F74*G74 -> 0
B75: C3.2.15.2 | D75: Prefabricated roofs:
C76: (a) | D76: … (size and type indicated) | E76: number (No.) | H76: =F76*G76 -> 0
C77: (b) | D77: … (size and type indicated etc.) | E77: number (No.) | H77: =F77*G77 -> 0
B78: C3.2.15.3 | D78: Prefabricated walls:
C79: (a) | D79: … (size and type indicated) | E79: metre (m) | H79: =F79*G79 -> 0
C80: (b) | D80: … (size and type indicated etc.) | E80: metre (m) | H80: =F80*G80 -> 0
B81: C3.2.15.4 | D81: Extra over item C3.2.15.1 and C3.2.7.2 for variations in the depths of all types of concrete manholes with prefabricated, or in situ concrete or brickwork wall combinations deeper than 1,0m designated for tendering purposes | E81: metre (m) | H81: =F81*G81 -> 0
A82: C3.2.16 | D82: Brickwork (Engineering bricks):
B83: C3.2.16.1 | D83: 115mm thick | E83: square metre (m2) | H83: =F83*G83 -> 0
B84: C3.2.16.2 | D84: 230mm thick | E84: square metre (m2) | H84: 0
B85: C3.2.16.3 | D85: 345mm thick | E85: square metre (m2) | H85: 0
B86: C3.2.16.4 | D86: … (specify thickness) | E86: square metre (m2) | H86: 0
A87: C3.2.17 | D87: Plaster | E87: square metre (m2) | H87: 0
A88: C3.2.18 | D88: Benching | E88: cubic metre (m3) | H88: 0
A89: C3.2.19 | D89: Accessories
B90: C3.2.19.1 | D90: Manhole frames (description and reference to drawing) | E90: number (No.) | H90: =F90*G90 -> 0
B91: C3.2.19.2 | D91: Inlet grids or covers (description and reference to drawing) | E91: number (No.) | H91: 0
B92: C3.2.19.3 | D92: Manhole frames (type, load bearing and SANS specification indicated) | E92: number (No.) | H92: 0
B93: C3.2.19.4 | D93: Manhole covers or gratings (type, load bearing and SANS specification indicated) | E93: number (No.) | H93: 0
B94: C3.2.19.5 | D94: Inlet channel frames (type, load bearing and SANS specification indicated) | H94: 0
C95: (a) | D95: 3m long | E95: number (No.) | F95: 0 | H95: 0
B96: C3.2.19.6 | D96: Inlet channel gratings (type, load bearing and SANS specification indicated) | E96: number (No.) | H96: 0
B97: C3.2.19.7 | D97: Step irons (description and SANS specification indicated) | E97: number (No.) | H97: 0
B98: C3.2.19.8 | D98: Junction boxes (Complete as per Standard Drawing, including excavations, backfilling, covers and frames.) | E98: number (No.) | F98: 7 | H98: 0
A99: C3.2.20 | D99: Anchors for pipes (description) | E99: number (No.) | H99: 0
A100: C3.2.21 | D100: Prefabricated reinforced-concrete skew end units for concrete culverts constructed at a skew angle (type and dimensions of unit and class of bedding indicated) | E100: number (No.) | H100: 0
A101: C3.2.22 | D101: Cutting of concrete pipes (diameter indicated) | E101: number (No.) | H101: 0
A102: C3.2.23 | D102: Breaking into existing drainage structures and building in pipes or culverts of the following size (pipe diameter and/or culvert size to be stated) | E102: number (No.) | H102: 0
A103: C3.2.24 | D103: Compaction of bedding for inlets, outlets, manholes and catchpits:
B104: C3.2.24.1 | D104: Preparation and compaction of in situ bedding material to 90% of MDD (depth indicated) | E104: cubic metre (m3) | H104: =F104*G104 -> 0
B105: C3.2.24.2 | D105: Extra-over sub-item C3.2.24.1 for compaction to 93% of MDD (depth indicated) | E105: cubic metre (m3) | H105: =F105*G105 -> 0
A106: C3.2.25 | D106: Painting of exposed steel bars with two coats of zinc rich primer (Type specified) | E106: litre (ℓ) | H106: =F106*G106 -> 0
A107: C3.2.26 | D107: Repair with cementitious mortar or concrete (class) to (description) | E107: litre (ℓ) | H107: =F107*G107 -> 0
A108: C3.2.27 | D108: Repair with epoxy mortar | E108: litre (ℓ) | H108: =F108*G108 -> 0
A110: PC3.2.28 | D110: Continuous Grid Inlet | E110: m | F110: 30 | H110: =F110*G110 -> 0
A112: TOTAL CARRIED FORWARD TO SUMMARY | H112: =SUM(H5:H111) -> 0

Sheet C3.3_Concrete kerb
A1: C3.3 | E1: CONCRETE KERBING AND CHANNELING, ASPHALT BERMS, CHUTES, DOWNPIPES, AS WELL AS CONCRETE, STONE PITCHED AND GABION LININGS FOR OPEN DRAINS
A2: ITEM | D2: DESCRIPTION | E2: UNIT | F2: QTY | G2: RATE | H2: AMT
A5: C3.3.1 | D5: Concrete kerbing:
B6: C3.3.1.1 | D6: Prefabricated kerbing (Class 30/20, refer to dawwing no. Klip002/RD04/TP01)
C7: (a) | D7: Fig 3 | E7: metre (m) | G7: R260.00 | H7: =F7*G7 -> 0
C8: (b) | D8: Fig 8b | E8: metre (m) | G8: R260.00 | H8: =F8*G8 -> 0
B9: C3.3.1.2 | D9: Cast in situ kerbing
C10: (a) | D10: Fig 3 | E10: metre (m) | G10: R260.00 | H10: =F10*G10 -> 0
C11: (b) | D11: Fig 8b | E11: metre (m) | G11: R260.00 | H11: =F11*G11 -> 0
A12: C3.3.2 | D12: Concrete kerbing-channeling combination:
B13: C3.3.2.1 | D13: Prefabricated kerbing-channeling (Class 30/20, refer to dawwing no. Klip002/RD04/TP01)
C14: (a) | D14: Fig 3 and 200mm Channel | E14: metre (m) | G14: R260.00 | H14: =F14*G14 -> 0
C15: (b) | D15: Fig 8b and 200mm Channel | E15: metre (m) | G15: R260.00 | H15: =F15*G15 -> 0
B16: C3.3.2.2 | D16: Cast in situ kerbing-channeling (Class 30/20, refer to dawwing no. Klip002/RD04/TP01)
C17: (a) | D17: Fig 3 and 200mm Channel | E17: metre (m) | G17: R260.00 | H17: =F17*G17 -> 0
C18: (b) | D18: Fig 8b and 200mm Channel | E18: metre (m) | G18: R260.00 | H18: =F18*G18 -> 0
A19: C3.3.3 | D19: Extra over items C3.3.1 and C3.3.2 for concrete kerbing or concrete kerbing and channeling on curves
B20: C3.3.3.1 | D20: On curves of radii more than or equal to 5,0m but less than 20m | E20: metre (m) | G20: R260.00 | H20: =F20*G20 -> 0
B21: C3.3.3.2 | D21: On curves with radii more than or equal to 1,0m but less than 5,0m | E21: metre (m) | G21: R260.00 | H21: =F21*G21 -> 0
B22: C3.3.3.3 | D22: On curves with radii less than 1,0m | E22: metre (m) | H22: =F22*G22 -> 0
A23: C3.3.4 | D23: Extra over item C3.3.2 for drop kerbs at pedestrian crossings and driveways | E23: metre (m) | H23: =F23*G23 -> 0
A24: C3.3.5 | D24: Asphalt berms
B25: C3.3.5.1 | D25: Asphalt berms placed where there are no vehicle restraint systems (drawing reference indicated) | E25: metre (m) | H25: =F25*G25 -> 0
B26: C3.3.5.2 | D26: Asphalt berms placed at existing vehicle restraint systems (drawing reference indicated) | E26: metre (m) | H26: =F26*G26 -> 0
B27: C3.3.5.3 | D27: Prime coat (type indicated) | E27: square metre (m2) | H27: =F27*G27 -> 0
B28: C3.3.5.4 | D28: Bond coat (type indicated) | E28: square metre (m2) | H28: =F28*G28 -> 0
A29: C3.3.6 | D29: Concrete chutes (typical designs):
B30: C3.3.6.1 | D30: Prefabricated concrete chutes (description of type with reference to drawing) | E30: metre (m) | H30: =F30*G30 -> 0
B31: C3.3.6.2 | D31: Cast in situ concrete chutes (description, with reference to drawing and class of concrete and finish indicated) | E31: metre (m) | H31: =F31*G31 -> 0
B32: C3.3.6.3 | D32: Stone pitched chutes (description with reference to drawing and class of concrete indicated) | E32: metre (m) | H32: =F32*G32 -> 0
A33: C3.3.7 | D33: Cast in situ concrete chutes (measured by components):
B34: C3.3.7.1 | D34: Concrete (C25/30-20) | E34: cubic metre (m3) | H34: =F34*G34 -> 0
B35: C3.3.7.2 | D35: Formwork (surface finish indicated) | E35: square metre (m2) | H35: =F35*G35 -> 0
B36: C3.3.7.3 | D36: Stone pitched chutes
C37: (a) | D37: Grouted stone pitching (type of chute indicated) | E37: square metre (m2) | H37: =F37*G37 -> 0
C38: (b) | D38: Grouted stone pitching on a concrete bed (class of concrete and type of chute indicated) | E38: square metre (m2) | H38: =F38*G38 -> 0
A39: C3.3.8 | D39: Linings for open drains:
B40: C3.3.8.1 | D40: Cast in situ concrete lining (120mm thick Concrete Lining class 25 Mpa) | E40: cubic metre (m3) | F40: 275 | H40: =F40*G40 -> 0
B41: C3.3.8.2 | D41: Class U2 surface finish to cast in situ concrete (Type E) | E41: square metre (m2) | H41: =F41*G41 -> 0
B42: C3.3.8.3 | D42: Stone pitched lining (200mm thickness)
C43: (a) | D43: Grouted stone pitching (type of open drain indicated) | E43: square metre (m2) | H43: =F43*G43 -> 0
C44: (b) | D44: Grouted stone pitching on a concrete bed (class of concrete and type of open drain indicated) | E44: square metre (m2) | H44: =F44*G44 -> 0
A45: C3.3.9 | D45: Formwork to cast in situ concrete lining for open drains (Class F2 surface finish):
B46: C3.3.9.1 | D46: To sides with formwork on the internal face only | E46: square metre (m2) | H46: =F46*G46 -> 0
B47: C3.3.9.2 | D47: To sides with formwork on both internal and external faces (each face measured) | E47: square metre (m2) | H47: =F47*G47 -> 0
B48: C3.3.9.3 | D48: To ends of slabs | E48: square metre (m2) | H48: =F48*G48 -> 0
A49: C3.3.10 | D49: Sealed joints in concrete and stone pitched linings of open drains (description of each type with reference to drawing) | E49: metre (m) | H49: =F49*G49 -> 0
A50: C3.3.11 | D50: Concrete screed or backfill below chutes (thickness and class of concrete indicated) | E50: cubic metre (m3) | H50: =F50*G50 -> 0
A51: C3.3.12 | D51: Reinforcement:
B52: C3.3.12.1 | D52: Mild steel bars | E52: ton (t) | H52: =F52*G52 -> 0
B53: C3.3.12.2 | D53: High-tensile steel bars | E53: ton (t) | H53: 0
B54: C3.3.12.3 | D54: Welded steel fabric | E54: kilogram (kg) | H54: 0
B55: C3.3.12.4 | D55: Mesh Ref 395 | E55: square metre (m2) | F55: 2250 | H55: 0
A56: C3.3.13 | D56: Polymer film sheeting (thickness specified) for concrete-lined open drains | E56: square metre (m2) | H56: 0
A57: C3.3.14 | D57: Cutting bituminous surfacing and pavement layers for concrete kerbing, channeling or concrete-lined drains | E57: metre (m) | H57: 0
A58: C3.3.15 | D58: Energy dissipaters in outlet structures
B59: C3.3.15.1 | D59: Precast concrete blocks in outlet structures | E59: number (No.) | H59: =F59*G59 -> 0
B60: C3.3.15.2 | D60: Stones set in outlet structures | E60: square metre (m2) | H60: =F60*G60 -> 0
A61: C3.3.16 | D61: Demolition and removal of existing kerbs and/or channel (1m x 0,5m x 0,4m) | E61: cubic metre (m3) | F61: 3 | H61: =F61*G61 -> 0
A65: TOTAL CARRIED FORWARD TO SUMMARY | H65: =SUM(H5:H64) -> 0

Sheet C4.1 (hidden)
A1: C4.1 | E1: BORROW MATERIALS
A2: ITEM | D2: DESCRIPTION | E2: UNIT | F2: QTY | G2: RATE | H2: AMT | I2: Note to compiler: Items requiring additional information to be provided by compiler is marked in this column by X.
A5: C4.1.1 | D5: Compiling and implementing M&U plans
B6: C4.1.1.1 | D6: For borrow pits (list all borrow pits separately) | E6: number (No.) | H6: =F6*G6 -> 0 | I6: X
B7: C4.1.1.2 | D7: For quarries (list all quarries separately) | E7: number (No.) | H7: =F7*G7 -> 0 | I7: X
A8: C4.1.2 | D8: Additional material investigations during the supplementary exploration
B9: C4.1.2.1 | D9: Cost of additional trial pits and/or drilling and laboratory testing | E9: provisional sum | F9: Prov | G9: sum
B10: C4.1.2.2 | D10: Handling costs and profit in respect of item C4.1.2.1 | E10: percentage (%) | F10: =H9 -> 0 | H10: =F10*G10 -> 0
A11: C4.1.3 | D11: Construction and maintenance of temporary haul and access roads
B12: C4.1.3.1 | D12: Temporary unsealed roads | E12: kilometre (km) | H12: =F12*G12 -> 0
B13: C4.1.3.2 | D13: Cost to repair existing public roads or streets | E13: provisional sum | F13: Prov | G13: sum
B14: C4.1.3.3 | D14: Handling cost and profit in respect of item C4.1.3.2 | E14: percentage (%) | F14: =H13 -> 0 | H14: =F14*G14 -> 0
A15: C4.1.4 | D15: Removing of the overburden
B16: C4.1.4.1 | D16: In borrow pits | E16: cubic metre (m3) | H16: =F16*G16 -> 0
B17: C4.1.4.2 | D17: In quarries:
C18: (a) | D18: Soft material | E18: cubic metre (m3) | H18: =F18*G18 -> 0
C19: (b) | D19: Hard material (by blasting) | E19: cubic metre (m3) | H19: =F19*G19 -> 0
A20: C4.1.5 | D20: Excavating of materials in the borrow pits and quarries, material obtained from
B21: C4.1.5.1 | D21: Soft excavation | E21: cubic metre (m3) | H21: =F21*G21 -> 0
B22: C4.1.5.2 | D22: Boulder excavation class A | E22: cubic metre (m3) | H22: =F22*G22 -> 0
B23: C4.1.5.3 | D23: Boulder excavation class B | E23: cubic metre (m3) | H23: =F23*G23 -> 0
B24: C4.1.5.4 | D24: Hard excavation (other than by blasting) | E24: cubic metre (m3) | H24: =F24*G24 -> 0
B25: C4.1.5.5 | D25: Hard excavation (by blasting) | E25: cubic metre (m3) | H25: =F25*G25 -> 0
A26: C4.1.6 | D26: Providing crushing, screening and related plants
B27: C4.1.6.1 | D27: Single-stage crushing plant | E27: number (No.) | H27: =F27*G27 -> 0
B28: C4.1.6.2 | D28: Two-stage crushing plant | E28: number (No.) | H28: =F28*G28 -> 0
B29: C4.1.6.3 | D29: Multiple-stage crushing and screening plant | E29: number (No.) | H29: =F29*G29 -> 0
B30: C4.1.6.4 | D30: Screening plant | E30: number (No.) | H30: =F30*G30 -> 0
B31: C4.1.6.5 | D31: … etc, for other plants (as stated by the Engineer and/or the Contractor) | E31: number (No.) | H31: =F31*G31 -> 0 | I31: X
A32: C4.1.7 | D32: Producing the material by
B33: C4.1.7.1 | D33: Single-stage crushing | E33: cubic metre (m3) | H33: =F33*G33 -> 0
B34: C4.1.7.2 | D34: Two-stage crushing | E34: cubic metre (m3) | H34: =F34*G34 -> 0
B35: C4.1.7.3 | D35: Multiple-stage crushing including screening | E35: cubic metre (m3) | H35: =F35*G35 -> 0
B36: C4.1.7.4 | D36: Screening only | E36: cubic metre (m3) | H36: =F36*G36 -> 0
B37: C4.1.7.5 | D37: … etc, for other plants (as stated by the Engineer and/or the Contractor) | E37: cubic metre (m3) | H37: =F37*G37 -> 0 | I37: X
A38: C4.1.8 | D38: Moving and re-erecting the crushing, screening and related plants on the site
B39: C4.1.8.1 | D39: Single-stage crushing plant | E39: number (No.) | H39: =F39*G39 -> 0
B40: C4.1.8.2 | D40: Two-stage crushing plant | E40: number (No.) | H40: 0
B41: C4.1.8.3 | D41: Multiple-stage crushing and screening plant | E41: number (No.) | H41: 0
B42: C4.1.8.4 | D42: Screening plant | E42: number (No.) | H42: 0
B43: C4.1.8.5 | D43: … etc, for other plants (as stated by the Engineer and/or the Contractor) | E43: number (No.) | H43: 0 | I43: X
A44: C4.1.9 | D44: Breaking down oversize material | E44: cubic metre (m3) | H44: 0
A45: C4.1.10 | D45: Compacting the floor of the stockpile sites | E45: cubic metre (m3) | H45: 0
A46: C4.1.11 | D46: Constructing a platform for the stockpile site | E46: cubic metre (m3) | H46: 0
A47: C4.1.12 | D47: Stockpiling the material
B48: C4.1.12.1 | D48: Material from a producing plant | E48: cubic metre (m3) | H48: =F48*G48 -> 0
B49: C4.1.12.2 | D49: Material directly from the excavation | E49: cubic metre (m3) | H49: =F49*G49 -> 0
A50: C4.1.13 | D50: Removing surplus material from the stockpile | E50: cubic metre (m3) | H50: =F50*G50 -> 0
A51: C4.1.14 | D51: Removing the fill platform and temporary banks at the stockpile sites upon completion
B52: C4.1.14.1 | D52: Fill platform | E52: cubic metre (m3) | H52: =F52*G52 -> 0
B53: C4.1.14.2 | D53: Temporary banks | E53: cubic metre (m3) | H53: =F53*G53 -> 0
A54: C4.1.15 | D54: Shaping and finishing the borrow pit and quarry areas, and the stockpile sites
B55: C4.1.15.1 | D55: Shaping and finishing the borrow pit and quarry areas, and the stockpile sites:
C56: (a) | D56: Borrow pits (list all borrow pits separately) | E56: hectare (ha) | H56: =F56*G56 -> 0 | I56: X
C57: (b) | D57: Quarries (list all quarries separately) | E57: hectare (ha) | H57: =F57*G57 -> 0 | I57: X
C58: (c) | D58: Stockpile sites | E58: hectare (ha) | H58: =F58*G58 -> 0
B59: C4.1.15.2 | D59: Finishing of the borrow pit and quarry areas, and the stockpile sites using labour enhanced methods of construction:
C60: (a) | D60: Borrow pits (list all borrow pits separately) | E60: hectare (ha) | H60: =F60*G60 -> 0 | I60: X
C61: (b) | D61: Quarries (list all quarries separately) | E61: hectare (ha) | H61: =F61*G61 -> 0 | I61: X
C62: (c) | D62: Stockpile sites | E62: hectare (ha) | H62: =F62*G62 -> 0
A63: C4.1.16 | D63: Personnel
B64: C4.1.16.1 | D64: Materials manager | E64: month | H64: =F64*G64 -> 0
B65: C4.1.16.2 | D65: Excavation controller | E65: month | H65: =F65*G65 -> 0
B66: C4.1.16.3 | D66: Stockpile controller | E66: month | H66: =F66*G66 -> 0
A67: C4.1.17 | D67: Weighbridge facility
B68: C4.1.17.1 | D68: Providing, erecting and removal of a weighbridge facility | E68: lump sum | F68: lump | G68: sum
B69: C4.1.17.2 | D69: Operating the weighbridge | E69: month | H69: =F69*G69 -> 0
A70: C4.1.18 | D70: Compensation to landowners or legal occupants in respect of land acquisition, royalties and/or loss of crops
B71: C4.1.18.1 | D71: Amount allowed, expenditure to be approved or instructed by the Employer | E71: provisional sum | F71: Prov | G71: Sum
B72: C4.1.18.2 | D72: Handling costs and profit in respect of item C4.1.18.1 | E72: percentage (%) | F72: =H71 -> 0 | H72: =F72*G72 -> 0
A73: C4.1.19 | D73: Excavating hard material | E73: cubic metre (m3) or ton (t) | H73: =F73*G73 -> 0
A74: C4.1.20 | D74: Producing the material by
B75: C4.1.20.1 | D75: Single stage crushing | E75: cubic metre (m3) or ton (t) | H75: =F75*G75 -> 0
B76: C4.1.20.2 | D76: Multi-stage crushing and screening | E76: cubic metre (m3) or ton (t) | H76: =F76*G76 -> 0
A77: C4.1.21 | D77: Stockpiling the crushed material | E77: cubic metre (m3) or ton (t) | H77: =F77*G77 -> 0
A81: TOTAL CARRIED FORWARD TO SUMMARY | H81: =SUM(H5:H80) -> 0

Sheet C4.2 (hidden)
A1: C4.2 | E1: CUT MATERIALS
A2: ITEM | D2: DESCRIPTION | E2: UNIT | F2: QTY | G2: RATE | H2: AMT | I2: Note to compiler: Items requiring additional information to be provided by compiler is marked in this column by X.
A5: C4.2.1 | D5: Compiling and implementing M&U plans for the cuttings
B6: C4.2.1.1 | D6: Cuttings exceeding 5 000 m3 up to 10 000 m3 | E6: number (No.) | H6: =F6*G6 -> 0
B7: C4.2.1.2 | D7: Cuttings exceeding 10 000 m3 up to 20 000 m3 | E7: number (No.) | H7: =F7*G7 -> 0
B8: C4.2.1.3 | D8: Cuttings exceeding 20 000 m3 up to 50 000 m3 | E8: number (No.) | H8: =F8*G8 -> 0
B9: C4.2.1.4 | D9: Cuttings exceeding 50 000 m3 up to 100 000 m3 | E9: number (No.) | H9: =F9*G9 -> 0
B10: C4.2.1.5 | D10: Cuttings larger than 100 000 m3 | E10: number (No.) | H10: =F10*G10 -> 0
A11: C4.2.2 | D11: Additional material investigations during the supplementary exploration
B12: C4.2.2.1 | D12: Cost of additional trial pits and/or drilling and laboratory testing | E12: provisional sum | F12: Prov | G12: Sum
B13: C4.2.2.2 | D13: Handling costs and profit in respect of item C4.2.2.1 | E13: percentage (%) | F13: =H12 -> 0 | H13: =F13*G13 -> 0
A14: C4.2.3 | D14: Excavating of materials in cuttings, material obtained from
B15: C4.2.3.1 | D15: Soft excavation | E15: cubic metre (m3) | H15: =F15*G15 -> 0
B16: C4.2.3.2 | D16: Boulder excavation class A | E16: cubic metre (m3) | H16: =F16*G16 -> 0
B17: C4.2.3.3 | D17: Boulder excavation class B | E17: cubic metre (m3) | H17: =F17*G17 -> 0
B18: C4.2.3.4 | D18: Hard excavation (other than by blasting) | E18: cubic metre (m3) | H18: =F18*G18 -> 0
B19: C4.2.3.5 | D19: Hard excavation (by blasting) | E19: cubic metre (m3) | H19: =F19*G19 -> 0
A20: C4.2.4 | D20: Excavating of materials in box cuts, material obtained from
B21: C4.2.4.1 | D21: Soft excavation | E21: cubic metre (m3) | G21: R350.00 | H21: =F21*G21 -> 0
B22: C4.2.4.2 | D22: Boulder excavation class A | E22: cubic metre (m3) | H22: =F22*G22 -> 0
B23: C4.2.4.3 | D23: Boulder excavation class B | E23: cubic metre (m3) | H23: =F23*G23 -> 0
B24: C4.2.4.4 | D24: Hard excavation (other than by blasting) | E24: cubic metre (m3) | H24: =F24*G24 -> 0
B25: C4.2.4.5 | D25: Hard excavation (by blasting) | E25: cubic metre (m3) | H25: =F25*G25 -> 0
A26: C4.2.5 | D26: Excavating of materials in designated excavations, material obtained from
B27: C4.2.5.1 | D27: Soft excavation | E27: cubic metre (m3) | H27: =F27*G27 -> 0
B28: C4.2.5.2 | D28: Boulder excavation class A | E28: cubic metre (m3) | H28: =F28*G28 -> 0
B29: C4.2.5.3 | D29: Boulder excavation class B | E29: cubic metre (m3) | H29: =F29*G29 -> 0
B30: C4.2.5.4 | D30: Hard excavation (other than by blasting) | E30: cubic metre (m3) | H30: =F30*G30 -> 0
B31: C4.2.5.5 | D31: Hard excavation (by blasting) | E31: cubic metre (m3) | H31: =F31*G31 -> 0
A32: C4.2.6 | D32: Widening of existing cuttings
B33: C4.2.6.1 | D33: Soft excavation | E33: cubic metre (m3) | H33: =F33*G33 -> 0
B34: C4.2.6.2 | D34: Boulder excavation class A | E34: cubic metre (m3) | H34: =F34*G34 -> 0
B35: C4.2.6.3 | D35: Boulder excavation class B | E35: cubic metre (m3) | H35: =F35*G35 -> 0
B36: C4.2.6.4 | D36: Hard excavation (other than by blasting) | E36: cubic metre (m3) | H36: =F36*G36 -> 0
B37: C4.2.6.5 | D37: Hard excavation (by blasting) | E37: cubic metre (m3) | H37: =F37*G37 -> 0
A38: C4.2.7 | D38: Removal of unsuitable stable cut material to spoil
B39: C4.2.7.1 | D39: In layer thicknesses of 200mm and less | E39: cubic metre (m3) | H39: =F39*G39 -> 0
B40: C4.2.7.2 | D40: In layer thicknesses exceeding 200mm | E40: cubic metre (m3) | H40: =F40*G40 -> 0
A41: C4.2.8 | D41: Excavate material to spoil in sites designated by the Employer, material obtained from
B42: C4.2.8.1 | D42: Soft excavation, overburden and unsuitable material | E42: cubic metre (m3) | H42: =F42*G42 -> 0
B43: C4.2.8.2 | D43: Boulder excavation class A | E43: cubic metre (m3) | H43: =F43*G43 -> 0
B44: C4.2.8.3 | D44: Boulder excavation class B | E44: cubic metre (m3) | H44: =F44*G44 -> 0
B45: C4.2.8.4 | D45: Hard excavation (other than by blasting) | E45: cubic metre (m3) | H45: =F45*G45 -> 0
B46: C4.2.8.5 | D46: Hard excavation (by blasting) | E46: cubic metre (m3) | H46: =F46*G46 -> 0
A47: C4.2.9 | D47: Excavate material to spoil in sites designated by the Contractor, material obtained from
B48: C4.2.9.1 | D48: Soft excavation, overburden and unsuitable material | E48: cubic metre (m3) | H48: =F48*G48 -> 0
B49: C4.2.9.2 | D49: Boulder excavation class A | E49: cubic metre (m3) | H49: =F49*G49 -> 0
B50: C4.2.9.3 | D50: Boulder excavation class B | E50: cubic metre (m3) | H50: =F50*G50 -> 0
B51: C4.2.9.4 | D51: Hard excavation (other than by blasting) | E51: cubic metre (m3) | H51: =F51*G51 -> 0
B52: C4.2.9.5 | D52: Hard excavation (by blasting) | E52: cubic metre (m3) | H52: =F52*G52 -> 0
A53: C4.2.10 | D53: Backfilling of the unavoidable overbreak in hard and boulder excavation
B54: C4.2.10.1 | D54: Compliant gravel material | E54: cubic metre (m3) | H54: =F54*G54 -> 0
B55: C4.2.10.2 | D55: Soil cement (stiff mix with 3% cement) | E55: cubic metre (m3) | H55: =F55*G55 -> 0
B56: C4.2.10.3 | D56: Soil cement (wet mix with 5% cement) | E56: cubic metre (m3) | H56: =F56*G56 -> 0
B57: C4.2.10.4 | D57: Concrete class 15 MPa | E57: cubic metre (m3) | H57: =F57*G57 -> 0
A58: C4.2.11 | D58: Breaking down oversize material | E58: cubic metre (m3) | H58: =F58*G58 -> 0
A59: C4.2.12 | D59: Finishing the side slopes
B60: C4.2.12.1 | D60: Cuttings:
C61: (a) | D61: In soft material | E61: square metre (m2) | H61: =F61*G61 -> 0
C62: (b) | D62: In boulder material class A and B | E62: square metre (m2) | H62: 0
C63: (c) | D63: In hard material | E63: square metre (m2) | H63: 0
C64: (d) | D64: In soft material using labour enhanced methods of construction | E64: square metre (m2) | H64: 0
B65: C4.2.12.2 | D65: Designated excavations | E65: square metre (m2) | H65: 0
B66: C4.2.12.3 | D66: Designated excavations using labour enhanced methods of construction | E66: square metre (m2) | H66: 0
A70: TOTAL CARRIED FORWARD TO SUMMARY | H70: =SUM(H5:H69) -> 0

Sheet C4.3_Existing road mat (hidden)
A1: C4.3 | F1: EXISTING ROAD MATERIALS
A2: ITEM | E2: DESCRIPTION | F2: UNIT | G2: QTY | H2: RATE | I2: AMT | J2: Note to compiler: Items requiring additional information to be provided by compiler is marked in this column by X.
A5: C4.3.1 | E5: Additional material investigations
B6: C4.3.1.1 | E6: Cost of additional core drilling and trial pits, sampling of asphalt and laboratory testing | F6: provisional sum | G6: Prov | H6: Sum
B7: C4.3.1.2 | E7: Handling cost and profit in respect of item C4.3.1.1 | F7: percentage (%) | G7: =I6 -> 0 | I7: =G7*H7 -> 0
A8: C4.3.2 | E8: Cleaning the existing road surface
B9: C4.3.2.1 | E9: Cost to clean the road surface | F9: provisional sum | G9: Prov | H9: Sum
B10: C4.3.2.2 | E10: Handling costs and profit in respect of item C4.3.2.1 | F10: percentage (%) | G10: =I9 -> 0 | I10: =G10*H10 -> 0
A11: C4.3.3 | E11: Removal of bituminous seal surfacing (thickness not exceeding 30mm) | F11: square metre (m2) | I11: =G11*H11 -> 0
A12: C4.3.4 | E12: Saw-cutting existing materials within the following average depth ranges
B13: C4.3.4.1 | E13: Asphalt material:
C14: (a) | E14: Up to 50mm | F14: metre (m) | I14: =G14*H14 -> 0
C15: (b) | E15: Exceeding 50mm and up to 100mm | F15: metre (m) | I15: =G15*H15 -> 0
C16: (c) | E16: Etc. in 50mm increments | I16: =G16*H16 -> 0 | J16: X
B17: C4.3.4.2 | E17: Crushed stone and gravel material:
C18: (a) | E18: Up to 100mm | F18: metre (m) | I18: =G18*H18 -> 0
C19: (b) | E19: Exceeding 100mm and up to 200mm | F19: metre (m) | I19: =G19*H19 -> 0
C20: (c) | E20: Etc. in 100mm increments | I20: =G20*H20 -> 0 | J20: X
B21: C4.3..4.3 | E21: Cemented material:
C22: (a) | E22: Up to 100mm | F22: metre (m) | I22: =G22*H22 -> 0
C23: (b) | E23: Exceeding 100mm and up to 200mm | F23: metre (m) | I23: =G23*H23 -> 0
C24: (c) | E24: Etc. in 100mm increments | I24: =G24*H24 -> 0 | J24: X
B25: C4.3.4.4 | E25: Concrete material:
C26: (a) | E26: Up to 50mm | F26: metre (m) | I26: =G26*H26 -> 0
C27: (b) | E27: Exceeding 50mm and up to 100mm | F27: metre (m) | I27: =G27*H27 -> 0
C28: (c) | E28: Etc. in 50mm increments | I28: =G28*H28 -> 0 | J28: X
A29: C4.3.5 | E29: Providing the milling machine on the site
B30: C4.3.5.1 | E30: Small milling machine with a cutting width of 1,2m or smaller | F30: number (No.) | I30: =G30*H30 -> 0
B31: C4.3.5.2 | E31: Large milling machine with a cutting width exceeding 1,2m | F31: number (No.) | H31: R100,000.00 | I31: =G31*H31 -> 0
A32: C4.3.6 | E32: Milling and removal of existing asphalt layers with an average milling depth (Contractor takes ownership)
B33: C4.3.6.1 | E33: Not exceeding 50mm | F33: cubic metre (m3) | H33: R350.00 | I33: =G33*H33 -> 0
B34: C4.3.6.2 | E34: Exceeding 50mm but not exceeding 100mm | F34: cubic metre (m3) | H34: R350.00 | I34: =G34*H34 -> 0
B35: C4.3.6.3 | E35: Exceeding 100mm | F35: cubic metre (m3) | H35: R350.00 | I35: =G35*H35 -> 0
A36: C4.3.7 | E36: Milling and removal of existing asphalt layers with an average milling depth (Employer takes ownership)
B37: C4.3.7.1 | E37: Not exceeding 50mm | F37: cubic metre (m3) | H37: R360.00 | I37: =G37*H37 -> 0
B38: C4.3.7.2 | E38: Exceeding 50mm but not exceeding 100mm | F38: cubic metre (m3) | H38: R360.00 | I38: 0
B39: C4.3.7.3 | E39: Exceeding 100mm | F39: cubic metre (m3) | H39: R360.00 | I39: 0
A40: C4.3.8 | E40: Excavating material by milling | I40: 0
B41: C4.3.8.1 | E41: Crushed stone material | F41: cubic metre (m3) | H41: R350.00 | I41: =G41*H41 -> 0
B42: C4.3.8.2 | E42: Cemented material | F42: cubic metre (m3) | H42: R400.00 | I42: =G42*H42 -> 0
B43: C4.3.8.3 | E43: Natural gravel material | F43: cubic metre (m3) | I43: =G43*H43 -> 0
A44: C4.3.9 | E44: Excavating material by using conventional road construction equipment
B45: C4.3.9.1 | E45: Asphalt material | F45: cubic metre (m3) | H45: R400.00 | I45: =G45*H45 -> 0
B46: C4.3.9.2 | E46: Crushed stone and macadam materials | F46: cubic metre (m3) | H46: R400.00 | I46: =G46*H46 -> 0
B47: C4.3.9.3 | E47: Cemented material | F47: cubic metre (m3) | H47: R400.00 | I47: =G47*H47 -> 0
B48: C4.3.9.4 | E48: Natural gravel and sand materials | F48: cubic metre (m3) | H48: R400.00 | I48: =G48*H48 -> 0
B49: C4.3.9.5 | E49: Coarse fill and rock fill | F49: cubic metre (m3) | I49: =G49*H49 -> 0
A50: C4.3.10 | E50: Excavating material by using labour enhanced methods of construction
B51: C4.3.10.1 | E51: Asphalt material | F51: cubic metre (m3) | I51: =G51*H51 -> 0
B52: C4.3.10.2 | E52: Crushed stone and macadam materials | F52: cubic metre (m3) | I52: =G52*H52 -> 0
B53: C4.3.10.3 | E53: Cemented material | F53: cubic metre (m3) | I53: =G53*H53 -> 0
B54: C4.3.10.4 | E54: Natural gravel and sand materials | F54: cubic metre (m3) | I54: =G54*H54 -> 0
A55: C4.3.11 | E55: Breaking down a stabilised layer by using conventional road construction equipment | F55: cubic metre (m3) | I55: =G55*H55 -> 0
A56: C4.3.12 | E56: Removing of existing concrete material within the following average depth ranges
B57: C4.3.12.1 | E57: The break-up method:
C58: (a) | E58: Not exceeding 150mm | F58: cubic metre (m3) | H58: R500.00 | I58: =G58*H58 -> 0
C59: (b) | E59: Exceeding 150mm but not exceeding 250mm | F59: cubic metre (m3) | H59: R500.00 | I59: =G59*H59 -> 0 | J59: X
B60: C4.3.12.2 | E60: The break-up method using labour enhanced methods of construction:
C61: (a) | E61: Not exceeding 75mm | F61: cubic metre (m3) | I61: =G61*H61 -> 0
C62: (b) | E62: Exceeding 75mm but not exceeding 200mm | F62: cubic metre (m3) | I62: =G62*H62 -> 0 | J62: X
B63: C4.3.12.3 | E63: The lift-out method:
C64: (a) | E64: Not exceeding 150mm | F64: cubic metre (m3) | I64: =G64*H64 -> 0
C65: (b) | E65: Exceeding 150mm but not exceeding 250mm | F65: cubic metre (m3) | I65: =G65*H65 -> 0 | J65: X
A66: C4.3.13 | E66: Lifting of existing paving blocks (Type S-A interlocking block pavers) | J66: X
B67: C4.3.13.1 | E67: Using construction equipment | F67: square metre (m2) | I67: =G67*H67 -> 0
B68: C4.3.13.2 | E68: Using labour enhanced methods of construction | F68: square metre (m2) | H68: R50.00 | I68: =G68*H68 -> 0
A69: C4.3.14 | E69: Removing of existing road edging and services structures
B70: C4.3.14.1 | E70: Removing of existing road edging using construction equipment:
C71: (a) | E71: Kerbing and edge beams:
D72: (i) | E72: In situ concrete kerbing and edge beams | F72: cubic metre (m3) | H72: R300.00 | I72: =G72*H72 -> 0
D73: (ii) | E73: Precast concrete kerbing (specify type or figure) | F73: metre (m) | I73: 0 | J73: X
D74: (iii) | E74: Precast concrete kerbing (specify type or figure) and situ concrete channel (specify dimensions) | F74: metre (m) | I74: 0 | J74: X
C75: (b) | E75: Kerb inlets | F75: number (No.) | I75: 0
C76: (c) | E76: Grid inlets | F76: number (No.) | I76: 0
C77: (d) | E77: Etc., for other services structures | F77: number (No.) | I77: 0 | J77: X
B78: C4.3.14.2 | E78: Removing of existing road edging using labour enhanced methods of construction:
C79: (a) | E79: Kerbing and edge beams:
D80: (i) | E80: In situ concrete kerbing and edge beams | F80: cubic metre (m3) | H80: R500.00 | I80: =G80*H80 -> 0
D81: (ii) | E81: Precast concrete kerbing (Fig 7 or 10) | F81: metre (m) | H81: R300.00 | I81: 0 | J81: X
D82: (iii) | E82: Precast concrete kerbing (specify type or figure) and situ concrete channel (specify dimensions) | F82: metre (m) | I82: 0 | J82: X
C83: (b) | E83: Kerb inlets | F83: number (No.) | H83: R500.00 | I83: 0
C84: (c) | E84: Grid inlets | F84: number (No.) | I84: 0
C85: (d) | E85: Manhole | F85: number (No.) | H85: R5,000.00 | I85: 0 | J85: X
A86: C4.3.15 | E86: Stockpiling of road layer materials
B87: C4.3.15.1 | E87: Asphalt material | F87: cubic metre (m3) | H87: R200.00 | I87: =G87*H87 -> 0
B88: C4.3.15.2 | E88: Crushed stone material | F88: cubic metre (m3) | H88: R200.00 | I88: =G88*H88 -> 0
B89: C4.3.15.3 | E89: Cemented material | F89: cubic metre (m3) | H89: R200.00 | I89: =G89*H89 -> 0
B90: C4.3.15.4 | E90: Natural gravel material | F90: cubic metre (m3) | H90: R200.00 | I90: =G90*H90 -> 0
B91: C4.3.15.5 | E91: Concrete pavements | F91: cubic metre (m3) | I91: =G91*H91 -> 0
A92: C4.3.16 | E92: Stacking paving blocks and road edging
B93: C4.3.16.1 | E93: Paving blocks (Type S-A interlocking block pavers) | F93: number (No.) | H93: R0.50 | I93: =G93*H93 -> 0 | J93: X
B94: C4.3.16.2 | E94: Precast concrete kerbing | F94: number (No.) | H94: R20.00 | I94: =G94*H94 -> 0 | J94: X
B95: C4.3.16.3 | E95: Precast kerb inlets | F95: number (No.) | H95: R1,000.00 | I95: =G95*H95 -> 0
B96: C4.3.16.4 | E96: Precast manholes | F96: number (No.) | H96: R5,000.00 | I96: =G96*H96 -> 0
A97: C4.3.17 | E97: Excavate non-compliant or excess pavement layer material to spoil in sites designated by the Employer, material consisting of
B98: C4.3.17.1 | E98: Asphalt material | F98: cubic metre (m3) | I98: =G98*H98 -> 0
B99: C4.3.17.2 | E99: Crushed stone, macadam, gravel and sand material | F99: cubic metre (m3) | I99: 0
B100: C4.3.17.3 | E100: Cemented material | F100: cubic metre (m3) | I100: 0
B101: C4.3.17.4 | E101: Concrete material | F101: cubic metre (m3) | I101: 0
A102: C4.3.18 | E102: Excavate non-compliant or excess pavement layer material to spoil in sites designated by the Contractor, material consisting of | I102: =G102*H102 -> 0
B103: C4.3.18.1 | E103: Asphalt material | F103: cubic metre (m3) | H103: R300.00 | I103: 0
B104: C4.3.18.2 | E104: Crushed stone, macadam, gravel and sand material | F104: cubic metre (m3) | H104: R300.00 | I104: 0
B105: C4.3.18.3 | E105: Cemented material | F105: cubic metre (m3) | H105: R300.00 | I105: 0
B106: C4.3.18.4 | E106: Concrete material | F106: cubic metre (m3) | H106: R300.00 | I106: 0
A107: C4.3.19 | E107: Spoiling of paving blocks and road edging in spoil sites designated by the Employer
B108: C4.3.19.1 | E108: Paving blocks | F108: cubic metre (m3) | I108: =G108*H108 -> 0
B109: C4.3.19.2 | E109: Precast and in situ concrete kerbing, edge beams and channels at precast kerbing | F109: cubic metre (m3) | I109: =G109*H109 -> 0
B110: C4.3.19.3 | E110: Kerb and grid inlets, and other services structures | F110: number (No.) | I110: =G110*H110 -> 0
A111: C4.3.20 | E111: Spoiling of paving blocks and road edging in spoil sites designated by the Contractor
B112: C4.3.20.1 | E112: Paving blocks | F112: cubic metre (m3) | H112: R300.00 | I112: =G112*H112 -> 0
B113: C4.3.20.2 | E113: Precast and in situ concrete kerbing, edge beams and channels at precast kerbing | F113: cubic metre (m3) | H113: R300.00 | I113: =G113*H113 -> 0
B114: C4.3.20.3 | E114: Kerb and grid inlets, and other services structures | F114: number (No.) | H114: R500.00 | I114: =G114*H114 -> 0
A118: TOTAL CARRIED FORWARD TO SUMMARY | I118: =SUM(I5:I117) -> 0

Sheet C4.4_COMMERCIAL MATERIALS (hidden)
A1: C4.4 | E1: COMMERCIAL MATERIALS
A2: ITEM | D2: DESCRIPTION | E2: UNIT | F2: QTY | G2: RATE | H2: AMT | I2: Note to compiler: Items requiring additional information to be provided by compiler is marked in this column by X.
A5: C4.4.1 | D5: Commercial materials identified by the Employer from commercial, private or other non-commercial suppliers (specify the source/s) | I5: X
B6: C4.4.1.1 | D6: Pavement layer material:
C7: (a) | D7: Type G1 material | E7: cubic metre (m3) | H7: =F7*G7 -> 0
C8: (b) | D8: Type G2 material | E8: cubic metre (m3) | H8: 0
C9: (c) | D9: Etc. for other Type G3 to G9 materials | E9: cubic metre (m3) | H9: 0 | I9: X
C10: (d) | D10: Etc. for other Type G3 to G9 materials | E10: cubic metre (m3) | H10: 0 | I10: X
C11: (e) | D11: Etc. for other Type G3 to G9 materials | E11: cubic metre (m3) | H11: 0 | I11: X
C12: (f) | D12: Etc. for other Type G3 to G9 materials | E12: cubic metre (m3) | H12: 0 | I12: X
C13: (g) | D13: Etc. for other Type G3 to G9 materials | E13: cubic metre (m3) | H13: 0 | I13: X
C14: (h) | D14: Etc. for other Type G3 to G9 materials | E14: cubic metre (m3) | H14: 0 | I14: X
C15: (i) | D15: Etc. for other Type G3 to G9 materials | E15: cubic metre (m3) | H15: 0 | I15: X
C16: (j) | D16: Etc. for other Type G3 to G9 materials | E16: cubic metre (m3) | H16: 0 | I16: X
C17: (k) | D17: Etc. for other Type G3 to G9 materials | E17: cubic metre (m3) | H17: 0 | I17: X
C18: (l) | D18: Etc. for other Type G3 to G9 materials | E18: cubic metre (m3) | H18: 0 | I18: X
C19: (m) | D19: Sand for the base and shoulder layers | E19: cubic metre (m3) | H19: 0
C20: (n) | D20: Sand for a subbase layer | E20: cubic metre (m3) | H20: 0
C21: (o) | D21: Sand for a selected layer | E21: cubic metre (m3) | H21: 0
C22: (p) | D22: Natural or crushed gravel material for an unsealed shoulder layer | E22: cubic metre (m3) | H22: 0
C23: (q) | D23: Natural or crushed gravel material for the wearing course of an unsealed road | E23: cubic metre (m3) | H23: 0
B24: C4.4.1.2 | D24: Macadam material:
C25: (a) | D25: Coarse aggregate | E25: cubic metre (m3) | H25: =F25*G25 -> 0
C26: (b) | D26: Fine aggregate | E26: cubic metre (m3) | H26: =F26*G26 -> 0
B27: C4.4.1.3 | D27: Drainage blanket layer material | E27: cubic metre (m3) | H27: =F27*G27 -> 0
B28: C4.4.1.4 | D28: Soil cement material (pre-blended by the supplier) | E28: cubic metre (m3) | H28: =F28*G28 -> 0
B29: C4.4.1.5 | D29: Fill material in the earthworks:
C30: (a) | D30: Normal or coarse fill | E30: cubic metre (m3) | H30: =F30*G30 -> 0
C31: (b) | D31: Rock fill | E31: cubic metre (m3) | H31: =F31*G31 -> 0
C32: (c) | D32: Sand | E32: cubic metre (m3) | H32: =F32*G32 -> 0
B33: C4.4.1.6 | D33: Pioneer material | E33: cubic metre (m3) | H33: =F33*G33 -> 0
A34: C4.4.2 | D34: Commercial materials identified by the Contractor from commercial, private or other non-commercial suppliers
B35: C4.4.2.1 | D35: Pavement layer material:
C36: (a) | D36: Type G1 material | E36: cubic metre (m3) | H36: =F36*G36 -> 0
C37: (b) | D37: Type G2 material | E37: cubic metre (m3) | F37: ='C5.5_Rec Pav'!G75*0.35 -> 0 | G37: R450.00 | H37: 0
C38: (c) | D38: Etc. for other Type G3 to G9 materials | E38: cubic metre (m3) | H38: 0 | I38: X
C39: (d) | D39: Type G7 Material | E39: cubic metre (m3) | G39: R200.00 | H39: 0 | I39: X
C40: (e) | D40: Etc. for other Type G3 to G9 materials | E40: cubic metre (m3) | H40: 0 | I40: X
C41: (f) | D41: Etc. for other Type G3 to G9 materials | E41: cubic metre (m3) | H41: 0 | I41: X
C42: (g) | D42: Etc. for other Type G3 to G9 materials | E42: cubic metre (m3) | H42: 0 | I42: X
C43: (h) | D43: Etc. for other Type G3 to G9 materials | E43: cubic metre (m3) | H43: 0 | I43: X
C44: (i) | D44: Etc. for other Type G3 to G9 materials | E44: cubic metre (m3) | H44: 0 | I44: X
C45: (j) | D45: Etc. for other Type G3 to G9 materials | E45: cubic metre (m3) | H45: 0 | I45: X
C46: (k) | D46: Etc. for other Type G3 to G9 materials | E46: cubic metre (m3) | H46: 0 | I46: X
C47: (l) | D47: Etc. for other Type G3 to G9 materials | E47: cubic metre (m3) | H47: 0 | I47: X
C48: (m) | D48: Sand for the base and shoulder layers | E48: cubic metre (m3) | H48: 0
C49: (n) | D49: Sand for a subbase layer | E49: cubic metre (m3) | H49: 0
C50: (o) | D50: Sand for a selected layer | E50: cubic metre (m3) | H50: 0
C51: (p) | D51: Natural or crushed gravel material for an unsealed shoulder layer | E51: cubic metre (m3) | H51: 0
C52: (q) | D52: Natural or crushed gravel material for the wearing course of an unsealed road | E52: cubic metre (m3) | H52: 0
B53: C4.4.2.2 | D53: Macadam material:
C54: (a) | D54: Coarse aggregate | E54: cubic metre (m3) | H54: =F54*G54 -> 0
C55: (b) | D55: Fine aggregate | E55: cubic metre (m3) | H55: =F55*G55 -> 0
B56: C4.4.2.3 | D56: Drainage blanket layer material | E56: cubic metre (m3) | H56: =F56*G56 -> 0
B57: C4.4.2.4 | D57: Soil cement material (pre-blended by the supplier) | E57: cubic metre (m3) | H57: =F57*G57 -> 0
B58: C4.4.2.5 | D58: Fill material in the earthworks:
C59: (a) | D59: Normal or coarse fill | E59: cubic metre (m3) | H59: =F59*G59 -> 0
C60: (b) | D60: Rock fill | E60: cubic metre (m3) | H60: =F60*G60 -> 0
C61: (c) | D61: Sand | E61: cubic metre (m3) | H61: =F61*G61 -> 0
B62: C4.4.2.6 | D62: Pioneer material | E62: cubic metre (m3) | H62: =F62*G62 -> 0
A63: C4.4.3 | D63: Cost to procure commercial materials identified by the Employer from private or non-commercial sources
B64: C4.4.3.1 | D64: Cost of procuring | E64: provisional sum | G64: Sum
B65: C4.4.3.2 | D65: Handling cost and profit in respect of item C4.4.3.1 | E65: percentage (%) | H65: =F65*G65 -> 0
A66: C4.4.4 | D66: Cementitious stabilising agents
B67: C4.4.4.1 | D67: Cement | E67: ton (t) | G67: R2,270.00 | H67: =F67*G67 -> 0
B68: C4.4.4.2 | D68: Road lime | E68: ton (t) | H68: =F68*G68 -> 0
B69: C4.4.4.3 | D69: Etc. for other agents | E69: ton (t) | H69: =F69*G69 -> 0 | I69: X
A70: C4.4.5 | D70: Bituminous stabilising agents
B71: C4.4.5.1 | D71: Penetration grade bitumen (specify grade) | E71: ton (t) | G71: R2,000.00 | H71: =F71*G71 -> 0 | I71: X
B72: C4.4.5.2 | D72: Emulsion stable grade (specify type) | E72: ton (t) | H72: =F72*G72 -> 0 | I72: X
A73: C4.4.6 | D73: Fillers for bituminous stabilisation (specify filler types separately) | E73: ton (t) | H73: =F73*G73 -> 0 | I73: X
A74: C4.4.7 | D74: Sampling and material testing by a commercial laboratory for the stabilisation designs
B75: C4.4.7.1 | D75: Cost of sampling and material testing | E75: provisional sum | F75: Prov | G75: Sum
B76: C4.4.7.2 | D76: Handling cost and profit in respect of item C4.4.7.1 | E76: percentage (%) | F76: =H75 -> 0 | H76: =F76*G76 -> 0
A80: TOTAL CARRIED FORWARD TO SUMMARY | H80: =SUM(H5:H79) -> 0

Sheet C4.5 (hidden)
A1: C4.5 | D1: ALTERNATIVE MATERIALS
A2: ITEM | C2: DESCRIPTION | D2: UNIT | E2: QTY | F2: RATE | G2: AMT
A5: C4.5.1 | C5: Additional material investigations
B6: C4.5.1.1 | C6: Cost of sampling and laboratory testing | D6: provisional sum | E6: Prov | F6: Sum
B7: C4.5.1.2 | C7: Handling cost and profit in respect of item C4.5.1.1 | D7: percentage (%) | E7: =G6 -> 0 | G7: =F7*E7 -> 0
A8: C4.5.2 | C8: Removing unwanted material from alternative materials identified by the Employer
B9: C4.5.2.1 | C9: Contaminant material | D9: provisional sum | E9: Prov | F9: Sum
B10: C4.5.2.2 | C10: Handling cost and profit in respect of item C4.5.2.1 | D10: percentage (%) | E10: =G8 -> 0 | G10: =F10*E10 -> 0
B11: C4.5.2.3 | C11: Hazardous material | D11: provisional sum | E11: Prov | F11: Sum
B12: C4.5.2.4 | C12: Handling cost and profit in respect of item C4.5.2.3 | D12: percentage (%) | E12: =G10 -> 0 | G12: =F12*E12 -> 0
A13: C4.5.3 | C13: Cost to procure alternative materials identified by the Employer
B14: C4.5.3.1 | C14: Cost of procuring | D14: provisional sum | E14: Prov | F14: Sum
B15: C4.5.3.2 | C15: Handling cost and profit in respect of item C4.5.3.1 | D15: percentage (%) | E15: =G14 -> 0 | G15: =F15*E15 -> 0
A19: TOTAL CARRIED FORWARD TO SUMMARY | G19: =SUM(G5:G18) -> 0

Sheet C5.1 (hidden)
A1: C5.1 | F1: ROADBED
A2: ITEM | E2: DESCRIPTION | F2: UNIT | G2: QTY | H2: RATE | I2: AMT | J2: Note to compiler: Items requiring additional information to be provided by compiler is marked in this column by X.
A5: C5.1.1 | E5: Roadbed construction and compaction:
B6: C5.1.1.1 | E6: Compaction of in-situ material to 90% of MDD | F6: cubic metre (m3) | I6: =G6*H6 -> 0
B7: C5.1.1.2 | E7: Compaction of in-situ material to 93% of MDD | F7: cubic metre (m3) | I7: 0
B8: C5.1.1.3 | E8: Compaction of imported material to 90% of MDD | F8: cubic metre (m3) | I8: 0
B9: C5.1.1.4 | E9: Compaction of imported material to 93% of MDD | F9: cubic metre (m3) | I9: 0
B10: C5.1.1.5 | E10: Compaction of in-situ sand roadbed to 95% of MDD | F10: cubic metre (m3) | I10: 0
B11: C5.1.1.6 | E11: Compaction of in-situ sand roadbed to 100% of MDD | F11: cubic metre (m3) | I11: 0
A12: C5.1.2 | E12: Excavate material to spoil sites designed by the Employer:
B13: C5.1.2.1 | E13: Excavate material to spoil from roadbed construction, material obtained from:
C14: (a) | E14: Soft excavation | F14: cubic metre (m3) | I14: =G14*H14 -> 0
C15: (b) | E15: Boulder excavation Class A | F15: cubic metre (m3) | I15: =G15*H15 -> 0
C16: (c) | E16: Boulder excavation Class B | F16: cubic metre (m3) | I16: =G16*H16 -> 0
C17: (d) | E17: Hard excavation (other than by blasting) | F17: cubic metre (m3) | I17: =G17*H17 -> 0
C18: (e) | E18: Hard excavation (by blasting) | F18: cubic metre (m3) | I18: =G18*H18 -> 0
B19: C5.1.2.2 | E19: Excavate material to spoil from roadbed construction, using labour enhancement, material obtained from:
C20: (a) | E20: Soft excavation | F20: cubic metre (m3) | I20: =G20*H20 -> 0
C21: (b) | E21: Intermediate excavation | F21: cubic metre (m3) | I21: =G21*H21 -> 0
A22: C5.1.3 | E22: Excavate material to spoil sites designed by the Contractor:
B23: C5.1.3.1 | E23: Excavate material to spoil from roadbed construction, material obtained from:
C24: (a) | E24: Soft excavation | F24: cubic metre (m3) | I24: =G24*H24 -> 0
C25: (b) | E25: Boulder excavation Class A | F25: cubic metre (m3) | I25: =G25*H25 -> 0
C26: (c) | E26: Boulder excavation Class B | F26: cubic metre (m3) | I26: =G26*H26 -> 0
C27: (d) | E27: Hard excavation (other than by blasting) | F27: cubic metre (m3) | I27: =G27*H27 -> 0
C28: (e) | E28: Hard excavation (by blasting) | F28: cubic metre (m3) | I28: =G28*H28 -> 0
B29: C5.1.3.2 | E29: Excavate material to spoil from roadbed construction, using labour enhancement, material obtained from:
C30: (a) | E30: Soft excavation | F30: cubic metre (m3) | I30: =G30*H30 -> 0
C31: (b) | E31: Intermediate excavation | F31: cubic metre (m3) | I31: =G31*H31 -> 0
A32: C5.1.4 | E32: Removal of unsuitable material to spoil:
B33: C5.1.4.1 | E33: In layer thicknesses of 200mm and less
C34: (a) | E34: Stable material | F34: cubic metre (m3) | I34: =G34*H34 -> 0
C35: (b) | E35: Unstable material | F35: cubic metre (m3) | I35: =G35*H35 -> 0
B36: C5.1.4.2 | E36: In layer thicknesses exceeding 200mm
C37: (a) | E37: Stable material | F37: cubic metre (m3) | I37: =G37*H37 -> 0
C38: (b) | E38: Unstable material | F38: cubic metre (m3) | I38: =G38*H38 -> 0
A39: C5.1.5 | E39: In-situ treatment of roadbed in hard material:
B40: C5.1.5.1 | E40: In-situ treatment by ripping | F40: cubic metre (m3) | I40: =G40*H40 -> 0
B41: C5.1.5.2 | E41: In-situ treatment by drilling and blasting | F41: cubic metre (m3) | I41: =G41*H41 -> 0
B42: C5.1.5.3 | E42: In-situ treatment by drilling and splitting the material using non-explosive, rock-breaking products | F42: cubic metre (m3) | I42: =G42*H42 -> 0
A43: C5.1.6 | E43: Roller-pass compaction:
B44: C5.1.6.1 | E44: Grid rollers | F44: square metre (m2) | I44: =G44*H44 -> 0
B45: C5.1.6.2 | E45: Pad foot vibratory rollers | F45: square metre (m2) | I45: 0
B46: C5.1.6.3 | E46: Smooth drum vibratory rollers | F46: square metre (m2) | I46: 0
B47: C5.1.6.4 | E47: Other vibratory rollers (specify) | F47: square metre (m2) | I47: 0 | J47: X
B48: C5.1.6.5 | E48: Impact rollers | F48: square metre (m2) | I48: 0
B49: C5.1.6.6 | E49: Pneumatic rollers | F49: square metre (m2) | I49: 0
B50: C5.1.6.7 | E50: High energy impact compactor/roller (HEIC) | F50: square metre (m2) | I50: 0
B51: C5.1.6.8 | E51: Other rollers (specify) | F51: square metre (m2) | I51: 0 | J51: X
A52: C5.1.7 | E52: Construction of a roadbed trial section:
B53: C5.1.7.1 | E53: Non wetting-up collapsing soil trial section at in-situ moisture content using conventional rollers and/or HEIC | F53: cubic metre (m3) | I53: =G53*H53 -> 0
B54: C5.1.7.2 | E54: Non wetting-up collapsing soil trial section by excavating the soil to stockpile and then importing the soil from the stockpile to controlled compacted layers | F54: cubic metre (m3) | I54: =G54*H54 -> 0
B55: C5.1.7.3 | E55: Wetting-up collapsing soil trial section
B56: C5.1.7.4 | E56: Inactive and normal clay | F56: cubic metre (m3) | I56: =G56*H56 -> 0
C57: (a) | E57: By material modification | F57: cubic metre (m3) | I57: =G57*H57 -> 0
C58: (b) | E58: By lime modification | F58: cubic metre (m3) | I58: =G58*H58 -> 0
C59: (c) | E59: By removal of material | F59: cubic metre (m3) | I59: =G59*H59 -> 0
B60: C5.1.7.5 | E60: Active clay
C61: (a) | E61: Roadbed construction using lime | F61: cubic metre (m3) | I61: =G61*H61 -> 0
C62: (b) | E62: Roadbed construction by removal of active clay | F62: cubic metre (m3) | I62: =G62*H62 -> 0
B63: C5.1.7.6 | E63: Roller-pass compaction. | F63: cubic metre (m3) | I63: =G63*H63 -> 0
A64: C5.1.8 | E64: Construction of the roadbed in collapsing soil:
B65: C5.1.8.1 | E65: Non wetting-up collapsing soil roadbed construction at in-situ moisture content using conventional rollers | F65: cubic metre (m3) | I65: =G65*H65 -> 0
B66: C5.1.8.2 | E66: Non wetting-up collapsing soil roadbed construction at in-situ moisture content using HEIC | F66: cubic metre (m3) | I66: =G66*H66 -> 0
B67: C5.1.8.3 | E67: Non wetting-up collapsing soil roadbed construction by excavating the soil to stockpile and then importing from the stockpile to controlled compacted layers | F67: cubic metre (m3) | I67: =G67*H67 -> 0
B68: C5.1.8.4 | E68: Wetting-up collapsing soil roadbed construction | F68: cubic metre (m3) | I68: =G68*H68 -> 0
B69: C5.1.8.5 | E69: Water for wetting-up collapsing soil roadbed construction | F69: kilolitre (kℓ) | I69: =G69*H69 -> 0
A70: C5.1.9 | E70: Construction of roadbed comprising normal and inactive clay:
B71: C5.1.9.1 | E71: By material modification | F71: cubic metre (m3) | I71: =G71*H71 -> 0
B72: C5.1.9.2 | E72: By lime modification | F72: cubic metre (m3) | I72: =G72*H72 -> 0
B73: C5.1.9.3 | E73: By removal of material | F73: cubic metre (m3) | I73: =G73*H73 -> 0
A74: C5.1.10 | E74: Construction of roadbed comprising active clay:
B75: C5.1.10.1 | E75: Roadbed construction using lime | F75: cubic metre (m3) | I75: =G75*H75 -> 0
B76: C5.1.10.2 | E76: Roadbed construction by removal of active clay | F76: cubic metre (m3) | I76: =G76*H76 -> 0
A77: C5.1.11 | E77: Construction of roadbed comprising a pioneer layer | F77: cubic metre (m3) | I77: =G77*H77 -> 0
A78: C5.1.12 | E78: Excavation for benches:
B79: C5.1.12.1 | E79: Excavation for benches
C80: (a) | E80: Side-cut to fill in soft material | F80: cubic metre (m3) | I80: =G80*H80 -> 0
C81: (b) | E81: Side-cut to spoil in soft material | F81: cubic metre (m3) | I81: =G81*H81 -> 0
B82: C5.1.12.2 | E82: Excavation for benches using labour enhancement
C83: (a) | E83: Side-cut to fill
D84: (i) | E84: Soft material | F84: cubic metre (m3) | I84: =G84*H84 -> 0
D85: (ii) | E85: Intermediate material | F85: cubic metre (m3) | I85: =G85*H85 -> 0
C86: (b) | E86: Side-cut to spoil
D87: (i) | E87: Soft material | F87: cubic metre (m3) | I87: =G87*H87 -> 0
D88: (ii) | E88: Intermediate material | F88: cubic metre (m3) | I88: =G88*H88 -> 0
A89: C5.1.13 | E89: Construction of a levelling layer:
B90: C5.1.13.1 | E90: Over roadbed treatment in hard material compacted to 90% MDD | F90: cubic metre (m3) | I90: =G90*H90 -> 0
B91: C5.1.13.2 | E91: Over a constructed pioneer layer compacted to 90% MDD | F91: cubic metre (m3) | I91: =G91*H91 -> 0
A95: TOTAL CARRIED FORWARD TO SUMMARY | I95: =SUM(I5:I94) -> 0

Sheet C5.2 (hidden)
A1: C5.2 | E1: FILL
A2: ITEM | D2: DESCRIPTION | E2: UNIT | F2: QTY | G2: RATE | H2: AMT | I2: Note to compiler: Items requiring additional information to be provided by compiler is marked in this column by X.
A5: C5.2.1 | D5: Compiling and implementing M&U plans:
B6: C5.2.1.1 | D6: For fills more than 10 000 m3 (list all fills separately) | E6: number (No.) | H6: =F6*G6 -> 0 | I6: X
B7: C5.2.1.2 | D7: For fills 1,0 km in length when less than 10 000 m3 (list all fills separately) | E7: number (No.) | H7: =F7*G7 -> 0 | I7: X
A8: C5.2.2 | D8: Fill construction:
B9: C5.2.2.1 | D9: Normal fill material in compacted layer thicknesses of 200mm and less:
C10: (a) | D10: Compacted to 90% of MDD | E10: cubic metre (m3) | H10: =F10*G10 -> 0
C11: (b) | D11: Compacted to 93% of MDD | E11: cubic metre (m3) | H11: =F11*G11 -> 0
C12: (c) | D12: Roller-pass compaction | E12: square metre (m2) | H12: =F12*G12 -> 0
B13: C5.2.2.2 | D13: Coarse fill material in compacted layer thicknesses exceeding 200 mm but less than 500mm:
C14: (a) | D14: Compacted to 90% of MDD | E14: cubic metre (m3) | H14: =F14*G14 -> 0
C15: (b) | D15: Compacted to 93% of MDD | E15: cubic metre (m3) | H15: =F15*G15 -> 0
C16: (c) | D16: Roller-pass compaction | E16: square metre (m2) | H16: =F16*G16 -> 0
B17: C5.2.2.3 | D17: Sand fill material in compacted layer thicknesses of 400mm and less, compacted to 100% of MDD
B18: C5.2.2.4 | D18: Rock fill material all as per Clause A5.2.7.6 | E18: cubic metre (m3) | H18: =F18*G18 -> 0
B19: C5.2.2.5 | D19: Rock fill embankment toe | E19: cubic metre (m3) | H19: 0
B20: C5.2.2.6 | D20: Sand filter layer | E20: cubic metre (m3) | H20: 0
B21: C5.2.2.7 | D21: Drainage blanket layer | E21: cubic metre (m3) | H21: 0
A22: C5.2.3 | D22: Side-cut to fill compacted to 93% of MDD in compacted layer thicknesses of 200mm and less | E22: cubic metre (m3) | H22: 0
A23: C5.2.4 | D23: Correcting rock fills that are deficient in fine material, extra over C5.2.2.4 | E23: cubic metre (m3) | H23: 0
A24: C5.2.5 | D24: Fill in sidewalk:
B25: C5.2.5.1 | D25: Fill material in sidewalk compacted to 93% of MDD | E25: cubic metre (m3) | H25: =F25*G25 -> 0
B26: C5.2.5.2 | D26: Fill material in sidewalk compacted to 93% of MDD using labour enhanced methods of construction and light hand equipment | E26: cubic metre (m3) | H26: =F26*G26 -> 0
A27: C5.2.6 | D27: Fill material in shoulder widening:
B28: C5.2.6.1 | D28: Fill material in shoulder widening compacted to 93% of MDD | E28: cubic metre (m3) | H28: =F28*G28 -> 0
B29: C5.2.6.2 | D29: Fill material in shoulder widening compacted to 93% of MDD using labour enhancement and light hand equipment | E29: cubic metre (m3) | H29: =F29*G29 -> 0
A30: C5.2.7 | D30: Construction of a trial section:
B31: C5.2.7.1 | D31: Normal fill | E31: cubic metre (m3) | H31: =F31*G31 -> 0
B32: C5.2.7.2 | D32: Sand fill | E32: cubic metre (m3) | H32: =F32*G32 -> 0
B33: C5.2.7.3 | D33: Rock fill | E33: cubic metre (m3) | H33: =F33*G33 -> 0
B34: C5.2.7.4 | D34: Coarse fill | E34: cubic metre (m3) | H34: =F34*G34 -> 0
B35: C5.2.7.5 | D35: Roller-pass compaction | E35: cubic metre (m3) | H35: =F35*G35 -> 0
A36: C5.2.8 | D36: Breaking down oversize fill material on the road
B37: C5.2.8.1 | D37: By normal grid rolling as per clause A5.3.7.3(b) (i) to (vii) | E37: square metre-pass (m2-pass) | H37: =F37*G37 -> 0
B38: C5.2.8.2 | D38: By tamping roller | E38: square metre-pass (m2-pass) | H38: =F38*G38 -> 0
B39: C5.2.8.3 | D39: By pad foot vibratory roller | E39: square metre-pass (m2-pass) | H39: =F39*G39 -> 0
B40: C5.2.8.4 | D40: By vibratory roller | E40: square metre-pass (m2-pass) | H40: =F40*G40 -> 0
A41: C5.2.9 | D41: Removal of oversize material | E41: cubic metre (m3) | H41: =F41*G41 -> 0
A42: C5.2.10 | D42: Finishing off rock fill slopes:
B43: C5.2.10.1 | D43: Finishing off rock fill slopes with soft material | E43: cubic metre (m3) | H43: =F43*G43 -> 0
B44: C5.2.10.2 | D44: Finishing off rock fill slopes with soft material using labour enhancement and light hand equipment | E44: cubic metre (m3) | H44: =F44*G44 -> 0
A45: C5.2.11 | D45: Finishing-off fill slopes, medians and interchange areas:
B46: C5.2.11.1 | D46: Fill slopes | E46: square metre (m2) | H46: =F46*G46 -> 0
B47: C5.2.11.2 | D47: Medians and interchange areas | E47: square metre (m2) | H47: =F47*G47 -> 0
A51: TOTAL CARRIED FORWARD TO SUMMARY | H51: =SUM(H5:H50) -> 0

Sheet C5.3 (hidden)
A1: C5.3 | E1: ROAD PAVEMENT LAYERS
A2: ITEM | D2: DESCRIPTION | E2: UNIT | F2: QTY | G2: RATE | H2: AMT | I2: Note to compiler: Items requiring additional information to be provided by compiler is marked in this column by X.
A5: C5.3.1 | D5: Compiling and implementing M&U plans for the construction of all the pavement layers. | E5: number (No.) | H5: =F5*G5 -> 0
A6: C5.3.2 | D6: Construction of pavement layers
B7: C5.3.2.1 | D7: Construction of layers using conventional construction methods:
C8: (a) | D8: Lower selected subgrade layer (layer thickness indicated) compacted to 93% of MDD | E8: cubic metre (m3) | H8: =F8*G8 -> 0 | I8: X
C9: (b) | D9: Lower selected subgrade layer (layer thickness indicated) compacted to 95% of MDD | E9: cubic metre (m3) | H9: 0 | I9: X
C10: (c) | D10: Upper selected subgrade layer (layer thickness indicated) compacted to 95% of MDD | E10: cubic metre (m3) | H10: 0 | I10: X
C11: (d) | D11: Upper selected subgrade layer (layer thickness indicated) compacted to 97% of MDD | E11: cubic metre (m3) | H11: 0 | I11: X
C12: (e) | D12: Sand layer (layer thickness indicated) compacted to 97% of MDD | E12: cubic metre (m3) | H12: 0 | I12: X
C13: (f) | D13: Sand layer (layer thickness indicated) compacted to 100% of MDD | E13: cubic metre (m3) | H13: 0 | I13: X
C14: (g) | D14: Gravel wearing course layer (layer thickness indicated) compacted to 95% of MDD | E14: cubic metre (m3) | H14: 0 | I14: X
C15: (h) | D15: Gravel shoulder layer (layer thickness indicated) compacted to 95% of MDD | E15: cubic metre (m3) | H15: 0 | I15: X
C16: (i) | D16: Lower subbase gravel layer (unstabilised) (layer thickness indicated) compacted to 95% of MDD | E16: cubic metre (m3) | H16: 0 | I16: X
C17: (j) | D17: Lower subbase gravel layer (chemically stabilised) (layer thickness indicated) compacted to 95% of MDD | E17: cubic metre (m3) | H17: 0 | I17: X
C18: (k) | D18: Upper subbase gravel layer (unstabilised) (layer thickness indicated) compacted to 97% of MDD | E18: cubic metre (m3) | H18: 0 | I18: X
C19: (l) | D19: Upper subbase gravel layer (chemically stabilised) (layer thickness indicated) compacted to 95% of MDD | E19: cubic metre (m3) | H19: 0 | I19: X
C20: (m) | D20: Gravel base layer (unstabilised) (layer thickness indicated) compacted to 100% of MDD | E20: cubic metre (m3) | H20: 0 | I20: X
C21: (n) | D21: Gravel base layer (chemically stabilised) (layer thickness indicated) compacted to 97% of MDD | E21: cubic metre (m3) | H21: 0 | I21: X
C22: (o) | D22: G5B crushed rock/boulder subbase layer (layer thickness indicated) compacted to 97% of MDD | E22: cubic metre (m3) | H22: 0 | I22: X
C23: (p) | D23: G5B crushed rock/boulder base layer (layer thickness indicated) compacted to 100% of MDD | E23: cubic metre (m3) | H23: 0 | I23: X
C24: (q) | D24: G5A crushed rock/boulder subbase layer (layer thickness indicated) compacted to 97% of MDD | E24: cubic metre (m3) | H24: 0 | I24: X
C25: (r) | D25: G5A crushed rock/boulder base layer (layer thickness indicated) compacted to 100% of MDD | E25: cubic metre (m3) | H25: 0 | I25: X
C26: (s) | D26: G4A crushed rock/boulder lower subbase layer (unstabilised or chemically stabilised) (layer thickness indicated) compacted to 95% of MDD | E26: cubic metre (m3) | H26: 0 | I26: X
C27: (t) | D27: G4A crushed rock/boulder upper subbase layer (unstabilised or chemically stabilised) (layer thickness indicated) compacted to 97% of MDD | E27: cubic metre (m3) | H27: 0 | I27: X
C28: (u) | D28: G4A crushed rock/boulder subbase layer compacted to 97% of MDD | E28: cubic metre (m3) | H28: 0 | I28: X
C29: (v) | D29: G3 crushed stone subbase layer (unstabilised or chemically stabilised) (layer thickness indicated) compacted to 97% of MDD | E29: cubic metre (m3) | H29: 0 | I29: X
C30: (w) | D30: G3 crushed stone base layer (layer thickness indicated) compacted to 85% of BD | E30: cubic metre (m3) | H30: 0 | I30: X
C31: (x) | D31: G2 crushed stone base layer (layer thickness indicated) compacted to 88% of BD | E31: cubic metre (m3) | H31: 0 | I31: X
C32: (y) | D32: G2 crushed stone base layer (layer thickness indicated) compacted to 88% of AD | E32: cubic metre (m3) | H32: 0 | I32: X
C33: (z) | D33: G1 crushed stone base layer (layer thickness indicated) compacted to 86 % of AD | E33: cubic metre (m3) | H33: 0 | I33: X
C34: (aa) | D34: G1 crushed stone base layer (layer thickness indicated) compacted to 88 % of AD | E34: cubic metre (m3) | H34: 0 | I34: X
C35: (bb) | D35: Bound macadam layer (layer thickness indicated) compacted to 90% of AD | E35: cubic metre (m3) | H35: 0 | I35: X
C36: (cc) | D36: PMPL wet lean-mix concrete layer (cube crushing strength and layer thickness indicated) | E36: cubic metre (m3) | H36: 0 | I36: X
B37: C5.3.2.2 | D37: Construction of layers using labour enhancement:
C38: (a) | D38: Lower selected subgrade layer (layer thickness indicated) compacted to 93% of MDD | E38: cubic metre (m3) | H38: =F38*G38 -> 0 | I38: X
C39: (b) | D39: Upper selected subgrade layer (layer thickness indicated) compacted to 95% of MDD | E39: cubic metre (m3) | H39: 0 | I39: X
C40: (c) | D40: Sand layer (layer thickness indicated) compacted to 97% of MDD | E40: cubic metre (m3) | H40: 0 | I40: X
C41: (d) | D41: Sand layer (layer thickness indicated) compacted to 100% of MDD | E41: cubic metre (m3) | H41: 0 | I41: X
C42: (e) | D42: Gravel wearing course layer (layer thickness indicated) compacted to 95% of MDD | E42: cubic metre (m3) | H42: 0 | I42: X
C43: (f) | D43: Gravel shoulder layer (layer thickness indicated) compacted to 95% of MDD | E43: cubic metre (m3) | H43: 0 | I43: X
C44: (g) | D44: Lower gravel subbase layer (layer thickness indicated) compacted to 95% of MDD | E44: cubic metre (m3) | H44: 0 | I44: X
C45: (h) | D45: Upper gravel subbase layer (layer thickness indicated) compacted to 97% of MDD | E45: cubic metre (m3) | H45: 0 | I45: X
C46: (i) | D46: Gravel base layer (layer thickness indicated) compacted to 98% of MDD | E46: cubic metre (m3) | H46: 0 | I46: X
C47: (j) | D47: Gravel base layer (layer thickness indicated) compacted to 100% of MDD | E47: cubic metre (m3) | H47: 0 | I47: X
C48: (k) | D48: Bound macadam layer (layer thickness indicated) compacted to 90% of AD | E48: cubic metre (m3) | H48: 0 | I48: X
C49: (l) | D49: Soil cement or soilcrete (layer thickness indicated) wet mixture as per clause A4.1.5.14 | E49: cubic metre (m3) | H49: =F49*G49 -> 0 | I49: X
C50: (m) | D50: Soil cement or soilcrete (layer thickness indicated) stiff mixture as per clause A4.1.5.14 | E50: cubic metre (m3) | H50: =F50*G50 -> 0 | I50: X
C51: (n) | D51: Emulsion treated base material (G1 or G2 material and layer thickness indicated) as per clause A4.1.5.15 | E51: cubic metre (m3) | H51: =F51*G51 -> 0 | I51: X
A52: C5.3.3 | D52: Construction of crushed stone base supplied by the Employer | E52: cubic metre (m3) | H52: 0
A53: C5.3.4 | D53: Deductions for G1 crushed stone base material supplied by the Employer | E53: ton (t) | H53: 0
A54: C5.3.5 | D54: Breaking down oversize layer material on the road:
B55: C5.3.5.1 | D55: By additional normal grid rolling as per clause A5.3.7.3(b) | E55: square metre-pass (m2-pass) | H55: =F55*G55 -> 0
B56: C5.3.5.2 | D56: By tamping roller | E56: square metre-pass (m2-pass) | H56: 0
B57: C5.3.5.3 | D57: By pad foot vibratory roller | E57: square metre-pass (m2-pass) | H57: 0
B58: C5.3.5.4 | D58: By vibratory roller | E58: square metre-pass (m2-pass) | H58: 0
B59: C5.3.5.5 | D59: By any other roller type | E59: square metre-pass (m2-pass) | H59: 0
A60: C5.3.6 | D60: Removal of oversize material | E60: cubic metre (m3) | H60: 0
A61: C5.3.7 | D61: Recombining recovered material | E61: cubic metre (m3) | H61: 0
A62: C5.3.8 | D62: Processing of coarse gravel subbase or base layers | E62: cubic metre (m3) | H62: 0
A63: C5.3.9 | D63: Construction of a trial section:
B64: C5.3.9.1 | D64: Construction of a trial section using conventional methods of construction
C65: (a) | D65: Stabilised gravel layer (layer thickness indicated) trial section | E65: cubic metre (m3) | H65: =F65*G65 -> 0 | I65: X
C66: (b) | D66: Crushed stone subbase layer (layer thickness indicated) trial section | E66: cubic metre (m3) | H66: 0 | I66: X
C67: (c) | D67: Crushed stone base layer (layer thickness indicated) trial section | E67: cubic metre (m3) | H67: 0 | I67: X
C68: (d) | D68: PMPL layer (layer thickness indicated) trial section | E68: cubic metre (m3) | H68: 0 | I68: X
C69: (e) | D69: Bound macadam layer (layer thickness indicated) trial section | E69: cubic metre (m3) | H69: 0 | I69: X
C70: (f) | D70: … (any other) | E70: cubic metre (m3) | H70: 0 | I70: X
B71: C5.3.9.2 | D71: Construction of a trial section using labour enhancement methods
C72: (a) | D72: Stabilised gravel layer (layer thickness indicated) trial section | E72: cubic metre (m3) | H72: =F72*G72 -> 0 | I72: X
C73: (b) | D73: Gravel base layer (layer thickness indicated) trial section | E73: cubic metre (m3) | H73: =F73*G73 -> 0 | I73: X
C74: (c) | D74: Bound macadam layer (layer thickness indicated) trial section | E74: cubic metre (m3) | H74: =F74*G74 -> 0 | I74: X
C75: (d) | D75: … (any other) | E75: cubic metre (m3) | H75: =F75*G75 -> 0 | I75: X
A76: C5.3.10 | D76: Removal of a completed trial section
B77: C5.1.10.1 | D77: Stabilised layer | E77: cubic metre (m3) | H77: =F77*G77 -> 0
B78: C5.3.10.2 | D78: PMPL layer | E78: cubic metre (m3) | H78: =F78*G78 -> 0
B79: C5.3.10.3 | D79: Crushed stone layer | E79: cubic metre (m3) | H79: =F79*G79 -> 0
A80: C5.3.11 | D80: Riding quality measurements:
B81: C5.3.11.1 | D81: Using a 3,0m straight edge | E81: kilometre (km) | H81: =F81*G81 -> 0
B82: C5.3.11.2 | D82: Using a rolling straight edge | E82: kilometre (km) | H82: =F82*G82 -> 0
B83: C5.3.11.3 | D83: Using an inertial profilometer | E83: kilometre (km) | H83: =F83*G83 -> 0
A84: C5.3.12 | D84: Surface regularity payment adjustments | E84: provisional sum | F84: Prov | G84: Sum
A88: TOTAL CARRIED FORWARD TO SUMMARY | H88: =SUM(H5:H87) -> 0

Sheet C5.4_Stab (hidden)
A1: C5.4 | E1: STABILISATION
A2: ITEM | D2: DESCRIPTION | E2: UNIT | F2: QTY | G2: RATE | H2: AMT | I2: Note to compiler: Items requiring additional information to be provided by compiler is marked in this column by X.
A5: C5.4.1 | D5: Pre-treatment of gravel layers:
B6: C5.4.1.1 | D6: Pre-treatment of (insert layer thickness) gravel layer | E6: cubic metre (m3) | H6: =F6*G6 -> 0 | I6: X
B7: C5.4.1.2 | D7: Pre-treatment of (insert layer thickness) gravel layer using labour enhanced methods of construction | E7: cubic metre (m3) | H7: =F7*G7 -> 0 | I7: X
A8: C5.4.2 | D8: Chemical stabilisation:
B9: C5.4.2.1 | D9: Chemical stabilisation of pavement layers | I9: X
D10: (a) 380mm thick subbase layer | E10: cubic metre (m3) | G10: R100.00 | H10: =F10*G10 -> 0
D11: (b) 150mm thick base layer | E11: cubic metre (m3) | G11: R100.00 | H11: 0
B12: C5.4.2.2 | D12: Chemical stabilisation (layer thickness indicated) of pavement layers (layer to be stabilised indicated) using labour enhanced methods of construction | E12: cubic metre (m3) | H12: =F12*G12 -> 0 | I12: X
A13: C5.4.3 | D13: Stabilised crushed stone PMPL layer: (pavement layer, type of material and source indicated) | E13: cubic metre (m3) | H13: =F13*G13 -> 0 | I13: X
A14: C5.4.4 | D14: Wet lean-mix concrete pavement PMPL layer (indicate specific pavement layer) | E14: cubic metre (m3) | H14: =F14*G14 -> 0 | I14: X
A15: C5.4.5 | D15: Cementitious stabilisation agents for pavement layers:
B16: C5.4.5.1 | D16: Addition of cementitious stabilisation agents (specify agent separately) for pavement layers | I16: X
C17: (a) | D17: Cement (CEM II 32.5N for cemented subbase) | E17: ton (t) | G17: R2,270.00 | H17: =F17*G17 -> 0
C18: (b) | D18: And so forth for other agents (for pavement layers) | E18: ton (t) | H18: =F18*G18 -> 0 | I18: X
B19: C5.4.5.2 | D19: Addition of cementitious stabilisation agents (specify agent separately) for pavement layers and spreading the agent using bags and labour enhancement methods. | I19: X
C20: (a) | D20: Cement (for pavement layer) | E20: ton (t) | H20: =F20*G20 -> 0
C21: (b) | D21: And so forth for other agents (for pavement layers) | E21: ton (t) | H21: =F21*G21 -> 0 | I21: X
A22: C5.4.6 | D22: Addition of cementitious stabilisation agents (specify agent separately) for a PMPL layer: | I22: X
B23: C5.4.6.1 | D23: Cement | E23: ton (t) | H23: =F23*G23 -> 0
B24: C5.4.6.2 | D24: And so forth for other agents | E24: ton (t) | H24: =F24*G24 -> 0 | I24: X
A25: C5.4.7 | D25: Bituminous stabilisation of pavement layers
B26: C5.4.7.1 | D26: Bituminous stabilisation (380mm thick) of payment layers (subabse layer) | E26: litre (ℓ) | G26: R1.00 | H26: =F26*G26 -> 0 | I26: X
B27: C5.4.7.2 | D27: Bituminous stabilisastion (layer thickness indicated) of payment layers (layer to be indicated) using labour enhanced methods of construction | E27: litre (ℓ) | H27: =F27*G27 -> 0 | I27: X
A28: C5.4.8 | D28: Bituminous stabilisation agent (specify agents separately): | I28: X
B29: C5.4.8.1 | D29: 60% anionic emulsion | E29: litre (ℓ) | G29: R9.93 | H29: =F29*G29 -> 0
B30: C5.4.8.2 | D30: 60% cationic emulsion | E30: litre (ℓ) | H30: =F30*G30 -> 0
B31: C5.4.8.3 | D31: Foamed bitumen | E31: litre (ℓ) | H31: =F31*G31 -> 0
B32: C5.4.8.4 | D32: … (any other) | E32: litre (ℓ) | H32: =F32*G32 -> 0 | I32: X
A33: C5.4.9 | D33: Filler for bituminous stabilisation
B34: C5.4.9.1 | D34: Filler for bituminous stabilisation (specify agents separately) | E34: ton (t) | H34: =F34*G34 -> 0 | I34: X
B35: C5.4.9.2 | D35: Filler for bituminous stabilisation spreading the agent or filler using labour enhanced methods of construction (specify agents separately) | E35: ton (t) | H35: =F35*G35 -> 0
A36: C5.4.10 | D36: Provision and application of water for curing | E36: kilolitre (kℓ) | H36: =F36*G36 -> 0
A37: C5.4.11 | D37: Curing by covering with the subsequent layer | E37: square metre (m2) | H37: =F37*G37 -> 0
A38: C5.4.12 | D38: Curing with a membrane (type of material to be specified): | I38: X
B39: C5.4.12.1 | D39: Cut back bitumen | E39: litre (ℓ) | H39: =F39*G39 -> 0
B40: C5.4.12.2 | D40: Inverted bitumen emulsion | E40: litre (ℓ) | G40: R9.00 | H40: 0
B41: C5.4.12.3 | D41: Spray grade emulsion | E41: litre (ℓ) | H41: 0
B42: C5.4.12.4 | D42: Curing compound for PMPL layers | E42: litre (ℓ) | H42: 0
A43: C5.4.13 | D43: Trial section for a PMPL layer (specify width) | E43: square metre (m2) | H43: 0 | I43: X
A44: C5.4.14 | D44: Trial section for a chemically stabilised layer | E44: cubic metre (m3) | H44: 0
A45: C5.4.15 | D45: Trial section for a bituminously stabilised layer (specify width) | E45: square metre (m2) | H45: 0 | I45: X
A46: C5.4.16 | D46: Mechanical modification | E46: cubic metre (m3) | H46: 0
A47: C5.4.17 | D47: Addition of a soil binder | E47: cubic metre (m3) | H47: 0
A51: TOTAL CARRIED FORWARD TO SUMMARY | H51: =SUM(H5:H50) -> 0

Sheet C5.5_Rec Pav (hidden)
A1: C5.5 | F1: RECONSTRUCTION OF PAVEMENT LAYERS
A2: ITEM | E2: DESCRIPTION | F2: UNIT | G2: QTY | H2: RATE | I2: AMT | J2: Note to compiler: Items requiring additional information to be provided by compiler is marked in this column by X.
A5: C5.5.1 | E5: Compiling and implementing M&U plans for the reconstruction of an existing road pavement | F5: number (No.) | H5: R100,000.00 | I5: =G5*H5 -> 0
A6: C5.5.2 | E6: Reconstruction preparatory work:
B7: C5.5.2.1 | E7: Undivided carriageway:
C8: (a) | E8: Uniform section from km 0,22 to km 0,5 | F8: kilometre (km) | H8: R100,000.00 | I8: =G8*H8 -> 0 | J8: X
C9: (b) | E9: Uniform section from km … to km … (specify) | F9: kilometre (km) | I9: =G9*H9 -> 0 | J9: X
C10: (c) | E10: Additional uniform sections | F10: kilometre (km) | I10: =G10*H10 -> 0 | J10: X
B11: C5.5.2.2 | E11: Divided carriageway:
C12: (a) | E12: Uniform section from km … to km … (specify) | F12: kilometre (km) | I12: =G12*H12 -> 0 | J12: X
C13: (b) | E13: Uniform section from km … to km … (specify) | F13: kilometre (km) | I13: 0 | J13: X
C14: (c) | E14: Additional uniform sections | F14: kilometre (km) | I14: 0 | J14: X
A15: C5.5.3 | E15: Construction equipment for sampling of in-situ material for mix design procedure | F15: number (No.) | H15: R50,000.00 | I15: 0
A16: C5.5.4 | E16: Sampling of in-situ material for mix design procedure | F16: number (No.) | H16: R2,000.00 | I16: 0
A17: C5.5.5 | E17: Construction of a trial section using a recycler | F17: cubic metre (m3) | H17: R10,000.00 | I17: 0
A18: C5.5.6 | E18: Construction of a trial section using conventional construction equipment | F18: cubic metre (m3) | I18: 0
A19: C5.5.7 | E19: Pre-milling existing wearing course material:
B20: C5.5.7.1 | E20: Pre-milling an asphalt wearing course (40mm) | F20: square metre (m2) | I20: =G20*H20 -> 0
B21: C5.5.7.2 | E21: Pre-milling a seal wearing course (depth of pre-milling varies between 10mm and 25mm) | F21: square metre (m2) | I21: =G21*H21 -> 0
A22: C5.5.8 | E22: Pre-pulverising material in the existing pavement
B23: C5.5.8.1 | E23: Asphalt wearing course (40mm) | F23: cubic metre (m3) | H23: R25.00 | I23: =G23*H23 -> 0 | J23: X
B24: C5.5.8.2 | E24: Crushed stone base (250mm) | F24: cubic metre (m3) | H24: R25.00 | I24: =G24*H24 -> 0 | J24: X
B25: C5.5.8.3 | E25: Stabilised crushed stone (150mm) | F25: cubic metre (m3) | H25: R25.00 | I25: =G25*H25 -> 0 | J25: X
B26: C5.5.8.4 | E26: Stabilised gravel layer (specify nominal depth) | F26: cubic metre (m3) | I26: =G26*H26 -> 0 | J26: X
A27: C5.5.9 | E27: Temporarily blading layer material to windrow | F27: cubic metre (m3) | I27: =G27*H27 -> 0
A28: C5.5.10 | E28: Roller-pass compaction of an exposed pavement layer
B29: C5.5.10.1 | E29: Smooth drum vibratory rollers | F29: square metre (m2) | H29: R5.00 | I29: =G29*H29 -> 0
B30: C5.5.10.2 | E30: Other vibratory rollers (specify) | F30: square metre (m2) | I30: 0 | J30: X
B31: C5.5.10.3 | E31: Pneumatic-tyred rollers | F31: square metre (m2) | I31: 0
B32: C5.5.10.4 | E32: Other rollers (specify) | F32: square metre (m2) | I32: 0 | J32: X
A33: C5.5.11 | E33: Watering the exposed pavement layer | F33: kilolitre (kℓ) | H33: R200.00 | I33: 0
A34: C5.5.12 | E34: Removal of surplus material from site | F34: cubic metre (m3) | H34: R500.00 | I34: 0
A35: C5.5.13 | E35: Cross mixing of material (specify nominal depth) | F35: cubic metre (m3) | H35: R30.00 | I35: 0 | J35: X
A36: C5.5.14 | E36: In-situ reconstruction of a pavement layer using a recycler to construct a stabilised selected layer
B37: C5.5.14.1 | E37: Chemically stabilised selected layer compacted to 95% of MDD:
C38: (a) | E38: Using non-cemented material compacted to ... mm thick (specify) | F38: cubic metre (m3) | I38: =G38*H38 -> 0 | J38: X
C39: (b) | E39: Using cemented material compacted to ... mm thick (specify) | F39: cubic metre (m3) | I39: =G39*H39 -> 0 | J39: X
C40: (c) | E40: Using a combination of non-cemented and cemented material compacted to ... mm thick (specify) | F40: cubic metre (m3) | I40: =G40*H40 -> 0 | J40: X
C41: (d) | E41: Using pre-pulverised material (as per item C5.5.8) compacted to ... mm thick (specify) | F41: cubic metre (m3) | I41: =G41*H41 -> 0 | J41: X
B42: C5.5.14.2 | E42: Emulsion stabilised selected layer compacted to 95% of MDD:
C43: (a) | E43: Using non-cemented material compacted to ... mm thick (specify) | F43: cubic metre (m3) | I43: =G43*H43 -> 0 | J43: X
C44: (b) | E44: Using cemented material compacted to ... mm thick (specify) | F44: cubic metre (m3) | I44: =G44*H44 -> 0 | J44: X
C45: (c) | E45: Using a combination of non-cemented and cemented material compacted to ... mm thick (specify) | F45: cubic metre (m3) | I45: =G45*H45 -> 0 | J45: X
C46: (d) | E46: Using pre-pulverised material (as per item C5.5.8) compacted to ... mm thick (specify) | F46: cubic metre (m3) | I46: =G46*H46 -> 0 | J46: X
B47: C5.5.14.3 | E47: Foam stabilised selected layer compacted to 95% of MDD
C48: (a) | E48: Using non-cemented material compacted to ... mm thick (specify) | F48: cubic metre (m3) | I48: =G48*H48 -> 0 | J48: X
C49: (b) | E49: Using cemented material compacted to ... mm thick (specify) | F49: cubic metre (m3) | I49: =G49*H49 -> 0 | J49: X
C50: (c) | E50: Using a combination of non-cemented and cemented material compacted to ... mm thick (specify) | F50: cubic metre (m3) | I50: =G50*H50 -> 0 | J50: X
C51: (d) | E51: Using pre-pulverised material (as per item C5.5.8) compacted to ... mm thick (specify) | F51: cubic metre (m3) | I51: =G51*H51 -> 0 | J51: X
A52: C5.5.15 | E52: In-situ reconstruction of a pavement layer using a recycler to construct a stabilised subbase layer
B53: C5.5.15.1 | E53: Chemically stabilised subbase layer compacted to 97% of MDD:
C54: (a) | E54: Using non-cemented material compacted to ... mm thick (specify) | F54: cubic metre (m3) | I54: =G54*H54 -> 0 | J54: X
C55: (b) | E55: Using cemented material compacted to ... mm thick (specify) | F55: cubic metre (m3) | I55: =G55*H55 -> 0 | J55: X
C56: (c) | E56: Using a combination of non-cemented and cemented material compacted to ... mm thick (specify) | F56: cubic metre (m3) | I56: =G56*H56 -> 0 | J56: X
C57: (d) | E57: Using pre-pulverised material (as per item C5.5.8) compacted to ... mm thick (specify) | F57: cubic metre (m3) | I57: =G57*H57 -> 0 | J57: X
B58: C5.5.15.2 | E58: Emulsion stabilised subbase layer compacted to 97% of MDD:
C59: (a) | E59: Using non-cemented material compacted to ... mm thick (specify) | F59: cubic metre (m3) | I59: =G59*H59 -> 0 | J59: X
C60: (b) | E60: Using cemented material compacted to ... mm thick (specify) | F60: cubic metre (m3) | I60: =G60*H60 -> 0 | J60: X
C61: (c) | E61: Using a combination of non-cemented and cemented material compacted to ... mm thick (specify) | F61: cubic metre (m3) | I61: =G61*H61 -> 0 | J61: X
C62: (d) | E62: Using pre-pulverised material (as per item C5.5.8) compacted to ... mm thick (specify) | F62: cubic metre (m3) | I62: =G62*H62 -> 0 | J62: X
B63: C5.5.15.3 | E63: Foam stabilised subbase layer compacted to 97% of MDD
C64: (a) | E64: Using non-cemented material compacted to ... mm thick (specify) | F64: cubic metre (m3) | I64: =G64*H64 -> 0 | J64: X
C65: (b) | E65: Using cemented material compacted to ... mm thick (specify) | F65: cubic metre (m3) | I65: =G65*H65 -> 0 | J65: X
C66: (c) | E66: Using a combination of non-cemented and cemented material compacted to ... mm thick (specify) | F66: cubic metre (m3) | I66: =G66*H66 -> 0 | J66: X
C67: (d) | E67: Using pre-pulverised material (as per item C5.5.8) compacted to ... mm thick (specify) | F67: cubic metre (m3) | I67: =G67*H67 -> 0 | J67: X
A68: C5.5.16 | E68: In-situ reconstruction of a pavement layer using a recycler to construct a stabilised base layer
B69: C5.5.16.1 | E69: Chemically stabilised base layer compacted to 100% of MDD:
C70: (a) | E70: Using non-cemented material compacted to ... mm thick (specify) | F70: cubic metre (m3) | I70: =G70*H70 -> 0 | J70: X
C71: (b) | E71: Using cemented material compacted to ... mm thick (specify) | F71: cubic metre (m3) | I71: =G71*H71 -> 0 | J71: X
C72: (c) | E72: Using a combination of non-cemented and cemented material compacted to ... mm thick (specify) | F72: cubic metre (m3) | I72: =G72*H72 -> 0 | J72: X
C73: (d) | E73: Using pre-pulverised material (as per item C5.5.8) compacted to ... mm thick (specify) | F73: cubic metre (m3) | I73: =G73*H73 -> 0 | J73: X
B74: C5.5.16.2 | E74: Emulsion stabilised base layer compacted to 102% of MDD:
C75: (a) | E75: Using non-cemented material compacted to 350 mm thick | F75: cubic metre (m3) | H75: R280.00 | I75: =G75*H75 -> 0 | J75: X | K75: Shoulder. Large section edge break
C76: (b) | E76: Using cemented material compacted to ... mm thick (specify) | F76: cubic metre (m3) | I76: =G76*H76 -> 0 | J76: X
C77: (c) | E77: Using a combination of non-cemented and cemented material compacted to ... mm thick (specify) | F77: cubic metre (m3) | I77: =G77*H77 -> 0 | J77: X
C78: (d) | E78: Using pre-pulverised material (as per item C5.5.8) compacted to ... mm thick (specify) | F78: cubic metre (m3) | I78: =G78*H78 -> 0 | J78: X
B79: C5.5.16.3 | E79: Foam stabilised subbase layer compacted to 102% of MDD | I79: 0
C80: (a) | E80: Using non-cemented material compacted to ... mm thick (specify) | F80: cubic metre (m3) | I80: =G80*H80 -> 0 | J80: X
C81: (b) | E81: Using cemented material compacted to ... mm thick (specify) | F81: cubic metre (m3) | I81: =G81*H81 -> 0 | J81: X
C82: (c) | E82: Using a combination of non-cemented and cemented material compacted to ... mm thick (specify) | F82: cubic metre (m3) | I82: =G82*H82 -> 0 | J82: X
C83: (d) | E83: Using pre-pulverised material (as per item C5.5.8) compacted to ... mm thick (specify) | F83: cubic metre (m3) | I83: =G83*H83 -> 0 | J83: X
A84: C5.5.17 | E84: In-situ reconstruction of a pavement layer using conventional construction equipment to construct a stabilised selected layer
B85: C5.5.17.1 | E85: Chemically stabilised selected layer compacted to 95% of MDD:
C86: (a) | E86: Using non-cemented material compacted to ... mm thick (specify) | F86: cubic metre (m3) | I86: =G86*H86 -> 0 | J86: X
C87: (b) | E87: Using cemented material compacted to ... mm thick (specify) | F87: cubic metre (m3) | I87: =G87*H87 -> 0 | J87: X
C88: (c) | E88: Using a combination of non-cemented and cemented material compacted to ... mm thick (specify) | F88: cubic metre (m3) | I88: =G88*H88 -> 0 | J88: X
C89: (d) | E89: Using pre-pulverised material (as per item C5.5.8) compacted to ... mm thick (specify) | F89: cubic metre (m3) | I89: =G89*H89 -> 0 | J89: X
B90: C5.5.17.2 | E90: Emulsion stabilised selected layer compacted to 95% of MDD:
C91: (a) | E91: Using non-cemented material compacted to ... mm thick (specify) | F91: cubic metre (m3) | I91: =G91*H91 -> 0 | J91: X
C92: (b) | E92: Using cemented material compacted to ... mm thick (specify) | F92: cubic metre (m3) | I92: =G92*H92 -> 0 | J92: X
C93: (c) | E93: Using a combination of non-cemented and cemented material compacted to ... mm thick (specify) | F93: cubic metre (m3) | I93: =G93*H93 -> 0 | J93: X
C94: (d) | E94: Using pre-pulverised material (as per item C5.5.8) compacted to ... mm thick (specify) | F94: cubic metre (m3) | I94: =G94*H94 -> 0 | J94: X
B95: C5.5.17.3 | E95: Foam stabilised selected layer compacted to 95% of MDD
C96: (a) | E96: Using non-cemented material compacted to ... mm thick (specify) | F96: cubic metre (m3) | I96: =G96*H96 -> 0 | J96: X
C97: (b) | E97: Using cemented material compacted to ... mm thick (specify) | F97: cubic metre (m3) | I97: =G97*H97 -> 0 | J97: X
C98: (c) | E98: Using a combination of non-cemented and cemented material compacted to ... mm thick (specify) | F98: cubic metre (m3) | I98: =G98*H98 -> 0 | J98: X
C99: (d) | E99: Using pre-pulverised material (as per item C5.5.8) compacted to ... mm thick (specify) | F99: cubic metre (m3) | I99: =G99*H99 -> 0 | J99: X
A100: C5.5.18 | E100: In-situ reconstruction of a pavement layer using conventional construction equipment to construct a stabilised subbase layer
B101: C5.5.18.1 | E101: Chemically stabilised subbase layer compacted to 97% of MDD:
C102: (a) | E102: Using non-cemented material compacted to ... mm thick (specify) | F102: cubic metre (m3) | I102: =G102*H102 -> 0 | J102: X
C103: (b) | E103: Using cemented material compacted to ... mm thick (specify) | F103: cubic metre (m3) | I103: =G103*H103 -> 0 | J103: X
C104: (c) | E104: Using a combination of non-cemented and cemented material compacted to ... mm thick (specify) | F104: cubic metre (m3) | I104: =G104*H104 -> 0 | J104: X
C105: (d) | E105: Using pre-pulverised material (as per item C5.5.8) compacted to … mm thick (specify) | F105: cubic metre (m3) | I105: =G105*H105 -> 0 | J105: X
B106: C5.5.18.2 | E106: Emulsion stabilised subbase layer compacted to 97% of MDD:
C107: (a) | E107: Using non-cemented material compacted to ... mm thick (specify) | F107: cubic metre (m3) | I107: =G107*H107 -> 0 | J107: X
C108: (b) | E108: Using cemented material compacted to ... mm thick (specify) | F108: cubic metre (m3) | I108: =G108*H108 -> 0 | J108: X
C109: (c) | E109: Using a combination of non-cemented and cemented material compacted to ... mm thick (specify) | F109: cubic metre (m3) | I109: =G109*H109 -> 0 | J109: X
C110: (d) | E110: Using pre-pulverised material (as per item C5.5.8) compacted to 380 mm thick | F110: cubic metre (m3) | H110: R280.00 | I110: =G110*H110 -> 0 | J110: X | K110: In town, 0,22 to 0,5
B111: C5.5.18.3 | E111: Foam stabilised subbase layer compacted to 97% of MDD
C112: (a) | E112: Using non-cemented material compacted to ... mm thick (specify) | F112: cubic metre (m3) | I112: =G112*H112 -> 0 | J112: X
C113: (b) | E113: Using cemented material compacted to ... mm thick (specify) | F113: cubic metre (m3) | I113: =G113*H113 -> 0 | J113: X
C114: (c) | E114: Using a combination of non-cemented and cemented material compacted to ... mm thick (specify) | F114: cubic metre (m3) | I114: =G114*H114 -> 0 | J114: X
C115: (d) | E115: Using pre-pulverised material (as per item C5.5.8) compacted to ... mm thick (specify) | F115: cubic metre (m3) | I115: =G115*H115 -> 0 | J115: X
A116: C5.5.19 | E116: In-situ reconstruction of a pavement layer using conventional construction equipment to construct a stabilised base layer
B117: C5.5.19.1 | E117: Chemically stabilised base layer compacted to 98 % of MDD:
C118: (a) | E118: Using non-cemented material compacted to ... mm thick (specify) | F118: cubic metre (m3) | I118: =G118*H118 -> 0 | J118: X
C119: (b) | E119: Using cemented material compacted to ... mm thick (specify) | F119: cubic metre (m3) | I119: =G119*H119 -> 0 | J119: X
C120: (c) | E120: Using a combination of non-cemented and cemented material compacted to ... mm thick (specify) | F120: cubic metre (m3) | I120: =G120*H120 -> 0 | J120: X
C121: (d) | E121: Using pre-pulverised material (as per item C5.5.8) compacted to ... mm thick (specify) | F121: cubic metre (m3) | I121: =G121*H121 -> 0 | J121: X
B122: C5.5.19.2 | E122: Emulsion stabilised base layer compacted to 102% of MDD:
C123: (a) | E123: Using non-cemented material compacted to ... mm thick (specify) | F123: cubic metre (m3) | I123: =G123*H123 -> 0 | J123: X
C124: (b) | E124: Using cemented material compacted to ... mm thick (specify) | F124: cubic metre (m3) | I124: =G124*H124 -> 0 | J124: X
C125: (c) | E125: Using a combination of non-cemented and cemented material compacted to ... mm thick (specify) | F125: cubic metre (m3) | I125: =G125*H125 -> 0 | J125: X
C126: (d) | E126: Using pre-pulverised material (as per item C5.5.8) compacted to ... mm thick (specify) | F126: cubic metre (m3) | I126: =G126*H126 -> 0 | J126: X
B127: C5.5.19.3 | E127: Foam stabilised base layer compacted to 102% of MDD
C128: (a) | E128: Using non-cemented material compacted to ... mm thick (specify) | F128: cubic metre (m3) | I128: =G128*H128 -> 0 | J128: X
C129: (b) | E129: Using cemented material compacted to ... mm thick (specify) | F129: cubic metre (m3) | I129: =G129*H129 -> 0 | J129: X
C130: (c) | E130: Using a combination of non-cemented and cemented material compacted to ... mm thick (specify) | F130: cubic metre (m3) | I130: =G130*H130 -> 0 | J130: X
C131: (d) | E131: Using pre-pulverised material (as per item C5.5.8) compacted to ... mm thick (specify) | F131: cubic metre (m3) | I131: =G131*H131 -> 0 | J131: X
A132: C5.5.20 | E132: Material shortfall or make-up material
B133: C5.5.20.1 | E133: For selected layer | F133: cubic metre (m3) | I133: =G133*H133 -> 0
B134: C5.5.20.2 | E134: For subbase layer | F134: cubic metre (m3) | H134: R700.00 | I134: =G134*H134 -> 0
B135: C5.5.20.3 | E135: For base layer | F135: cubic metre (m3) | I135: =G135*H135 -> 0
A136: C5.5.21 | E136: Finishing the stabilised layer
B137: C5.5.21.1 | E137: Slush trial section with:
C138: (a) | E138: Water | F138: square metre (m2) | I138: =G138*H138 -> 0
C139: (b) | E139: Diluted emulsion | F139: square metre (m2) | I139: =G139*H139 -> 0
B140: C5.5.21.2 | E140: Slush reconstructed section with:
C141: (a) | E141: Water | F141: square metre (m2) | I141: =G141*H141 -> 0
C142: (b) | E142: Diluted emulsion | F142: square metre (m2) | I142: =G142*H142 -> 0
B143: C5.5.21.3 | E143: Application of a diluted emulsion spray | F143: litre (ℓ) | I143: =G143*H143 -> 0
A144: C5.5.22 | E144: Excavate pavement layers for patching in existing pavements
B145: C5.5.22.1 | E145: Excavate the following layers:
C146: (a) | E146: Asphalt layers with a surface area:
D147: (i) | E147: Not exceeding 20 m2, including for edge repairs wider than 250mm | F147: cubic metre (m3) | I147: =G147*H147 -> 0
D148: (ii) | E148: Exceeding 20 m2 but not exceeding 50 m2, including for edge repairs wider than 250mm | F148: cubic metre (m3) | I148: =G148*H148 -> 0
D149: (iii) | E149: Exceeding 50 m2 but not exceeding 100 m2, including for edge repairs wider than 250mm. | F149: cubic metre (m3) | I149: =G149*H149 -> 0
C150: (b) | E150: Cemented layers with a surface area:
D151: (i) | E151: Not exceeding 20 m2, including for edge repairs wider than 250mm | F151: cubic metre (m3) | I151: =G151*H151 -> 0
D152: (ii) | E152: Exceeding 20 m2 but not exceeding 50 m2, including for edge repairs wider than 250mm | F152: cubic metre (m3) | I152: =G152*H152 -> 0
D153: (iii) | E153: Exceeding 50 m2 but not exceeding 100 m2, including for edge repairs wider than 250mm | F153: cubic metre (m3) | I153: =G153*H153 -> 0
C154: (c) | E154: Any other layers (specify layer) with a surface area: | J154: X
D155: (i) | E155: Not exceeding 20 m2, including for edge repairs wider than 250mm | F155: cubic metre (m3) | I155: =G155*H155 -> 0
D156: (ii) | E156: Exceeding 20 m2 but not exceeding 50 m2, including for edge repairs wider than 250mm | F156: cubic metre (m3) | I156: =G156*H156 -> 0
D157: (iii) | E157: Exceeding 50 m2 but not exceeding 100 m2, including for edge repairs wider than 250mm. | F157: cubic metre (m3) | I157: =G157*H157 -> 0
B158: C5.5.22.2 | E158: Excavate the following layers using labour enhanced methods of construction:
C159: (a) | E159: Asphalt layers with a surface area:
D160: (i) | E160: Not exceeding 20 m2, including for edge repairs wider than 250mm | F160: cubic metre (m3) | I160: =G160*H160 -> 0
D161: (ii) | E161: Exceeding 20 m2 but not exceeding 50 m2, including for edge repairs wider than 250mm | F161: cubic metre (m3) | I161: =G161*H161 -> 0
D162: (iii) | E162: Exceeding 50 m2 but not exceeding 100 m2, including for edge repairs wider than 250mm | F162: cubic metre (m3) | I162: =G162*H162 -> 0
C163: (b) | E163: Cemented layers with a surface area:
D164: (i) | E164: Not exceeding 20 m2, including for edge repairs wider than 250mm | F164: cubic metre (m3) | I164: =G164*H164 -> 0
D165: (ii) | E165: Exceeding 20 m2 but not exceeding 50 m2, including for edge repairs wider than 250mm | F165: cubic metre (m3) | I165: =G165*H165 -> 0
D166: (iii) | E166: Exceeding 50 m2 but not exceeding 100 m2, including for edge repairs wider than 250mm | F166: cubic metre (m3) | I166: =G166*H166 -> 0
C167: (c) | E167: Any other layers (specify type) with a surface area: | J167: X
D168: (i) | E168: Not exceeding 20 m2, including for edge repairs wider than 250mm | F168: cubic metre (m3) | I168: =G168*H168 -> 0
D169: (ii) | E169: Exceeding 20 m2 but not exceeding 50 m2, including for edge repairs wider than 250mm | F169: cubic metre (m3) | I169: =G169*H169 -> 0
D170: (iii) | E170: Exceeding 50 m2 but not exceeding 100 m2, including for edge repairs wider than 250mm | F170: cubic metre (m3) | I170: =G170*H170 -> 0
A171: C5.5.23 | E171: Edge break cutting back when narrower than 250mm
B172: C5.5.23.1 | E172: Edge break cutting back when narrower than 250mm | F172: metre (m) | H172: R200.00 | I172: =G172*H172 -> 0
B173: C5.5.23.2 | E173: Edge break cutting back when narrower than 250mm using labour enhanced methods of construction | F173: metre (m) | I173: =G173*H173 -> 0
A174: C5.5.24 | E174: Edge break patching when narrower than 250mm
B175: C5.5.24.1 | E175: Edge break patching using emulsion treated base (ETB) material to a maximum depth of 150mm | F175: metre (m) | I175: =G175*H175 -> 0
B176: C5.5.24.2 | E176: Edge break patching using labour enhanced methods of construction and ETB to a maximum depth of 150mm | F176: metre (m) | I176: =G176*H176 -> 0
A177: C5.5.25 | E177: Compacting the floor of the excavation for patching | F177: square metre (m2) | I177: =G177*H177 -> 0
A178: C5.5.26 | E178: Backfill patching excavations in existing pavements:
B179: C5.5.26.1 | E179: Backfill with the following pavement layer material:
C180: (a) | E180: Chemically stabilised pavement layer material (specify the pavement layer, the material source being from commercial or from stockpile, the % stabilising agent and the % of MDD) for a patch with a surface area: | J180: X
D181: (i) | E181: Not exceeding 20 m2, including for edge repairs wider than 250mm | F181: cubic metre (m3) | I181: =G181*H181 -> 0
D182: (ii) | E182: Exceeding 20 m2 but not exceeding 50 m2, including for edge repairs wider than 250mm | F182: cubic metre (m3) | I182: =G182*H182 -> 0
D183: (iii) | E183: Exceeding 50 m2 but not exceeding 100 m2, including for edge repairs wider than 250mm | F183: cubic metre (m3) | I183: =G183*H183 -> 0
C184: (b) | E184: Emulsion treated base, or ETB pavement material (Subbase from pre-pulversided stockpiled material, 102% of MDD) for a patch with a surface area: | J184: X
D185: (i) | E185: Not exceeding 20 m2, including for edge repairs wider than 250mm | F185: cubic metre (m3) | I185: =G185*H185 -> 0
D186: (ii) | E186: Exceeding 20 m2 but not exceeding 50 m2, including for edge repairs wider than 250mm | F186: cubic metre (m3) | I186: =G186*H186 -> 0
D187: (iii) | E187: Exceeding 50 m2 but not exceeding 100 m2, including for edge repairs wider than 250mm. | F187: cubic metre (m3) | I187: =G187*H187 -> 0
B188: C5.5.26.2 | E188: Backfill with the following pavement layer material using labour enhanced methods of construction:
C189: (a) | E189: Chemically stabilised pavement material (specify the pavement layer, the material source being from commercial or from stockpile, the % stabilising agent and the % of MDD) for a patch with a surface area: | J189: X
D190: (i) | E190: Not exceeding 20 m2, including for edge repairs wider than 250mm | F190: cubic metre (m3) | I190: =G190*H190 -> 0
D191: (ii) | E191: Exceeding 20 m2 but not exceeding 50 m2, including for edge repairs wider than 250mm | F191: cubic metre (m3) | I191: =G191*H191 -> 0
D192: (iii) | E192: Exceeding 50 m2 but not exceeding 100 m2, including for edge repairs wider than 250mm. | F192: cubic metre (m3) | I192: =G192*H192 -> 0
C193: (b) | E193: Emulsion treated base, or ETB pavement material (specify the pavement layer, the material source being from commercial or from stockpile, the components as per Clause A4.1.5.14, and the % of MDD) for a patch with a surface area: | J193: X
D194: (i) | E194: Not exceeding 20 m2, including for edge repairs wider than 250mm | F194: cubic metre (m3) | I194: =G194*H194 -> 0
D195: (ii) | E195: Exceeding 20 m2 but not exceeding 50 m2, including for edge repairs wider than 250mm | F195: cubic metre (m3) | I195: =G195*H195 -> 0
D196: (iii) | E196: Exceeding 50 m2 but not exceeding 100 m2, including for edge repairs wider than 250mm. | F196: cubic metre (m3) | I196: =G196*H196 -> 0
A200: TOTAL CARRIED FORWARD TO SUMMARY | I200: =SUM(I5:I199) -> 0

Sheet C6.1 (hidden)
A1: C6.1 | E1: PAVER LAID CONCRETE LAYERS
A2: ITEM | D2: DESCRIPTION | E2: UNIT | F2: QTY | G2: RATE | H2: AMT | I2: Note to compiler: Items requiring additional information to be provided by compiler is marked in this column by X.
A5: C6.1.1 | D5: Construction of trial section (Complete: including texturing and curing)
B6: C6.1.1.1 | D6: Mechanical construction (state pavement type and nominal thickness) | E6: square metre (m2) | H6: =F6*G6 -> 0 | I6: X
B7: C6.1.1.2 | D7: Labour enhanced construction (state pavement type and nominal thickness) | E7: square metre (m2) | H7: =F7*G7 -> 0 | I7: X
A8: C6.1.2 | D8: Construction of jointed concrete pavement (JCP) (Excluding texturing and curing)
B9: C6.1.2.1 | D9: JCP without dowels:
C10: (a) | D10: Paver laid construction (state nominal thickness) | E10: square metre (m2) | H10: =F10*G10 -> 0 | I10: X
C11: (b) | D11: Labour enhanced construction (state nominal thickness) | E11: square metre (m2) | H11: =F11*G11 -> 0 | I11: X
B12: C6.1.2.2 | D12: JCP with dowels:
C13: (a) | D13: Paver laid construction (state nominal thickness) | E13: square metre (m2) | H13: =F13*G13 -> 0 | I13: X
C14: (b) | D14: Labour enhanced construction (state nominal thickness) | E14: square metre (m2) | H14: =F14*G14 -> 0 | I14: X
B15: C6.1.2.3 | D15: Additional concrete placed to thicken up the slab at joints as specified in the Contract Documentation | E15: cubic metre (m3) | H15: =F15*G15 -> 0
A16: C6.1.3 | D16: Construction of continuously reinforced concrete pavement (Excluding texturing and curing)
B17: C6.1.3.1 | D17: Continuously reinforced concrete pavement (CRCP):
C18: (a) | D18: Paver laid construction (state nominal thickness) | E18: square metre (m2) | H18: =F18*G18 -> 0 | I18: X
C19: (b) | D19: Labour enhanced construction (state nominal thickness) | E19: square metre (m2) | H19: =F19*G19 -> 0 | I19: X
A20: C6.1.4 | D20: Texturing and curing the concrete pavement
B21: C6.1.4.1 | D21: Burlap-dragged and grooved texture:
C22: (a) | D22: Paving train constructed | E22: square metre (m2) | H22: =F22*G22 -> 0
C23: (b) | D23: Labour enhanced construction | E23: square metre (m2) | H23: =F23*G23 -> 0
B24: C6.1.4.2 | D24: Burlap-dragged and broom finish only | E24: square metre (m2) | H24: =F24*G24 -> 0
B25: C6.1.4.3 | D25: Curing:
C26: (a) | D26: Paving train constructed | E26: square metre (m2) | H26: =F26*G26 -> 0
C27: (b) | D27: Labour enhanced construction | E27: square metre (m2) | H27: =F27*G27 -> 0
A28: C6.1.5 | D28: Variation in the rate of application of the curing compound | E28: litre (ℓ) | H28: =F28*G28 -> 0
A29: C6.1.6 | D29: Joints
B30: C6.1.6.1 | D30: Expansion joints complete (excluding dowels) | E30: metre (m) | H30: =F30*G30 -> 0
B31: C6.1.6.2 | D31: Longitudinal hinge joints:
C32: (a) | D32: Sealed hinge joints (indicate type and reference to drawings) | E32: metre (m) | H32: =F32*G32 -> 0 | I32: X
C33: (b) | D33: Unsealed hinge joints (indicate type and reference to drawings) | E33: metre (m) | H33: =F33*G33 -> 0 | I33: X
B34: C6.1.6.3 | D34: Sealed transverse contraction joints sawn in two separate operations (widths as shown on the drawings) | E34: metre (m) | H34: =F34*G34 -> 0 | I34: X
B35: C6.1.6.4 | D35: Dowel bars: mild steel inserted in new concrete (indicate diameter, length and position on drawings): | I35: X
C36: (a) | D36: Inserted by mechanical dowel bar inserter | E36: number (No.) | H36: =F36*G36 -> 0
C37: (b) | D37: Pre-installed on approved frame | E37: number (No.) | H37: =F37*G37 -> 0
B38: C6.1.6.5 | D38: Tie-bars: installed in new concrete (indicate, diameter and length): | I38: X
C39: (a) | D39: Mild steel | E39: number (No.) | H39: =F39*G39 -> 0
C40: (b) | D40: High tensile steel | E40: number (No.) | H40: =F40*G40 -> 0
B41: C6.1.6.6 | D41: Forming and sealing joints between asphalt and concrete pavements | E41: metre (m) | H41: =F41*G41 -> 0
A42: C6.1.7 | D42: Steel reinforcement in concrete pavements
B43: C6.1.7.1 | D43: Mild steel bars | E43: ton (t) | H43: =F43*G43 -> 0
B44: C6.1.7.2 | D44: High tensile steel bars | E44: ton (t) | H44: =F44*G44 -> 0
B45: C6.1.7.3 | D45: Welded steel fabric | E45: kilogram (kg) | H45: =F45*G45 -> 0
A46: C6.1.8 | D46: Drilling of testing of cores
B47: C6.1.8.1 | D47: 100mm cores drilled from pavement for testing of compressive strength | E47: number (No.) | H47: =F47*G47 -> 0
B48: C6.1.8.2 | D48: 150mm cores drilled from pavement for testing of compressive strength | E48: number (No.) | H48: =F48*G48 -> 0
A52: TOTAL CARRIED FORWARD TO SUMMARY | H52: =SUM(H5:H51) -> 0

Sheet C6.2_Block paving (hidden)
A1: C6.2 | D1: SEGMENTAL BLOCK PAVING LAYERS
A2: ITEM | C2: DESCRIPTION | D2: UNIT | E2: QTY | F2: RATE | G2: AMT | H2: Note to compiler: Items requiring additional information to be provided by compiler is marked in this column by X.
A5: C6.2.1 | C5: Segmental block paving
B6: C6.2.1.1. | C6: Concrete block paving (Class 35Mpa, Type S-A and 80mm) | D6: square metre (m2) | F6: R320.00 | G6: =E6*F6 -> 0 | H6: X
A7: C6.2.2 | C7: Cast in-situ concrete edge and intermediate beams | D7: cubic metre (m3) | F7: R2,400.00 | G7: =E7*F7 -> 0
A8: C6.2.3 | C8: Provision and application of approved herbicide and ant poison
B9: C6.2.3.1 | C9: Provision of materials | D9: prime cost (PC) sum | E9: Prime | F9: Cost
B10: C6.2.3.2 | C10: Contractor’s charges and profit added to the prime cost sum | D10: percentage (%) | E10: =G9 -> 0 | F10: 1% | G10: =F10*E10 -> 0
A11: C6.2.4 | C11: Re-sanding of joints in segmental block paving
B12: C6.2.4.1 | C12: Concrete block paving (Class 35Mpa, Type S-A and 60mm) | D12: square metre (m2) | F12: R25.00 | G12: =E12*F12 -> 0 | H12: X
A16: TOTAL CARRIED FORWARD TO SUMMARY | G16: =SUM(G5:G15) -> 0

Sheet C7.1 (hidden)
A1: C7.1 | D1: REPLACEMENT OF EXISTING JOINT SEALANT
A2: ITEM | C2: DESCRIPTION | D2: UNIT | E2: QTY | F2: RATE | G2: AMT | H2: Note to compiler: Items requiring additional information to be provided by compiler is marked in this column by X.
A5: C7.1.1 | C5: Replacing of joint sealant in existing concrete pavement as follows:
B6: C7.1.1.1 | C6: Removal of existing seal and backing material | D6: metre (m) | F6: R70.00 | G6: =E6*F6 -> 0
B7: C7.1.1.2 | C7: Reaming of existing joints (indicate width and depth) | D7: metre (m) | G7: 0 | H7: X
B8: C7.1.1.3 | C8: Bevelling of one side of the joint to a dimension of 10mm X 10mm | D8: metre (m) | F8: R50.00 | G8: 0
B9: C7.1.1.4 | C9: Bevelling of both sides of the joint to a dimension of 10mm X 10mm | D9: metre (m) | G9: =E9*F9 -> 0
B10: C7.1.1.5 | C10: Installation of backing material in saw cut joints (to fit saw cut dimensions) | D10: metre (m) | G10: 0
B11: C7.1.1.6 | C11: Installation of cold pour sealant | D11: litre (ℓ) | G11: 0
A12: C7.1.2 | C12: Costs incurred due to repair and monitoring in terms of Product Performance Guarantee System (PPGS) | D12: lump sum | G12: 0
A16: TOTAL CARRIED FORWARD TO SUMMARY | G16: =SUM(G5:G15) -> 0

Sheet C7.2 (hidden)
A1: C7.2 | E1: REPAIR TO EXISTING JOINTS AND UNCONTROLLED CRACKS IN CONCRETE PAVEMENTS
A2: ITEM | D2: DESCRIPTION | E2: UNIT | F2: QTY | G2: RATE | H2: AMT | I2: Note to compiler: Items requiring additional information to be provided by compiler is marked in this column by X.
A4: C7.2.1 | D4: Transverse and longitudinal crack and joint repairs incorporating the following treatments
B5: C7.2.1.1 | D5: Routing of active cracks (20mm wide and 50mm deep) | E5: metre (m) | G5: R50.00 | H5: =F5*G5 -> 0 | I5: X
B6: C7.2.1.2 | D6: Routing of non-active cracks (20mm wide and 50mm deep) | E6: metre (m) | G6: R50.00 | H6: 0 | I6: X
B7: C7.2.1.3 | D7: Bevelling of one side of the crack (10mm) | E7: metre (m) | G7: R50.00 | H7: 0 | I7: X
B8: C7.2.1.4 | D8: Bevelling of both sides of the crack (10mm) | E8: metre (m) | G8: R50.00 | H8: 0 | I8: X
B9: C7.2.1.5 | D9: Saw cutting of cracks and joints in one operation (20mm wide and 50mm deep) | E9: metre (m) | G9: R200.00 | H9: 0 | I9: X
B10: C7.2.1.6 | D10: Filling joint reservoir with cementitious non-shrink grout | E10: kilogram (kg) | G10: R500.00 | H10: 0
B11: C7.2.1.7 | D11: Installation of backing material in saw cut joints (to fit saw cut dimensions) | E11: metre (m) | G11: R50.00 | H11: 0
B12: C7.2.1.8 | D12: Installation of cold pour sealant | E12: litre (ℓ) | G12: R100.00 | H12: 0
A13: C7.2.2 | D13: Grouting of cracks | E13: metre (m) | G13: R100.00 | H13: 0
A14: C7.2.3 | D14: Cross-stitching of longitudinal and transverse joints and cracks
B15: C7.2.3.1 | D15: Saw cutting of slots in concrete pavement (20mm wide and 50mm deep) | E15: number (No.) | G15: R100.00 | H15: =F15*G15 -> 0 | I15: X
B16: C7.2.3.2 | D16: Application of wet-to-dry epoxy to vertical faces and top of existing concrete | E16: litre (ℓ) | G16: R100.00 | H16: =F16*G16 -> 0
B17: C7.2.3.3 | D17: Installation of 16mm diameter deformed tie-bar (500mm) including application of self-levelling pourable epoxy grout and 7,1mm aggregate. | E17: number (No.) | G17: R5,000.00 | H17: =F17*G17 -> 0 | I17: X
B18: C7.2.3.4 | D18: Filling of slot with high strength concrete Class 50/7,1mm | E18: cubic metre (m3) | G18: R5,000.00 | H18: =F18*G18 -> 0
A19: C7.2.4 | D19: Restoration of load transfer at transverse contraction joints
B20: C7.2.4.1 | D20: Saw cutting and preparation of slots in concrete pavement (indicate dimensions) | E20: number (No.) | H20: =F20*G20 -> 0 | I20: X
B21: C7.2.4.2 | D21: Installation of new dowel bars as specified (indicate length and diameter) including application of bond breaker on free end, end caps | E21: number (No.) | H21: =F21*G21 -> 0 | I21: X
B22: C7.2.4.3 | D22: Filling of slot with high strength concrete Class 50/7,1mm | E22: number (No.) | H22: =F22*G22 -> 0
A23: C7.2.5 | D23: Pre-treating existing dowels
B24: C7.2.5.1 | D24: Free ends in existing concrete | E24: number (No.) | H24: =F24*G24 -> 0
B25: C7.2.5.2 | D25: Free ends in new concrete | E25: number (No.) | H25: =F25*G25 -> 0
A26: C7.2.6 | D26: Texturing and curing the concrete pavement
B27: C7.2.6.1 | D27: Burlap-dragged and grooved texture | E27: square metre (m2) | H27: =F27*G27 -> 0
B28: C7.2.6.2 | D28: Curing
C29: (a) | D29: Paving train constructed | E29: square metre (m2) | H29: =F29*G29 -> 0
A30: C7.2.7 | D30: Variation in the rate of application of the curing compound | E30: litre (ℓ) | H30: =F30*G30 -> 0
A31: C7.2.8 | D31: Steel reinforcement in concrete pavements
B32: C7.2.8.1 | D32: Mild steel bars | E32: ton (t) | H32: =F32*G32 -> 0
B33: C7.2.8.2 | D33: High tensile steel bars | E33: ton (t) | H33: =F33*G33 -> 0
B34: C7.2.8.3 | D34: Welded steel fabric | E34: kilogram (kg) | H34: =F34*G34 -> 0
A38: TOTAL CARRIED FORWARD TO SUMMARY | H38: =SUM(H5:H36) -> 0

Sheet C7.3 (hidden)
A1: C7.3 | D1: REMOVAL AND REINSTATEMENT OF EXISTING CONCRETE LAYERS
A2: ITEM | C2: DESCRIPTION | D2: UNIT | E2: QTY | F2: RATE | G2: AMT | H2: Note to compiler: Items requiring additional information to be provided by compiler is marked in this column by X.
A5: C7.3.1 | C5: Removal of concrete in rehabilitation work
B6: C7.3.1.1 | C6: Concrete without reinforcing | D6: cubic metre (m3) | F6: R1,000.00 | G6: =E6*F6 -> 0
B7: C7.3.1.2 | C7: Reinforced concrete | D7: cubic metre (m3) | F7: R500.00 | G7: =E7*F7 -> 0
B8: C7.3.1.3 | C8: Underlying layers | D8: cubic metre (m3) | G8: =E8*F8 -> 0
A9: C7.3.2 | C9: Full depth repairs using hand placed concrete with CEM I 52,5 | D9: cubic metre (m3) | F9: R4,000.00 | G9: =E9*F9 -> 0
A10: C7.3.3 | C10: Partial Depth Repairs using hand placed fine concrete | D10: cubic metre (m3) | F10: R4,500.00 | G10: =E10*F10 -> 0
A11: C7.3.4 | C11: Tie-bars and dowels for full depth repairs
B12: C7.3.4.1 | C12: Tie bars (indicate diameter and length) | D12: number (No.) | F12: R50.00 | G12: =E12*F12 -> 0 | H12: X
B13: C7.3.4.2 | C13: Dowel bars (indicate diameter and length) | D13: number (No.) | F13: R50.00 | G13: =E13*F13 -> 0 | H13: X
A14: C7.3.5 | C14: Partial Depth Repairs using hand placed acrylic resin grout | D14: square metre (m2) | F14: R1,000.00 | G14: =E14*F14 -> 0
A15: C7.3.6 | C15: Reinstating the subbase with lean mix concrete | D15: cubic metre (m3) | G15: =E15*F15 -> 0
A16: C7.3.7 | C16: Removal of exposed stitches in concrete pavement | D16: number (No.) | G16: =E16*F16 -> 0
A17: C7.3.8 | C17: Sawing of concrete in rehabilitation works to different depths
B18: C7.3.8.1 | C18: … (state depth in mm) | D18: metre (m) | G18: =E18*F18 -> 0 | H18: X
A19: C7.3.9 | C19: Removal of existing supporting layers in rehabilitation work
B20: C7.3.9.1 | C20: Granular material | D20: cubic metre (m3) | G20: =E20*F20 -> 0
B21: C7.3.9.2 | C21: Cemented material | D21: cubic metre (m3) | G21: =E21*F21 -> 0
B22: C3.3.9.3 | C22: Asphalt material | D22: cubic metre (m3) | G22: =E22*F22 -> 0
A23: C7.3.10 | C23: Preparing the underlying layers after the concrete has been removed
B24: C7.3.10.1 | C24: Re-compaction of remaining underlying layers | D24: square metre (m2) | G24: =E24*F24 -> 0
B25: C7.3.10.2 | C25: Replacement of granular layers (material class and thickness indicated) | D25: square metre (m2) | G25: 0 | H25: X
B26: C7.3.10.3 | C26: Replacement of stabilised layers (material class and thickness indicated) | D26: square metre (m2) | G26: 0 | H26: X
B27: C7.3.10.4 | C27: Replacement of supporting layers with 10 MPa lean mix concrete (material class and thickness indicated) | D27: square metre (m2) | G27: 0 | H27: X
B28: C7.3.10.5 | C28: Replacement of subbase with hot mix asphalt (thickness indicated) | D28: ton (t) | G28: 0 | H28: X
B29: C7.3.10.6 | C29: Levelling the surface with coarse slurry (micro surfacing) | D29: cubic metre (m3) | G29: 0
A30: C7.3.11 | C30: Reinstatement of concrete layers (Excluding texturing and curing)
B31: C7.3.11.1 | C31: Replacement of concrete in JCP pavements (thickness indicated) | D31: square metre (m2) | F31: R5,000.00 | G31: =E31*F31 -> 0 | H31: X
B32: C7.3.11.2 | C32: Replacement concrete in CRCP pavements (thickness indicated) | D32: square metre (m2) | F32: R5,000.00 | G32: =E32*F32 -> 0 | H32: X
A33: C7.3.12 | C33: Pre-treating existing dowels
B34: C7.3.12.1 | C34: Free ends in existing concrete | D34: number (No.) | G34: =E34*F34 -> 0
B35: C7.3.12.2 | C35: Free ends in new concrete | D35: number (No.) | G35: =E35*F35 -> 0
A36: C7.3.13 | C36: Texturing and curing the concrete pavement
B37: C7.3.13.1 | C37: Burlap-dragged and texture (indicate groove or broom finish) | D37: square metre (m2) | G37: =E37*F37 -> 0 | H37: X
B38: C7.3.13.2 | C38: Curing | D38: square metre (m2) | G38: =E38*F38 -> 0
A39: C7.3.14 | C39: Variation in the rate of application of the curing compound | D39: litre (ℓ) | G39: =E39*F39 -> 0
A40: C7.3.15 | C40: Steel reinforcement in concrete pavements
B41: C7.3.15.1 | C41: Mild steel bars | D41: ton (t) | G41: =E41*F41 -> 0
B42: C7.3.15.2 | C42: High tensile steel bars | D42: ton (t) | G42: =E42*F42 -> 0
B43: C7.3.15.3 | C43: Welded steel fabric | D43: kilogram (kg) | G43: =E43*F43 -> 0
A44: C7.3.16 | C44: Temporary Partial Depth Repairs using Asphalt Materials | D44: square metre (m2) | G44: =E44*F44 -> 0
A48: TOTAL CARRIED FORWARD TO SUMMARY | G48: =SUM(G5:G47) -> 0

Sheet C7.4 (hidden)
A1: C7.4 | D1: REINSTATEMENT OF SLAB SUPPORT BY GROUT INJECTION
A2: ITEM | C2: DESCRIPTION | D2: UNIT | E2: QTY | F2: RATE | G2: AMT
A5: C7.4.1 | C5: Sub-sealing of the concrete pavement | D5: number of 50 kg cement pockets | G5: =E5*F5 -> 0
A8: TOTAL CARRIED FORWARD TO SUMMARY | G8: =SUM(G5:G7) -> 0

Sheet C7.5 (hidden)
A1: C7.5 | D1: REINSTATEMENT OF RIDING QUALITY
A2: ITEM | C2: DESCRIPTION | D2: UNIT | E2: QTY | F2: RATE | G2: AMT
A5: C7.5.1 | C5: Grindingof existing concrete pavement surfaces | D5: square metre (m2) | G5: =E5*F5 -> 0
A9: TOTAL CARRIED FORWARD TO SUMMARY | G9: =SUM(G5:G8) -> 0

Sheet C7.6 (hidden)
A1: C7.6 | D1: REINSTATEMENT OF SURFACE TEXTURE
A2: ITEM | C2: DESCRIPTION | D2: UNIT | E2: QTY | F2: RATE | G2: AMT
A5: C7.6.1 | C5: Retexturing of concrete surfaces (transverse or longitudinal) | D5: square metre (m2) | G5: =E5*F5 -> 0
A9: TOTAL CARRIED FORWARD TO SUMMARY | G9: =SUM(G5:G8) -> 0

Sheet C8.1_Prime coat (hidden)
A1: C8.1 | D1: PRIME COAT
A2: ITEM | C2: DESCRIPTION | D2: UNIT | E2: QTY | F2: RATE | G2: AMT | H2: Note to compiler: Items requiring additional information to be provided by compiler is marked in this column by X.
A5: C8.1.1 | C5: Prime coat:
B6: C8.1.1.1 | C6: MC -10 cut-back bitumen | D6: litre (ℓ) | G6: =E6*F6 -> 0
B7: C8.1.1.2 | C7: MC -30 cut-back bitumen | D7: litre (ℓ) | G7: =E7*F7 -> 0
B8: C8.1.1.3 | C8: Inverted bitumen emulsion | D8: litre (ℓ) | G8: =E8*F8 -> 0
B9: C8.1.1.4 | C9: Certified product containing solvents (state name) | D9: litre (ℓ) | G9: =E9*F9 -> 0 | H9: X
B10: C8.1.1.5 | C10: Certified product containing no solvents (state name) | D10: litre (ℓ) | G10: =E10*F10 -> 0 | H10: X
A11: C8.1.2 | C11: Aggregate for blinding:
B12: C8.1.2.1 | C12: Natural sand | D12: cubic metre (m3) | G12: =E12*F12 -> 0
B13: C8.1.2.2 | C13: Crusher sand | D13: cubic metre (m3) | G13: =E13*F13 -> 0
A14: C8.1.3 | C14: Extra over item C8.1.1 for applying the prime coat accessible only to hand-held or light equipment | D14: litre (ℓ) | G14: =E14*F14 -> 0
A17: TOTAL CARRIED FORWARD TO SUMMARY | G17: =SUM(G5:G16) -> 0

Sheet C8.2 (hidden)
A1: C8.2 | E1: COVER SPRAYS, FOG SPRAYS AND REJUVENATION SPRAYS
A2: ITEM | D2: DESCRIPTION | E2: UNIT | F2: QTY | G2: RATE | H2: AMT | I2: Note to compiler: Items requiring additional information to be provided by compiler is marked in this column by X.
A5: C8.2.1 | D5: Cover sprays, fog sprays and rejuvenation sprays
B6: C8.2.1.1 | D6: 65% Cationic spray grade emulsion
C7: (a) | D7: Indicate dilution (Diluted ...% Emulsion/…% Water) (specify) | E7: litre (ℓ) | H7: =F7*G7 -> 0 | I7: X
B8: C8.2.1.2 | D8: 60% Anionic stable grade emulsion
C9: (a) | D9: Indicate dilution (Diluted 50% Emulsion/50% Water) | E9: litre (ℓ) | G9: R5.39 | H9: =F9*G9 -> 0 | I9: X
B10: C8.2.1.3 | D10: Cutback Inverted bitumen emulsion | E10: litre (ℓ) | H10: =F10*G10 -> 0
B11: C8.2.1.4 | D11: Certified rejuvenator (state type and certification) | E11: litre (ℓ) | H11: =F11*G11 -> 0 | I11: X
A12: C8.2.2 | D12: Extra over item C8.2.1 for labour enhanced application
B13: C8.2.2.1 | D13: 65% Cationic spray grade emulsion
C14: (a) | D14: Indicate dilution (Diluted ...% Emulsion/…% Water) (specify) | E14: litre (ℓ) | H14: =F14*G14 -> 0 | I14: X
B15: C8.2.2.2 | D15: 60% Anionic stable grade emulsion
C16: (a) | D16: Indicate dilution (Diluted ...% Emulsion/…% Water) (specify) | E16: litre (ℓ) | H16: =F16*G16 -> 0 | I16: X
B17: C8.2.2.3 | D17: Cutback inverted bitumen emulsion | E17: litre (ℓ) | H17: =F17*G17 -> 0
B18: C8.2.2.4 | D18: Certified rejuvenator (state type and certification) | E18: litre (ℓ) | H18: =F18*G18 -> 0 | I18: X
A22: TOTAL CARRIED FORWARD TO SUMMARY | H22: =SUM(H5:H21) -> 0

Sheet C8.3_Texture Treatment (hidden)
A1: C8.3 | D1: TEXTURE TREATMENT
A2: ITEM | C2: DESCRIPTION | D2: UNIT | E2: QTY | F2: RATE | G2: AMT | H2: Note to compiler: Items requiring additional information to be provided by compiler is marked in this column by X.
A5: C8.3.1 | C5: Texture treatment
B6: C8.3.1.1 | C6: Application of slurry for texture improvement, applied by hand (COTO Table 10.1.5-11 Fine - Fine grade) | D6: cubic metre (m3) | F6: R890.00 | G6: =E6*F6 -> 0 | H6: X
B7: C8.3.1.2 | C7: Application of slurry for texture improvement, applied by spreader box (coarse slurry course grade, 60% anionic stable-grade emulsion (50/50) binder, lime filler) | D7: cubic metre (m3) | G7: =E7*F7 -> 0 | H7: X
B8: C8.3.1.3 | C8: Application of microsurfacing for texture improvement, applied by spreader box (indicate aggregate grade, type of emulsion, filler type) | D8: cubic metre (m3) | G8: =E8*F8 -> 0 | H8: X
A12: TOTAL CARRIED FORWARD TO SUMMARY | G12: =SUM(G5:G11) -> 0
F18: =FV(0.06,6,,1500,0) -> (R2,127.78) | G18: r/t
C19: Type of texture slurry. Fine/Coarse?. Binder
F20: =F18/2.4 -> (R886.57)

Sheet C8.4_Rut correction (hidden)
A1: C8.4 | E1: RUT AND/OR DEPRESSION CORRECTION
A2: ITEM | D2: DESCRIPTION | E2: UNIT | F2: QTY | G2: RATE | H2: AMT | I2: Note to compiler: Items requiring additional information to be provided by compiler is marked in this column by X.
A5: C8.4.1 | D5: Rut and/or Depression correction (screeding)
B6: C8.4.1.1 | D6: Bond coat using 50% diluted stable grade bitumen emulsion | E6: litre (ℓ) | H6: =F6*G6 -> 0
B7: C8.4.1.2 | D7: Correction material
C8: (a) | D8: Continuously-graded asphalt (state Nominal maximum aggregate size and binder type) | E8: ton (t) | H8: =F8*G8 -> 0 | I8: X
C9: (b) | D9: Semi-gap graded asphalt (state Nominal maximum aggregate size and binder type) | E9: ton (t) | H9: =F9*G9 -> 0 | I9: X
C10: (c) | D10: Cold applied asphalt (Agrèment SA certified for specific class as specified) | E10: ton (t) | H10: =F10*G10 -> 0 | I10: X
C11: (d) | D11: Coarse slurry (Type II aggregate using an AC-E2 modified emulsion) | E11: cubic metre (m3) | G11: R5,000.00 | H11: =F11*G11 -> 0 | I11: X
C12: (e) | D12: Rapid setting polymer modified cationic emulsion (50/70 binder) (Coarse Slurry - Type I), applied by variable width spreader box | E12: cubic metre (m3) | G12: R5,000.00 | H12: =F12*G12 -> 0 | I12: X | J12: Manual | K12: =7600*0.4*0.016*1.7 -> 82.688
K15: =Repairs!AI170*2 -> 0
A16: TOTAL CARRIED FORWARD TO SUMMARY | H16: =SUM(H5:H15) -> 0

Sheet C8.5_Standard Crack Sealing (hidden)
A1: C8.5 | E1: STANDARD CRACK SEALING
A2: ITEM | D2: DESCRIPTION | E2: UNIT | F2: QTY | G2: RATE | H2: AMT | I2: Note to compiler: Items requiring additional information to be provided by compiler is marked in this column by X.
A5: C8.5.1 | D5: Standard crack sealing
B6: C8.5.1.1 | D6: Cleaning cracks
C7: (a) | D7: Cleaning crack with cold compressed air | E7: metre (m) | H7: =F7*G7 -> 0
C8: (b) | D8: Cleaning crack with hot compressed air | E8: metre (m) | G8: R100.00 | H8: =F8*G8 -> 0
B9: C8.5.1.2 | D9: Applying herbicides for sealing cracks | E9: litre (ℓ) | H9: =F9*G9 -> 0
B10: C8.5.1.3 | D10: Priming using 65% cationic bitumen emulsion | E10: litre (ℓ) | G10: R22.00 | H10: =F10*G10 -> 0 | I10: X
B11: C8.5.1.4 | D11: Sealing the cracks
C12: (a) | D12: Sealing using Class C-E1 modified binder crack sealant | E12: litre (ℓ) | G12: R13.00 | H12: =F12*G12 -> 0 | I12: X
B13: C8.5.1.5 | D13: Heating of surface before rolling | E13: metre (m) | G13: R5.00 | H13: =F13*G13 -> 0
B14: C8.5.1.6 | D14: Rolling the cracks | E14: metre (m) | G14: R5.00 | H14: =F14*G14 -> 0
A18: TOTAL CARRIED FORWARD TO SUMMARY | H18: =SUM(H5:H17) -> 0

Sheet C8.6_Geosynthetic CS (hidden)
A1: C8.6 | D1: GEOSYNTHETIC CRACK SEALING
A2: ITEM | C2: DESCRIPTION | D2: UNIT | E2: QTY | F2: RATE | G2: AMT | H2: Note to compiler: Items requiring additional information to be provided by compiler is marked in this column by X.
A5: C8.6.1 | C5: Geosynthetic crack sealing
B6: C8.6.1.1 | C6: Sealing cracks with 200mm wide geosynthetic (using binder class SC-E1 (excluding cutters)) | D6: metre (m) | F6: R55.00 | G6: =E6*F6 -> 0 | H6: X
B7: C8.6.1.2 | C7: Sealing cracks with geosynthetic over areas (using binder class SC-E1 (excluding cutters)) | D7: square metre (m2) | F7: =F6/0.2 -> R275.00 | G7: =E7*F7 -> 0 | H7: X
A10: TOTAL CARRIED FORWARD TO SUMMARY | G10: =SUM(G5:G9) -> 0

Sheet C8.7 (hidden)
A1: C8.7 | D1: PLANING
A2: ITEM | C2: DESCRIPTION | D2: UNIT | E2: QTY | F2: RATE | G2: AMT | H2: Note to compiler: Items requiring additional information to be provided by compiler is marked in this column by X.
A5: C8.7.1 | C5: Planing
B6: C8.7.1.1 | C6: Planing of road surface (indicate thickness in mm) | D6: square metre (m2) | G6: =E6*F6 -> 0 | H6: X
B7: C8.7.1.2 | C7: Fog spraying on planed surfaces | D7: litre (ℓ) | G7: =E7*F7 -> 0
B8: C8.7.1.3 | C8: Hand spraying | D8: litre (ℓ) | G8: =E8*F8 -> 0
B9: C8.7.1.4 | C9: Spraying with mechanical equipment | D9: litre (ℓ) | G9: =E9*F9 -> 0
B10: C8.7.1.5 | C10: Rolling the planed surface | D10: roller passes (m²-pass) | G10: =E10*F10 -> 0
A14: TOTAL CARRIED FORWARD TO SUMMARY | G14: =SUM(G5:G13) -> 0

Sheet Repairs (hidden)
B2: Sawing Depth (m) | D2: 0.040 | E2: Prime emulsion (l/m^2) | F2: 0.600 | G2: Texture slurry thickness (mm) | H2: 2.00 | J2: "Fat" | K2: 0.750
B3: Asphalt excavation depth (m) | D3: 0.040 | E3: Ave. Rut fill depth (m) | F3: =0.02*4/5 -> 0.016 | G3: Tack application rate (l/m^2) | H3: 0.55
B4: Excavation depth (Other layers) (m) | D4: 0.200 | E4: BP Surfacing thickness (m) | F4: =40/1000 -> 0.040 | G4: Asphalt Compacted SG (t/m^3) | H4: 2.45
B5: BP Backfilling Depth (m) | D5: 0.200 | E5: SP Surfacing (m) | F5: 0.040 | G5: Slurry dry aggregate SG (t/m^3) | H5: 1.90 | L5: Patching | AH5: TREATMENT OF AN EXISTING SURFACE EXHIBITING CERTAIN DEFECTS
L6: Excavation | Y6: Compacting | Z6: Prime/Tack | AB6: Capping | AH6: Slurry | AJ6: Edge Break Repairs | AM6: Crack Sealing | AO6: GEO-FABRIC QUANTITIES
Q7: Choose between cemented or non cemented bases
A8: BTB BP option | B8: SV (km) | C8: Lane | D8: Defect Type Code | E8: Condition Index | F8: Length (m) | G8: Width (m) | H8: Wheel Track | I8: Repair Code | L8: C8.8.1.1 (a) | M8: C8.8.2.1; Excavation in existing pavements for patching (non-milling); Asphalt layers | Q8: C8.8.2.2; Excavation in existing pavements for patching (non-milling); Cemented layers | U8: C8.8.2.3; Excavation in existing pavements for patching (non-milling); Other layers (crushed stone or cemented gravel) | Y8: C8.8.3 | Z8: 39/B41.01 | AA8: 39/42.04 | AB8: 39/42.20 Asphalt capping to Base Patches | AE8: 39/42.20 Asphalt Inlays to Surface Patches | AH8: B48.03 | AI8: C8.4.1.2 | AJ8: C8.8.6.1 | AK8: C8.8.6.2 | AL8: C8.8.6.3 | AM8: C8.5.1.1 | AP8: C8.8.5.1 | BA8: B48.16
J9: perimeter | K9: AREA | L9: Saw cutting pavement layers for patching; Asphalt or bituminous surfacing to an average depth | M9: (a) <10 | N9: (b) >10;<50 | O9: (c) >50;<100 | P9: (d) >100 | Q9: (a) <10 | R9: (b) >10;<50 | S9: (c) >50;<100 | T9: (d) >100 | U9: (a) <10 | V9: (b) >10;<50 | W9: (c) >50;<100 | X9: (d) >100 | Y9: Compacting the floor of excavations for patching | Z9: Prime to patches | AA9: Tack Coat to patches | AB9: <5 | AC9: >5;<100 | AD9: >100 | AE9: <5 | AF9: >5;<100 | AG9: >100 | AH9: slurry for texture improvement, applied by hand: | AI9: Rut Fill slurry | AJ9: Cutting back the edges of the existing surfacing for the repairing of edge breaks | AK9: Prime coat (65% Cationic emulsion @ 1 ℓ/m²) | AL9: Reconstructing edges using medium continuously-graded asphalt | AM9: Crack Sealing Long and Trans | AN9: Crack Sealing Block Cracks | AO9: Widths | AP9: 200mm for Patches | AQ9: 200mm | AR9: 500 mm | AS9: 1000mm | AT9: 1500mm | AU9: 2000mm | AV9: 2500mm | AW9: 3000mm | AX9: 3500mm | AY9: 4000mm | AZ9: >4000mm | BA9: Removal by sandblasting fuel and oil stains or bleeding areas on road surface
J10: m | K10: m² | L10: m | M10: m³ | N10: m³ | O10: m³ | P10: m³ | Q10: m³ | R10: m³ | S10: m³ | T10: m³ | U10: m³ | V10: m³ | W10: m³ | X10: m³ | Y10: m² | Z10: l | AA10: l | AB10: t | AC10: t | AD10: t | AE10: t | AF10: t | AG10: t | AH10: t | AI10: m3 | AJ10: m | AK10: litre | AL10: t | AM10: m | AN10: m | AO10: m | AP10: m | AQ10: m | AR10: m2 | AS10: m2 | AT10: m2 | AU10: m2 | AV10: m2 | AW10: m2 | AX10: m2 | AY10: m2 | AZ10: m2 | BA10: m
AR11: 0.5 | AS11: 1 | AT11: 1.5 | AU11: 2 | AV11: 2.5 | AW11: 3 | AX11: 3.5 | AY11: 4 | AZ11: 4.5
L13: =IF(I13="Ap",J13,IF(I13="Bp",J13,"")) ->  | M13: =IF((I13="Ap")*(K13<10),$D$3*K13*(1+$K$2),IF((I13="Bp")*(K13<10),$D$3*K13*(1+$K$2),"")) ->  | N13: =IF((I13="Ap")*(K13>=10)*(K13<50),$D$3*K13*(1+$K$2),IF((I13="Bp")*(K13>=10)*(K13<50),$D$3*K13*(1+$K$2),"")) ->  | O13: =IF((I13="Ap")*(K13>=50)*(K13<100),$D$3*K13*(1+$K$2),IF((I13="Bp")*(K13>=50)*(K13<100),$D$3*K13*(1+$K$2),"")) ->  | P13: =IF((I13="Ap")*(K13>100),$D$3*K13*(1+$K$2),IF((I13="Bp")*(K13>100),$D$3*K13*(1+$K$2),"")) ->  | U13: =IF((I13="Bp")*(K13<10),K13*$D$4*(1+$K$2),"") ->  | V13: =IF((I13="Bp")*(K13>=10)*(K13<50),K13*$D$4*(1+$K$2),"") ->  | W13: =IF((I13="Bp")*(K13>=50)*(K13<100),K13*$D$4*(1+$K$2),"") ->  | X13: =IF((I13="Bp")*(K13>=100),K13*$D$4*(1+$K$2),"") ->  | Y13: =IF(I13="Bp",K13*(1+$K$2),"") ->  | Z13: =IF(I13="Ap",K13*$F$2,IF(I13="Bp",K13*$F$2*(1+$K$2),"")) ->  | AA13: =IF(I13="Ap",K13*$H$3*(1+$K$2),IF(I13="Bp",K13*$H$3*(1+$K$2),"")) ->  | AB13: =IF((I13="Bp")*(K13<5),K13*$F$4*$H$4*(1+$K$2),"") ->  | AC13: =IF((I13="Bp")*(K13>=5)*(K13<100),K13*$F$4*$H$4*(1+$K$2),"") ->  | AD13: =IF((I13="Bp")*(K13>=100),K13*$F$4*$H$4*(1+$K$2),"") ->  | AE13: =IF((I13="Ap")*(K13<5),K13*$F$5*$H$4*(1+$K$2),"") ->  | AF13: =IF((I13="Ap")*(K13>=5)*(K13<100),K13*$F$5*$H$4*(1+$K$2),"") ->  | AG13: =IF((I13="Ap")*(K13>=100),K13*$F$5*$H$4*(1+$K$2),"") ->  | AH13: =IF((I13="St"),(K13*$H$2/1000)*$H$5*(1+$K$2),"") ->  | AI13: =IF((I13="RF"),K13*$F$3*(1+$K$2),"") ->  | AJ13: =IF($I13="EB",(F13*(1+$K$2)),"") ->  | AK13: =IF($I13="EB",(AJ13*0.3)*$H$3*(1+$K$2),"") ->  | AL13: =IF($I13="EB",(AJ13*0.2*0.1)*$H$4*(1+$K$2),"") ->  | AM13: =IF(I13="CsT",G13+((F13/5)*G13),IF(I13="CsL",F13,"")) ->  | AN13: =IF(I13="CsB",(2*F13+((F13/4)*G13)),"") ->  | AO13: =IF(I13="Gf",G13,"") ->  | AP13: =IF(I13="Ap",2*(F13*(1+$K$2))+2*G13,IF(I13="Bp",2*(F13*(1+$K$2))+2*G13,"")) ->  | AQ13: =IF(AO13=0,(F13*(1+$K$2)),"") ->  | AR13: =IF(AND(AO13>0,AO13<=0.2),(F13*(1+$K$2)*AR$11),"") ->  | AS13: =IF(AND(AO13>0.2,AO13<=0.5),(F13*(1+$K$2)*AS$11),"") ->  | AT13: =IF(AND(AO13>0.5,AO13<=1),(F13*(1+$K$2)*AT$11),"") ->  | AU13: =IF(AND(AO13>1,AO13<=1.5),(F13*(1+$K$2)*AU$11),"") ->  | AV13: =IF(AND(AO13>1.5,AO13<=2),(F13*(1+$K$2)*AV$11),"") ->  | AW13: =IF(AND(AO13>2,AO13<=2.5),(F13*(1+$K$2)*AW$11),"") ->  | AX13: =IF(AND(AO13>2.5,AO13<=3),(F13*(1+$K$2)*AX$11),"") ->  | AY13: =IF(AND(AO13>3,AO13<=3.5),(F13*(1+$K$2)*AY$11),"") ->  | AZ13: =IF(AND(AO13>3.5,AO13<=4),(F13*(1+$K$2)*AZ$11),"") ->  | BA13: =IF(I13="Sb",K13,"") -> 
L14: =IF(I14="Ap",J14,IF(I14="Bp",J14,"")) ->  | M14: =IF((I14="Ap")*(K14<10),$D$3*K14*(1+$K$2),IF((I14="Bp")*(K14<10),$D$3*K14*(1+$K$2),"")) ->  | N14: =IF((I14="Ap")*(K14>=10)*(K14<50),$D$3*K14*(1+$K$2),IF((I14="Bp")*(K14>=10)*(K14<50),$D$3*K14*(1+$K$2),"")) ->  | O14: =IF((I14="Ap")*(K14>=50)*(K14<100),$D$3*K14*(1+$K$2),IF((I14="Bp")*(K14>=50)*(K14<100),$D$3*K14*(1+$K$2),"")) ->  | P14: =IF((I14="Ap")*(K14>100),$D$3*K14*(1+$K$2),IF((I14="Bp")*(K14>100),$D$3*K14*(1+$K$2),"")) ->  | U14: =IF((I14="Bp")*(K14<10),K14*$D$4*(1+$K$2),"") ->  | V14: =IF((I14="Bp")*(K14>=10)*(K14<50),K14*$D$4*(1+$K$2),"") ->  | W14: =IF((I14="Bp")*(K14>=50)*(K14<100),K14*$D$4*(1+$K$2),"") ->  | AR14: =IF(AND(AO14>0,AO14<=0.2),(F14*(1+$K$2)*AR$11),"") ->  | AS14: =IF(AND(AO14>0.2,AO14<=0.5),(F14*(1+$K$2)*AS$11),"") ->  | AT14: =IF(AND(AO14>0.5,AO14<=1),(F14*(1+$K$2)*AT$11),"") ->  | AU14: =IF(AND(AO14>1,AO14<=1.5),(F14*(1+$K$2)*AU$11),"") ->  | AV14: =IF(AND(AO14>1.5,AO14<=2),(F14*(1+$K$2)*AV$11),"") ->  | AW14: =IF(AND(AO14>2,AO14<=2.5),(F14*(1+$K$2)*AW$11),"") ->  | AX14: =IF(AND(AO14>2.5,AO14<=3),(F14*(1+$K$2)*AX$11),"") ->  | AY14: =IF(AND(AO14>3,AO14<=3.5),(F14*(1+$K$2)*AY$11),"") ->  | AZ14: =IF(AND(AO14>3.5,AO14<=4),(F14*(1+$K$2)*AZ$11),"") -> 
P15: =IF((I15="Ap")*(K15>100),$D$3*K15*(1+$K$2),IF((I15="Bp")*(K15>100),$D$3*K15*(1+$K$2),"")) -> 
Z45: =IF(I45="Ap",K45*$F$2,IF(I45="Bp",K45*$F$2*(1+$K$2),"")) ->  | AA45: =IF(I45="Ap",K45*$H$3*(1+$K$2),IF(I45="Bp",K45*$H$3*(1+$K$2),"")) ->  | AB45: =IF((I45="Bp")*(K45<5),K45*$F$4*$H$4*(1+$K$2),"") ->  | AC45: =IF((I45="Bp")*(K45>=5)*(K45<100),K45*$F$4*$H$4*(1+$K$2),"") ->  | AD45: =IF((I45="Bp")*(K45>=100),K45*$F$4*$H$4*(1+$K$2),"") ->  | AE45: =IF((I45="Ap")*(K45<5),K45*$F$5*$H$4*(1+$K$2),"") ->  | AF45: =IF((I45="Ap")*(K45>=5)*(K45<100),K45*$F$5*$H$4*(1+$K$2),"") ->  | AG45: =IF((I45="Ap")*(K45>=100),K45*$F$5*$H$4*(1+$K$2),"") ->  | AH45: =IF((I45="St"),(K45*$H$2/1000)*$H$5*(1+$K$2),"") ->  | AI45: =IF((I45="RF"),K45*$F$3*(1+$K$2),"") ->  | AJ45: =IF($I45="EB",(F45*(1+$K$2)),"") ->  | AM45: =IF(I45="CsT",G45+((F45/5)*G45),IF(I45="CsL",F45,"")) ->  | AN45: =IF(I45="CsB",(2*F45+((F45/4)*G45)),"") ->  | AO45: =IF(I45="Gf",G45,"") ->  | AP45: =IF(I45="Ap",2*(F45*(1+$K$2))+2*G45,IF(I45="Bp",2*(F45*(1+$K$2))+2*G45,"")) ->  | AQ45: =IF(AO45=0,(F45*(1+$K$2)),"") ->  | BA45: =IF(I45="Sb",K45,"") -> 
X77: =IF((I77="Bp")*(K77>=100),K77*$D$4*(1+$K$2),"") ->  | Y77: =IF(I77="Bp",K77*(1+$K$2),"") ->  | Z77: =IF(I77="Ap",K77*$F$2,IF(I77="Bp",K77*$F$2*(1+$K$2),"")) ->  | AA77: =IF(I77="Ap",K77*$H$3*(1+$K$2),IF(I77="Bp",K77*$H$3*(1+$K$2),"")) ->  | AB77: =IF((I77="Bp")*(K77<5),K77*$F$4*$H$4*(1+$K$2),"") ->  | AC77: =IF((I77="Bp")*(K77>=5)*(K77<100),K77*$F$4*$H$4*(1+$K$2),"") ->  | AD77: =IF((I77="Bp")*(K77>=100),K77*$F$4*$H$4*(1+$K$2),"") ->  | AE77: =IF((I77="Ap")*(K77<5),K77*$F$5*$H$4*(1+$K$2),"") ->  | AF77: =IF((I77="Ap")*(K77>=5)*(K77<100),K77*$F$5*$H$4*(1+$K$2),"") ->  | AG77: =IF((I77="Ap")*(K77>=100),K77*$F$5*$H$4*(1+$K$2),"") ->  | AH77: =IF((I77="St"),(K77*$H$2/1000)*$H$5*(1+$K$2),"") ->  | AI77: =IF((I77="RF"),K77*$F$3*(1+$K$2),"") ->  | AJ77: =IF($I77="EB",(F77*(1+$K$2)),"") ->  | AK77: =IF($I77="EB",(AJ77*0.3)*$H$3*(1+$K$2),"") ->  | AL77: =IF($I77="EB",(AJ77*0.2*0.1)*$H$4*(1+$K$2),"") ->  | AM77: =IF(I77="CsT",G77+((F77/5)*G77),IF(I77="CsL",F77,"")) ->  | AN77: =IF(I77="CsB",(2*F77+((F77/4)*G77)),"") ->  | AO77: =IF(I77="Gf",G77,"") ->  | AP77: =IF(I77="Ap",2*(F77*(1+$K$2))+2*G77,IF(I77="Bp",2*(F77*(1+$K$2))+2*G77,"")) ->  | AQ77: =IF(AO77=0,(F77*(1+$K$2)),"") ->  | BA77: =IF(I77="Sb",K77,"") -> 
L78: =IF(I78="Ap",J78,IF(I78="Bp",J78,"")) ->  | M78: =IF((I78="Ap")*(K78<10),$D$3*K78*(1+$K$2),IF((I78="Bp")*(K78<10),$D$3*K78*(1+$K$2),"")) ->  | N78: =IF((I78="Ap")*(K78>=10)*(K78<50),$D$3*K78*(1+$K$2),IF((I78="Bp")*(K78>=10)*(K78<50),$D$3*K78*(1+$K$2),"")) ->  | O78: =IF((I78="Ap")*(K78>=50)*(K78<100),$D$3*K78*(1+$K$2),IF((I78="Bp")*(K78>=50)*(K78<100),$D$3*K78*(1+$K$2),"")) ->  | U78: =IF((I78="Bp")*(K78<10),K78*$D$4*(1+$K$2),"") ->  | V78: =IF((I78="Bp")*(K78>=10)*(K78<50),K78*$D$4*(1+$K$2),"") ->  | W78: =IF((I78="Bp")*(K78>=50)*(K78<100),K78*$D$4*(1+$K$2),"") ->  | AR78: =IF(AND(AO78>0,AO78<=0.2),(F78*(1+$K$2)*AR$11),"") ->  | AS78: =IF(AND(AO78>0.2,AO78<=0.5),(F78*(1+$K$2)*AS$11),"") ->  | AT78: =IF(AND(AO78>0.5,AO78<=1),(F78*(1+$K$2)*AT$11),"") ->  | AU78: =IF(AND(AO78>1,AO78<=1.5),(F78*(1+$K$2)*AU$11),"") ->  | AV78: =IF(AND(AO78>1.5,AO78<=2),(F78*(1+$K$2)*AV$11),"") ->  | AW78: =IF(AND(AO78>2,AO78<=2.5),(F78*(1+$K$2)*AW$11),"") ->  | AX78: =IF(AND(AO78>2.5,AO78<=3),(F78*(1+$K$2)*AX$11),"") ->  | AY78: =IF(AND(AO78>3,AO78<=3.5),(F78*(1+$K$2)*AY$11),"") ->  | AZ78: =IF(AND(AO78>3.5,AO78<=4),(F78*(1+$K$2)*AZ$11),"") -> 
P79: =IF((I79="Ap")*(K79>100),$D$3*K79*(1+$K$2),IF((I79="Bp")*(K79>100),$D$3*K79*(1+$K$2),"")) -> 
Z109: =IF(I109="Ap",K109*$F$2,IF(I109="Bp",K109*$F$2*(1+$K$2),"")) ->  | AA109: =IF(I109="Ap",K109*$H$3*(1+$K$2),IF(I109="Bp",K109*$H$3*(1+$K$2),"")) ->  | AB109: =IF((I109="Bp")*(K109<5),K109*$F$4*$H$4*(1+$K$2),"") ->  | AC109: =IF((I109="Bp")*(K109>=5)*(K109<100),K109*$F$4*$H$4*(1+$K$2),"") ->  | AD109: =IF((I109="Bp")*(K109>=100),K109*$F$4*$H$4*(1+$K$2),"") ->  | AE109: =IF((I109="Ap")*(K109<5),K109*$F$5*$H$4*(1+$K$2),"") ->  | AF109: =IF((I109="Ap")*(K109>=5)*(K109<100),K109*$F$5*$H$4*(1+$K$2),"") ->  | AG109: =IF((I109="Ap")*(K109>=100),K109*$F$5*$H$4*(1+$K$2),"") ->  | AH109: =IF((I109="St"),(K109*$H$2/1000)*$H$5*(1+$K$2),"") ->  | AI109: =IF((I109="RF"),K109*$F$3*(1+$K$2),"") ->  | AJ109: =IF($I109="EB",(F109*(1+$K$2)),"") ->  | AM109: =IF(I109="CsT",G109+((F109/5)*G109),IF(I109="CsL",F109,"")) ->  | AN109: =IF(I109="CsB",(2*F109+((F109/4)*G109)),"") ->  | AO109: =IF(I109="Gf",G109,"") ->  | AP109: =IF(I109="Ap",2*(F109*(1+$K$2))+2*G109,IF(I109="Bp",2*(F109*(1+$K$2))+2*G109,"")) ->  | AQ109: =IF(AO109=0,(F109*(1+$K$2)),"") ->  | BA109: =IF(I109="Sb",K109,"") -> 
X141: =IF((I141="Bp")*(K141>=100),K141*$D$4*(1+$K$2),"") ->  | Y141: =IF(I141="Bp",K141*(1+$K$2),"") ->  | Z141: =IF(I141="Ap",K141*$F$2,IF(I141="Bp",K141*$F$2*(1+$K$2),"")) ->  | AA141: =IF(I141="Ap",K141*$H$3*(1+$K$2),IF(I141="Bp",K141*$H$3*(1+$K$2),"")) ->  | AB141: =IF((I141="Bp")*(K141<5),K141*$F$4*$H$4*(1+$K$2),"") ->  | AC141: =IF((I141="Bp")*(K141>=5)*(K141<100),K141*$F$4*$H$4*(1+$K$2),"") ->  | AD141: =IF((I141="Bp")*(K141>=100),K141*$F$4*$H$4*(1+$K$2),"") ->  | AE141: =IF((I141="Ap")*(K141<5),K141*$F$5*$H$4*(1+$K$2),"") ->  | AF141: =IF((I141="Ap")*(K141>=5)*(K141<100),K141*$F$5*$H$4*(1+$K$2),"") ->  | AG141: =IF((I141="Ap")*(K141>=100),K141*$F$5*$H$4*(1+$K$2),"") ->  | AH141: =IF((I141="St"),(K141*$H$2/1000)*$H$5*(1+$K$2),"") ->  | AI141: =IF((I141="RF"),K141*$F$3*(1+$K$2),"") ->  | AJ141: =IF($I141="EB",(F141*(1+$K$2)),"") ->  | AK141: =IF($I141="EB",(AJ141*0.3)*$H$3*(1+$K$2),"") ->  | AL141: =IF($I141="EB",(AJ141*0.2*0.1)*$H$4*(1+$K$2),"") ->  | AM141: =IF(I141="CsT",G141+((F141/5)*G141),IF(I141="CsL",F141,"")) ->  | AN141: =IF(I141="CsB",(2*F141+((F141/4)*G141)),"") ->  | AO141: =IF(I141="Gf",G141,"") ->  | AP141: =IF(I141="Ap",2*(F141*(1+$K$2))+2*G141,IF(I141="Bp",2*(F141*(1+$K$2))+2*G141,"")) ->  | AQ141: =IF(AO141=0,(F141*(1+$K$2)),"") ->  | BA141: =IF(I141="Sb",K141,"") -> 
L142: =IF(I142="Ap",J142,IF(I142="Bp",J142,"")) ->  | M142: =IF((I142="Ap")*(K142<10),$D$3*K142*(1+$K$2),IF((I142="Bp")*(K142<10),$D$3*K142*(1+$K$2),"")) ->  | N142: =IF((I142="Ap")*(K142>=10)*(K142<50),$D$3*K142*(1+$K$2),IF((I142="Bp")*(K142>=10)*(K142<50),$D$3*K142*(1+$K$2),"")) ->  | O142: =IF((I142="Ap")*(K142>=50)*(K142<100),$D$3*K142*(1+$K$2),IF((I142="Bp")*(K142>=50)*(K142<100),$D$3*K142*(1+$K$2),"")) ->  | U142: =IF((I142="Bp")*(K142<10),K142*$D$4*(1+$K$2),"") ->  | V142: =IF((I142="Bp")*(K142>=10)*(K142<50),K142*$D$4*(1+$K$2),"") ->  | W142: =IF((I142="Bp")*(K142>=50)*(K142<100),K142*$D$4*(1+$K$2),"") ->  | AR142: =IF(AND(AO142>0,AO142<=0.2),(F142*(1+$K$2)*AR$11),"") ->  | AS142: =IF(AND(AO142>0.2,AO142<=0.5),(F142*(1+$K$2)*AS$11),"") ->  | AT142: =IF(AND(AO142>0.5,AO142<=1),(F142*(1+$K$2)*AT$11),"") ->  | AU142: =IF(AND(AO142>1,AO142<=1.5),(F142*(1+$K$2)*AU$11),"") ->  | AV142: =IF(AND(AO142>1.5,AO142<=2),(F142*(1+$K$2)*AV$11),"") ->  | AW142: =IF(AND(AO142>2,AO142<=2.5),(F142*(1+$K$2)*AW$11),"") ->  | AX142: =IF(AND(AO142>2.5,AO142<=3),(F142*(1+$K$2)*AX$11),"") ->  | AY142: =IF(AND(AO142>3,AO142<=3.5),(F142*(1+$K$2)*AY$11),"") ->  | AZ142: =IF(AND(AO142>3.5,AO142<=4),(F142*(1+$K$2)*AZ$11),"") -> 
P143: =IF((I143="Ap")*(K143>100),$D$3*K143*(1+$K$2),IF((I143="Bp")*(K143>100),$D$3*K143*(1+$K$2),"")) -> 
K170: TOTAL | L170: =SUM(L13:L168) -> 0 | M170: 0 | N170: 0 | O170: 0 | P170: 0 | Q170: 0 | R170: 0 | S170: 0 | T170: 0 | U170: 0 | V170: 0 | W170: 0 | X170: 0 | Y170: 0 | Z170: 0 | AA170: 0 | AB170: 0 | AC170: 0 | AD170: 0 | AE170: 0 | AF170: 0 | AG170: 0 | AH170: 0 | AI170: 0 | AJ170: 0 | AK170: 0 | AL170: 0 | AM170: 0 | AN170: 0 | AO170: 0 | AP170: 0 | AQ170: 0 | AR170: 0 | AS170: 0 | AT170: 0 | AU170: 0 | AV170: 0 | AW170: 0 | AX170: 0 | AY170: 0 | AZ170: 0 | BA170: 0
AO173: check | AP173: m^2 | AQ173: =AQ170*0.2 -> 0 | AR173: =AR170*0.5 -> 0 | AS173: =AS170*1 -> 0 | AT173: =AT170*1.5 -> 0 | AU173: =AU170*2 -> 0 | AV173: =AV170*2.5 -> 0 | AW173: =AW170*3 -> 0 | AX173: =AX170*3.5 -> 0 | AY173: =AY170*4 -> 0 | AZ173: =AZ170*7 -> 0
J174: SURFACED ROAD LENGTH (km) | K174: SURFACED ROAD AREA | L174: Base Patching | N174: Surface Patching | U174: Rut Fill Slurry | X174: Edge Break Repairs | AA174: Repair | AB174: Coverage | AP174: Total Gf m2 | AQ174: =SUM(AR170:AZ170) -> 0
L175: area | M175: % | N175: Area | O175: % | U175: Area | V175: % | X175: length | Y175: % | Z175: % | AA175: =L174 -> Base Patching | AB175: =M176 -> 0.00% | AP175: total m^2 | AQ175: =SUM(AQ173:AZ173) -> 0
I176: Total | J176: 8.6 | K176: 73,112.70 | L176: =SUMIF($I13:$I168,"BP",$K13:$K168) -> 0 | M176: =L176/K176 -> 0.00% | N176: =SUMIF($I13:$I168,"AP",$K13:$K168) -> 0 | O176: =N176/K176 -> 0.00% | U176: =SUMIF($I13:$I168,"RF",$K13:$K168) -> 0 | V176: =U176/K176 -> 0.00% | X176: =SUMIF($I13:$I168,"EB",$F13:$F168) -> 0 | Y176: =X176/(J176*1000) -> 0.00% | Z176: =#REF!/(K176) ->  | AA176: =N174 -> Surface Patching | AB176: =O176 -> 0.00%
K177: OLD | L177: None | M177: None | N177: None | O177: None | U177: None | V177: None | X177: None | Y177: None | Z177: None | AA177: =U174 -> Rut Fill Slurry | AB177: =V176 -> 0.00%
AA178: =X174 -> Edge Break Repairs | AB178: =Y176 -> 0.00%
AA179: =#REF! ->  | AB179: =#REF! -> 
A180: ETB start
A181: 1 | L181: =IF(I181="Ap",J181*$D$2,IF(I181="Bp",J181*$D$2,"")) ->  | M181: =IF((I181="Ap")*(K181<5),$D$3*K181*(1+$K$2),IF((I181="Bp")*(K181<5),$D$3*K181*(1+$K$2),"")) ->  | N181: =IF((I181="Ap")*(K181>=5)*(K181<100),$D$3*K181*(1+$K$2),IF((I181="Bp")*(K181>=5)*(K181<100),$D$3*K181*(1+$K$2),"")) ->  | O181: =IF((I181="Ap")*(K181>=100),$D$3*K181*(1+$K$2),IF((I181="Bp")*(K181>=100),$D$3*K181*(1+$K$2),"")) ->  | U181: =IF((I181="Bp")*(K181<5),K181*$D$4*(1+$K$2),"") ->  | V181: =IF((I181="Bp")*(K181>=5)*(K181<100),K181*$D$4*(1+$K$2),"") ->  | X181: =IF((I181="Bp")*(K181>=100),K181*$D$4*(1+$K$2),"") ->  | Y181: =IF(I181="Bp",K181*(1+$K$2),"") ->  | Z181: =IF(I181="Ap",K181*$F$2,IF(I181="Bp",K181*$F$2*(1+$K$2),"")) ->  | AA181: =IF(I181="Ap",K181*$H$3*(1+$K$2),IF(I181="Bp",K181*$H$3*(1+$K$2),"")) ->  | AB181: =IF((I181="Bp")*(K181<5),K181*$F$4*$H$4*(1+$K$2),"") ->  | AC181: =IF((I181="Bp")*(K181>=5)*(K181<100),K181*$F$4*$H$4*(1+$K$2),"") ->  | AD181: =IF((I181="Bp")*(K181>=100),K181*$F$4*$H$4*(1+$K$2),"") ->  | AE181: =IF((I181="Ap")*(K181<5),K181*$F$5*$H$4*(1+$K$2),"") ->  | AF181: =IF((I181="Ap")*(K181>=5)*(K181<100),K181*$F$5*$H$4*(1+$K$2),"") ->  | AG181: =IF((I181="Ap")*(K181>=100),K181*$F$5*$H$4*(1+$K$2),"") ->  | AH181: =IF((I181="St"),(K181*$H$2/1000)*$H$5*(1+$K$2),"") ->  | AI181: =IF((I181="RF"),K181*$F$3*$H$5*(1+$K$2),"") ->  | AJ181: =IF($I181="EB",(F181*(1+$K$2)),"") ->  | AK181: =IF($I181="EB",(AJ181*0.3)*$H$3*(1+$K$2),"") ->  | AL181: =IF($I181="EB",(AJ181*0.2*0.1)*$H$4*(1+$K$2),"") ->  | AM181: =IF(I181="CsT",G181+((F181/5)*G181),IF(I181="CsL",F181,"")) ->  | AN181: =IF(I181="CsB",(2*F181+((F181/4)*G181)),"") ->  | AO181: =IF(I181="Gf",G181,"") ->  | AP181: =IF(I181="Ap",2*(F181*(1+$K$2))+2*G181,IF(I181="Bp",2*(F181*(1+$K$2))+2*G181,"")) ->  | AQ181: =IF(AO181=0,(F181*(1+$K$2)),"") ->  | AR181: =IF(AND(AO181>0,AO181<=0.2),(F181*(1+$K$2)),"") ->  | AS181: =IF(AND(AO181>0.2,AO181<=0.5),(F181*(1+$K$2)),"") ->  | AT181: =IF(AND(AO181>0.5,AO181<=1),(F181*(1+$K$2)),"") ->  | AU181: =IF(AND(AO181>1,AO181<=1.5),(F181*(1+$K$2)),"") ->  | AV181: =IF(AND(AO181>1.5,AO181<=2),(F181*(1+$K$2)),"") ->  | AW181: =IF(AND(AO181>2,AO181<=2.5),(F181*(1+$K$2)),"") ->  | AX181: =IF(AND(AO181>2.5,AO181<=3),(F181*(1+$K$2)),"") ->  | AY181: =IF(AND(AO181>3,AO181<=3.5),(F181*(1+$K$2)),"") ->  | AZ181: =IF(AND(AO181>3.5,AO181<=4),(F181*(1+$K$2)),"") ->  | BA181: =IF(I181="Sb",K181,"") -> 
A182: 3
A183: 2 | L183: =IF(I183="Ap",J183*$D$2,IF(I183="Bp",J183*$D$2,"")) ->  | M183: =IF((I183="Ap")*(K183<5),$D$3*K183*(1+$K$2),IF((I183="Bp")*(K183<5),$D$3*K183*(1+$K$2),"")) ->  | N183: =IF((I183="Ap")*(K183>=5)*(K183<100),$D$3*K183*(1+$K$2),IF((I183="Bp")*(K183>=5)*(K183<100),$D$3*K183*(1+$K$2),"")) ->  | O183: =IF((I183="Ap")*(K183>=100),$D$3*K183*(1+$K$2),IF((I183="Bp")*(K183>=100),$D$3*K183*(1+$K$2),"")) ->  | U183: =IF((I183="Bp")*(K183<5),K183*$D$4*(1+$K$2),"") ->  | V183: =IF((I183="Bp")*(K183>=5)*(K183<100),K183*$D$4*(1+$K$2),"") ->  | X183: =IF((I183="Bp")*(K183>=100),K183*$D$4*(1+$K$2),"") ->  | Y183: =IF(I183="Bp",K183*(1+$K$2),"") ->  | Z183: =IF(I183="Ap",K183*$F$2,IF(I183="Bp",K183*$F$2*(1+$K$2),"")) ->  | AA183: =IF(I183="Ap",K183*$H$3*(1+$K$2),IF(I183="Bp",K183*$H$3*(1+$K$2),"")) ->  | AB183: =IF((I183="Bp")*(K183<5),K183*$F$4*$H$4*(1+$K$2),"") ->  | AC183: =IF((I183="Bp")*(K183>=5)*(K183<100),K183*$F$4*$H$4*(1+$K$2),"") ->  | AD183: =IF((I183="Bp")*(K183>=100),K183*$F$4*$H$4*(1+$K$2),"") ->  | AE183: =IF((I183="Ap")*(K183<5),K183*$F$5*$H$4*(1+$K$2),"") ->  | AF183: =IF((I183="Ap")*(K183>=5)*(K183<100),K183*$F$5*$H$4*(1+$K$2),"") ->  | AG183: =IF((I183="Ap")*(K183>=100),K183*$F$5*$H$4*(1+$K$2),"") ->  | AH183: =IF((I183="St"),(K183*$H$2/1000)*$H$5*(1+$K$2),"") ->  | AI183: =IF((I183="RF"),K183*$F$3*$H$5*(1+$K$2),"") ->  | AJ183: =IF($I183="EB",(F183*(1+$K$2)),"") ->  | AK183: =IF($I183="EB",(AJ183*0.3)*$H$3*(1+$K$2),"") ->  | AL183: =IF($I183="EB",(AJ183*0.2*0.1)*$H$4*(1+$K$2),"") ->  | AM183: =IF(I183="CsT",G183+((F183/5)*G183),IF(I183="CsL",F183,"")) ->  | AN183: =IF(I183="CsB",(2*F183+((F183/4)*G183)),"") ->  | AO183: =IF(I183="Gf",G183,"") ->  | AP183: =IF(I183="Ap",2*(F183*(1+$K$2))+2*G183,IF(I183="Bp",2*(F183*(1+$K$2))+2*G183,"")) ->  | AQ183: =IF(AO183=0,(F183*(1+$K$2)),"") ->  | AR183: =IF(AND(AO183>0,AO183<=0.2),(F183*(1+$K$2)),"") ->  | AS183: =IF(AND(AO183>0.2,AO183<=0.5),(F183*(1+$K$2)),"") ->  | AT183: =IF(AND(AO183>0.5,AO183<=1),(F183*(1+$K$2)),"") ->  | AU183: =IF(AND(AO183>1,AO183<=1.5),(F183*(1+$K$2)),"") ->  | AV183: =IF(AND(AO183>1.5,AO183<=2),(F183*(1+$K$2)),"") ->  | AW183: =IF(AND(AO183>2,AO183<=2.5),(F183*(1+$K$2)),"") ->  | AX183: =IF(AND(AO183>2.5,AO183<=3),(F183*(1+$K$2)),"") ->  | AY183: =IF(AND(AO183>3,AO183<=3.5),(F183*(1+$K$2)),"") ->  | AZ183: =IF(AND(AO183>3.5,AO183<=4),(F183*(1+$K$2)),"") ->  | BA183: =IF(I183="Sb",K183,"") -> 
A184: 2 | L184: =IF(I184="Ap",J184*$D$2,IF(I184="Bp",J184*$D$2,"")) ->  | M184: =IF((I184="Ap")*(K184<5),$D$3*K184*(1+$K$2),IF((I184="Bp")*(K184<5),$D$3*K184*(1+$K$2),"")) ->  | N184: =IF((I184="Ap")*(K184>=5)*(K184<100),$D$3*K184*(1+$K$2),IF((I184="Bp")*(K184>=5)*(K184<100),$D$3*K184*(1+$K$2),"")) ->  | O184: =IF((I184="Ap")*(K184>=100),$D$3*K184*(1+$K$2),IF((I184="Bp")*(K184>=100),$D$3*K184*(1+$K$2),"")) ->  | U184: =IF((I184="Bp")*(K184<5),K184*$D$4*(1+$K$2),"") ->  | V184: =IF((I184="Bp")*(K184>=5)*(K184<100),K184*$D$4*(1+$K$2),"") ->  | X184: =IF((I184="Bp")*(K184>=100),K184*$D$4*(1+$K$2),"") ->  | Y184: =IF(I184="Bp",K184*(1+$K$2),"") ->  | Z184: =IF(I184="Ap",K184*$F$2,IF(I184="Bp",K184*$F$2*(1+$K$2),"")) ->  | AA184: =IF(I184="Ap",K184*$H$3*(1+$K$2),IF(I184="Bp",K184*$H$3*(1+$K$2),"")) ->  | AB184: =IF((I184="Bp")*(K184<5),K184*$F$4*$H$4*(1+$K$2),"") ->  | AC184: =IF((I184="Bp")*(K184>=5)*(K184<100),K184*$F$4*$H$4*(1+$K$2),"") ->  | AD184: =IF((I184="Bp")*(K184>=100),K184*$F$4*$H$4*(1+$K$2),"") ->  | AE184: =IF((I184="Ap")*(K184<5),K184*$F$5*$H$4*(1+$K$2),"") ->  | AF184: =IF((I184="Ap")*(K184>=5)*(K184<100),K184*$F$5*$H$4*(1+$K$2),"") ->  | AG184: =IF((I184="Ap")*(K184>=100),K184*$F$5*$H$4*(1+$K$2),"") ->  | AH184: =IF((I184="St"),(K184*$H$2/1000)*$H$5*(1+$K$2),"") ->  | AI184: =IF((I184="RF"),K184*$F$3*$H$5*(1+$K$2),"") ->  | AJ184: =IF($I184="EB",(F184*(1+$K$2)),"") ->  | AK184: =IF($I184="EB",(AJ184*0.3)*$H$3*(1+$K$2),"") ->  | AL184: =IF($I184="EB",(AJ184*0.2*0.1)*$H$4*(1+$K$2),"") ->  | AM184: =IF(I184="CsT",G184+((F184/5)*G184),IF(I184="CsL",F184,"")) ->  | AN184: =IF(I184="CsB",(2*F184+((F184/4)*G184)),"") ->  | AO184: =IF(I184="Gf",G184,"") ->  | AP184: =IF(I184="Ap",2*(F184*(1+$K$2))+2*G184,IF(I184="Bp",2*(F184*(1+$K$2))+2*G184,"")) ->  | AQ184: =IF(AO184=0,(F184*(1+$K$2)),"") ->  | AR184: =IF(AND(AO184>0,AO184<=0.2),(F184*(1+$K$2)),"") ->  | AS184: =IF(AND(AO184>0.2,AO184<=0.5),(F184*(1+$K$2)),"") ->  | AT184: =IF(AND(AO184>0.5,AO184<=1),(F184*(1+$K$2)),"") ->  | AU184: =IF(AND(AO184>1,AO184<=1.5),(F184*(1+$K$2)),"") ->  | AV184: =IF(AND(AO184>1.5,AO184<=2),(F184*(1+$K$2)),"") ->  | AW184: =IF(AND(AO184>2,AO184<=2.5),(F184*(1+$K$2)),"") ->  | AX184: =IF(AND(AO184>2.5,AO184<=3),(F184*(1+$K$2)),"") ->  | AY184: =IF(AND(AO184>3,AO184<=3.5),(F184*(1+$K$2)),"") ->  | AZ184: =IF(AND(AO184>3.5,AO184<=4),(F184*(1+$K$2)),"") ->  | BA184: =IF(I184="Sb",K184,"") -> 
A185: 3 | L185: =IF(I185="Ap",J185*$D$2,IF(I185="Bp",J185*$D$2,"")) ->  | M185: =IF((I185="Ap")*(K185<5),$D$3*K185*(1+$K$2),IF((I185="Bp")*(K185<5),$D$3*K185*(1+$K$2),"")) ->  | N185: =IF((I185="Ap")*(K185>=5)*(K185<100),$D$3*K185*(1+$K$2),IF((I185="Bp")*(K185>=5)*(K185<100),$D$3*K185*(1+$K$2),"")) ->  | O185: =IF((I185="Ap")*(K185>=100),$D$3*K185*(1+$K$2),IF((I185="Bp")*(K185>=100),$D$3*K185*(1+$K$2),"")) ->  | U185: =IF((I185="Bp")*(K185<5),K185*$D$4*(1+$K$2),"") ->  | V185: =IF((I185="Bp")*(K185>=5)*(K185<100),K185*$D$4*(1+$K$2),"") ->  | X185: =IF((I185="Bp")*(K185>=100),K185*$D$4*(1+$K$2),"") ->  | Y185: =IF(I185="Bp",K185*(1+$K$2),"") ->  | Z185: =IF(I185="Ap",K185*$F$2,IF(I185="Bp",K185*$F$2*(1+$K$2),"")) ->  | AA185: =IF(I185="Ap",K185*$H$3*(1+$K$2),IF(I185="Bp",K185*$H$3*(1+$K$2),"")) ->  | AB185: =IF((I185="Bp")*(K185<5),K185*$F$4*$H$4*(1+$K$2),"") ->  | AC185: =IF((I185="Bp")*(K185>=5)*(K185<100),K185*$F$4*$H$4*(1+$K$2),"") ->  | AD185: =IF((I185="Bp")*(K185>=100),K185*$F$4*$H$4*(1+$K$2),"") ->  | AE185: =IF((I185="Ap")*(K185<5),K185*$F$5*$H$4*(1+$K$2),"") ->  | AF185: =IF((I185="Ap")*(K185>=5)*(K185<100),K185*$F$5*$H$4*(1+$K$2),"") ->  | AG185: =IF((I185="Ap")*(K185>=100),K185*$F$5*$H$4*(1+$K$2),"") ->  | AH185: =IF((I185="St"),(K185*$H$2/1000)*$H$5*(1+$K$2),"") ->  | AI185: =IF((I185="RF"),K185*$F$3*$H$5*(1+$K$2),"") ->  | AJ185: =IF($I185="EB",(F185*(1+$K$2)),"") ->  | AK185: =IF($I185="EB",(AJ185*0.3)*$H$3*(1+$K$2),"") ->  | AL185: =IF($I185="EB",(AJ185*0.2*0.1)*$H$4*(1+$K$2),"") ->  | AM185: =IF(I185="CsT",G185+((F185/5)*G185),IF(I185="CsL",F185,"")) ->  | AN185: =IF(I185="CsB",(2*F185+((F185/4)*G185)),"") ->  | AO185: =IF(I185="Gf",G185,"") ->  | AP185: =IF(I185="Ap",2*(F185*(1+$K$2))+2*G185,IF(I185="Bp",2*(F185*(1+$K$2))+2*G185,"")) ->  | AQ185: =IF(AO185=0,(F185*(1+$K$2)),"") ->  | AR185: =IF(AND(AO185>0,AO185<=0.2),(F185*(1+$K$2)),"") ->  | AS185: =IF(AND(AO185>0.2,AO185<=0.5),(F185*(1+$K$2)),"") ->  | AT185: =IF(AND(AO185>0.5,AO185<=1),(F185*(1+$K$2)),"") ->  | AU185: =IF(AND(AO185>1,AO185<=1.5),(F185*(1+$K$2)),"") ->  | AV185: =IF(AND(AO185>1.5,AO185<=2),(F185*(1+$K$2)),"") ->  | AW185: =IF(AND(AO185>2,AO185<=2.5),(F185*(1+$K$2)),"") ->  | AX185: =IF(AND(AO185>2.5,AO185<=3),(F185*(1+$K$2)),"") ->  | AY185: =IF(AND(AO185>3,AO185<=3.5),(F185*(1+$K$2)),"") ->  | AZ185: =IF(AND(AO185>3.5,AO185<=4),(F185*(1+$K$2)),"") ->  | BA185: =IF(I185="Sb",K185,"") -> 
J187: With town section | K187: =SUM(K181:K185) -> 0.00
I188: CIR for rehabb | J188: SUM CIR only | K188: =SUM(K182:K185) -> 0.00
B189: CIR option 1 | C189: BTB on C4
B190: CIR option 2 | C190: ETB insitu only
A193: MILL and Replace Full Asphalt WC
A214: Removed
A226: BP in section 1 to 3 will receive BTB not ETB
K252: TOTAL | L252: =SUM(L227:L250) -> 0 | M252: =SUM(M227:M250) -> 0.0 | N252: 0 | O252: 0 | U252: 0 | V252: 0 | X252: 0 | Y252: 0 | Z252: 0 | AA252: 0 | AB252: 0 | AC252: 0 | AD252: 0 | AE252: 0 | AF252: 0 | AG252: 0 | AH252: 0 | AI252: 0 | AJ252: 0 | AK252: 0 | AL252: 0 | AM252: 0 | AN252: 0 | AO252: 0 | AP252: 0 | AQ252: 0 | AR252: 0 | AS252: 0 | AT252: 0 | AU252: 0 | AV252: 0 | AW252: 0 | AX252: 0 | AY252: 0 | AZ252: 0 | BA252: 0
A261: EB removed and combined
C262: LHS , RHS | D262: Edge Break | F262: 200.00 | G262: 0.50 | H262: Shoulder | I262: EB | J262: 401 | K262: 100.00
C263: LHS , RHS | D263: Edge Break | F263: 200.00 | G263: 0.50 | H263: Shoulder | I263: EB | J263: 401 | K263: 100.00
C264: LHS , RHS | D264: Edge Break | F264: 200.00 | G264: 0.50 | H264: Shoulder | I264: EB | J264: 401 | K264: 100.00
C265: LHS , RHS | D265: Edge Break | E265: >300mm | F265: 200.00 | G265: 0.50 | H265: Shoulder | I265: EB | J265: 401 | K265: 100.00
B266: 9400.000 | C266: RHS | D266: Edge Break | F266: 200.00 | G266: 0.50 | H266: Shoulder | I266: EB | J266: 401 | K266: 100.00
B267: 5530.000 | C267: LHS , RHS | D267: Edge Break | F267: 200.00 | G267: 0.50 | H267: Shoulder | I267: EB | J267: 401 | K267: 100.00
B268: 5770.000 | C268: LHS , RHS | D268: Edge Break | F268: 200.00 | G268: 0.50 | H268: Shoulder | I268: EB | J268: 401 | K268: 100.00
B269: 5970.000 | C269: LHS , RHS | D269: Edge Break | F269: 200.00 | G269: 0.60 | H269: Shoulder | I269: EB | J269: 401.2 | K269: 120.00
B270: 6140.000 | C270: LHS | D270: Edge Break | F270: 200.00 | G270: 0.50 | H270: Shoulder | I270: EB | J270: 401 | K270: 100.00
B271: 6330.000 | C271: RHS | D271: Edge Break | F271: 200.00 | G271: 0.50 | H271: Shoulder | I271: EB | J271: 401 | K271: 100.00
B272: 6520.000 | C272: RHS | D272: Edge Break | F272: 200.00 | G272: 0.50 | H272: Shoulder | I272: EB | J272: 401 | K272: 100.00
C273: LHS , RHS | D273: Edge Break | F273: 200.00 | G273: 0.50 | H273: Shoulder | I273: EB | J273: 401 | K273: 100.00
B274: 6870.000 | C274: LHS , RHS | D274: Edge Break | E274: >300mm | F274: 200.00 | G274: 0.50 | H274: Shoulder | I274: EB | J274: 401 | K274: 100.00
C275: LHS , RHS | D275: Edge Break | E275: >300mm | F275: 200.00 | G275: 0.50 | H275: Shoulder | I275: EB | J275: 401 | K275: 100.00
B276: 6970.000 | C276: LHS , RHS | D276: Edge Break | F276: 200.00 | G276: 6.50 | H276: Inner wheel track | I276: EB | J276: 413 | K276: 1300.00
B277: 7250.000 | C277: LHS , RHS | D277: Edge Break | E277: >300mm | F277: 200.00 | G277: 0.50 | H277: Shoulder | I277: EB | J277: 401 | K277: 100.00
C278: 0.000 | D278: Edge Break | E278: >300mm | F278: 200.00 | G278: 0.50 | H278: Shoulder | I278: EB | J278: 401 | K278: 100.00
B279: 7850.000 | C279: RHS | D279: Edge Break | E279: >300mm | F279: 200.00 | G279: 0.50 | H279: Shoulder | I279: EB | J279: 401 | K279: 100.00
B280: 7860.000 | C280: LHS | D280: Edge Break | E280: >300mm | F280: 200.00 | G280: 0.50 | H280: Shoulder | I280: EB | J280: 401 | K280: 100.00
B281: 8020.000 | C281: LHS , RHS | D281: Edge Break | E281: >300mm | F281: 200.00 | G281: 0.50 | H281: Shoulder | I281: EB | J281: 401 | K281: 100.00
B282: 8120.000 | C282: RHS | D282: Edge Break | E282: >300mm | F282: 200.00 | G282: 0.50 | H282: Inner wheel track | I282: EB | J282: 401 | K282: 100.00
B283: 9770.000 | C283: RHS | D283: Edge Break | F283: 200.00 | G283: 0.50 | H283: 0.00 | I283: EB | J283: 401 | K283: 100.00
B284: 10640.000 | C284: RHS | D284: Edge Break | F284: 200.00 | G284: 0.50 | H284: Shoulder | I284: EB | J284: 401 | K284: 100.00
B285: 10890.000 | C285: RHS | D285: Edge Break | F285: 200.00 | G285: 0.50 | H285: Shoulder | I285: EB | J285: 401 | K285: 100.00
B286: 11020.000 | C286: 0.000 | D286: Edge Break | F286: 200.00 | G286: 0.50 | H286: Shoulder | I286: EB | J286: 401 | K286: 100.00
B287: 11220.000 | C287: RHS | D287: Edge Break | F287: 200.00 | G287: 0.50 | H287: 0.00 | I287: EB | J287: 401 | K287: 100.00
B288: 11400.000 | C288: RHS | D288: Edge Break | F288: 200.00 | G288: 0.50 | H288: Shoulder | I288: EB | J288: 401 | K288: 100.00
B289: 11470.000 | C289: RHS | D289: Edge Break | F289: 200.00 | G289: 0.50 | H289: Shoulder | I289: EB | J289: 401 | K289: 100.00
B290: 11680.000 | C290: LHS | D290: Edge Break | F290: 200.00 | G290: 0.50 | H290: Shoulder | I290: EB | J290: 401 | K290: 100.00
B291: 11670.000 | C291: RHS | D291: Edge Break | F291: 200.00 | G291: 0.50 | H291: Shoulder | I291: EB | J291: 401 | K291: 100.00
B292: 8890.000 | C292: RHS | D292: Edge Break | F292: 200.00 | G292: 0.30 | H292: Shoulder | I292: EB | J292: 0.6 | K292: 0.00
B293: 8930.000 | C293: RHS | D293: Edge Break | F293: 61.00 | G293: 0.40 | H293: Shoulder | I293: EB | J293: 122.8 | K293: 24.40
B294: 9140.000 | C294: LHS | D294: Edge Break | F294: 200.00 | G294: 0.50 | H294: Shoulder | I294: EB | J294: 401 | K294: 100.00
B295: 9200.000 | C295: RHS | D295: Edge Break | F295: 200.00 | G295: 0.50 | H295: Shoulder | I295: EB | J295: 4001 | K295: 1000.00
C296: RHS | D296: Edge Break | F296: 200.00 | G296: 0.50 | H296: Shoulder | I296: EB | J296: 401 | K296: 100.00
B297: 9220.000 | C297: LHS | D297: Edge Break | F297: 200.00 | G297: 0.30 | H297: Shoulder | I297: EB | J297: 400.6 | K297: 60.00
B298: 9220.000 | C298: RHS | D298: Edge Break | F298: 200.00 | G298: 0.50 | H298: Shoulder | I298: EB | J298: 401 | K298: 100.00
B299: 8270.000 | C299: RHS | D299: Edge Break | E299: >300mm | F299: 200.00 | G299: 0.50 | H299: Shoulder | I299: EB | J299: 401 | K299: 100.00
B300: 8440.000 | C300: RHS | D300: Edge Break | E300: >300mm | F300: 200.00 | G300: 0.50 | H300: Shoulder | I300: EB | J300: 401 | K300: 100.00
B301: 9570.000 | C301: RHS | D301: Edge Break | F301: 200.00 | G301: 0.50 | H301: Shoulder | I301: EB | J301: 401 | K301: 100.00
C302: RHS | D302: Edge Break | F302: 200.00 | G302: 0.50 | H302: Shoulder | I302: EB | J302: 401 | K302: 100.00
B303: 11900.000 | C303: RHS | D303: Edge Break | F303: 200.00 | G303: 0.50 | H303: Shoulder | I303: EB | J303: 401 | K303: 100.00
B304: 13830.000 | C304: RHS | D304: Edge Break | E304: >300mm | F304: 200.00 | G304: 0.60 | H304: Shoulder | I304: EB | J304: 401.2 | K304: 120.00
B305: 11950.000 | C305: LHS | D305: Edge Break | F305: 200.00 | G305: 0.00 | H305: Shoulder | I305: EB | J305: 0 | K305: 0.00
B306: 12080.000 | C306: LHS | D306: Edge Break | F306: 200.00 | G306: 0.50 | H306: Shoulder | I306: EB | J306: 401 | K306: 100.00
B307: 12090.000 | C307: RHS | D307: Edge Break | F307: 200.00 | G307: 0.50 | H307: Shoulder | I307: EB | J307: 401 | K307: 100.00
B308: 12300.000 | C308: RHS | D308: Edge Break | F308: 200.00 | G308: 0.50 | H308: 0.00 | I308: EB | J308: 401 | K308: 100.00
B309: 12500.000 | C309: RHS | D309: Edge Break | F309: 200.00 | G309: 0.50 | H309: Shoulder | I309: EB | J309: 401 | K309: 100.00
B310: 12750.000 | C310: LHS | D310: Edge Break | F310: 200.00 | G310: 0.50 | H310: Shoulder | I310: EB | J310: 401 | K310: 100.00
B311: 12900.000 | C311: RHS | D311: Edge Break | F311: 200.00 | G311: 0.50 | H311: Shoulder | I311: EB | J311: 401 | K311: 100.00
B312: 13070.000 | C312: LHS | D312: Edge Break | F312: 200.00 | G312: 0.50 | H312: Shoulder | I312: EB | J312: 401 | K312: 100.00
B313: 13070.000 | C313: RHS | D313: Edge Break | F313: 200.00 | G313: 0.50 | H313: Shoulder | I313: EB | J313: 401 | K313: 100.00
B314: 14050.000 | C314: RHS | D314: Edge Break | E314: >300mm | F314: 50.00 | G314: 0.50 | H314: Shoulder | I314: EB | J314: 101 | K314: 25.00
B315: 14340.000 | C315: LHS , RHS | D315: Edge Break | E315: >300mm | F315: 200.00 | G315: 0.50 | H315: Shoulder | I315: EB | J315: 401 | K315: 100.00
B316: 14580.000 | C316: LHS , RHS | D316: Edge Break | E316: >300mm | F316: 200.00 | G316: 0.50 | H316: Shoulder | I316: EB | J316: 401 | K316: 100.00
B317: 13270.000 | C317: LHS , Centre line | D317: Edge Break | E317: 50-300mm | F317: 200.00 | G317: 0.50 | H317: Shoulder | I317: EB | J317: 401 | K317: 100.00
B318: 13480.000 | C318: RHS | D318: Edge Break | E318: >300mm | F318: 200.00 | G318: 0.50 | H318: Shoulder | I318: EB | J318: 401 | K318: 100.00

Sheet C8.8_Patching&Edge Break (hidden)
A1: C8.8 | E1: PATCHING AND EDGE BREAK REPAIR
A2: ITEM | D2: DESCRIPTION | E2: UNIT | F2: QTY | G2: RATE | H2: AMT | I2: Note to compiler: Items requiring additional information to be provided by compiler is marked in this column by X.
A5: C8.8.1 | D5: Saw cutting pavement layers for patching
B6: C8.8.1.1 | D6: Asphalt or bituminous surfacing to an average depth
C7: (a) | D7: Not exceeding 50mm | E7: metre (m) | G7: R65.00 | H7: =F7*G7 -> 0
C8: (b) | D8: Exceeding 50mm but not exceeding 100mm | E8: metre (m) | G8: R65.00 | H8: =F8*G8 -> 0
C9: (c) | D9: Exceeding 100mm | E9: metre (m) | G9: R65.00 | H9: =F9*G9 -> 0
B10: C8.8.1.2 | D10: Cemented pavement layers to an average depth
C11: (a) | D11: Not exceeding 100mm | E11: metre (m) | H11: =F11*G11 -> 0
C12: (b) | D12: Exceeding 100mm but not exceeding 200mm | E12: metre (m) | H12: =F12*G12 -> 0
C13: (c) | D13: Exceeding 200mm | E13: metre (m) | H13: =F13*G13 -> 0
B14: C8.8.1.3 | D14: Granular layers to an average depth
C15: (a) | D15: Not exceeding 100mm | E15: metre (m) | H15: =F15*G15 -> 0
C16: (b) | D16: Not exceeding 200mm | E16: metre (m) | H16: =F16*G16 -> 0
C17: (c) | D17: Exceeding 200mm | E17: metre (m) | H17: =F17*G17 -> 0
A18: C8.8.2 | D18: Excavation in existing pavements for patching (non-milling)
B19: C8.8.2.1 | D19: Asphalt layers
C20: (a) | D20: Not exceeding 10 m² including for edge repairs wider than 250mm | E20: cubic metre (m3) | G20: R300.00 | H20: =F20*G20 -> 0
C21: (b) | D21: Exceeding 10 m² but not exceeding 50 m² including for edge repairs wider than 250mm | E21: cubic metre (m3) | G21: R300.00 | H21: =F21*G21 -> 0
C22: (c) | D22: Exceeding 50 m² up to 100 m² including for edge repairs wider than 250mm | E22: cubic metre (m3) | G22: R300.00 | H22: =F22*G22 -> 0
C23: (d) | D23: Exceeding 100 m² | E23: cubic metre (m3) | G23: R300.00 | H23: =F23*G23 -> 0
B24: C8.8.2.2 | D24: Cemented layers
C25: (a) | D25: Not exceeding 10 m² including for edge repairs wider than 250mm | E25: cubic metre (m3) | H25: =F25*G25 -> 0
C26: (b) | D26: Exceeding 10 m² but not exceeding 50 m² including for edge repairs wider than 250mm | E26: cubic metre (m3) | H26: =F26*G26 -> 0
C27: (c) | D27: Exceeding 50 m² up to 100 m² including for edge repairs wider than 250mm | E27: cubic metre (m3) | H27: =F27*G27 -> 0
C28: (d) | D28: Exceeding 100 m² | E28: cubic metre (m3) | H28: =F28*G28 -> 0
B29: C8.8.2.3 | D29: Other layers (Granular base layer) | I29: X
C30: (a) | D30: Not exceeding 10 m² including for edge repairs wider than 250mm | E30: cubic metre (m3) | H30: =F30*G30 -> 0
C31: (b) | D31: Exceeding 10 m² but not exceeding 50 m² including for edge repairs wider than 250mm | E31: cubic metre (m3) | H31: =F31*G31 -> 0
C32: (c) | D32: Exceeding 50 m² up to 100 m² including for edge repairs wider than 250mm | E32: cubic metre (m3) | H32: =F32*G32 -> 0
C33: (d) | D33: Exceeding 100 m² | E33: cubic metre (m3) | H33: =F33*G33 -> 0
A34: C8.8.3 | D34: Compacting the floor of excavations for patching (95% MDD) | E34: square metre (m2) | G34: R50.00 | H34: =F34*G34 -> 0 | I34: X
A35: C8.8.4 | D35: Backfilling of excavations for patching with:
B36: C8.8.4.1 | D36: Chemically stabilized pavement material (existing base material and 2% cement placed as 150mm subbbase compacted to 97% of modified AASHTO density ), for a patch with a surface area: | I36: X
C37: (a) | D37: Not exceeding 10 m² including for edge repairs wider than 250mm | E37: cubic metre (m3) | G37: R780.00 | H37: =F37*G37 -> 0
C38: (b) | D38: Exceeding 10 m² but not exceeding 50 m² including for edge repairs wider than 250mm | E38: cubic metre (m3) | G38: R780.00 | H38: =F38*G38 -> 0
C39: (c) | D39: Exceeding 50 m² up to 100 m² including for edge repairs wider than 250mm | E39: cubic metre (m3) | G39: R780.00 | H39: =F39*G39 -> 0
C40: (d) | D40: Exceeding 100 m² | E40: cubic metre (m3) | G40: R780.00 | H40: =F40*G40 -> 0
B41: C8.8.4.2 | D41: Base material (commercial G2) stabilized with bitumen emulsion (1.5% net bitumen) and 1.0% cement, compacted to 102% of MDD (layer thickness 200mm) for a patch with a surface area: | I41: X
C42: (a) | D42: Not exceeding 10 m² including for edge repairs wider than 250mm | E42: cubic metre (m3) | G42: R2,350.00 | H42: =F42*G42 -> 0
C43: (b) | D43: Exceeding 10 m² but not exceeding 50 m² including for edge repairs wider than 250mm | E43: cubic metre (m3) | G43: R2,350.00 | H43: =F43*G43 -> 0
C44: (c) | D44: Exceeding 50 m² up to 100 m² including for edge repairs wider than 250mm | E44: cubic metre (m3) | G44: R2,350.00 | H44: =F44*G44 -> 0
C45: (d) | D45: Exceeding 100 m² | E45: cubic metre (m3) | G45: R2,350.00 | H45: =F45*G45 -> 0
B46: C8.8.4.3 | D46: ='C9.1_Asphalt layer'!D19 -> Stone skeletal mix – continuously graded as defined (120mm thickness, PG64H-16(PMB) grade binder, 25mm maximum size aggregate and design mix level II) | I46: X
C47: (a) | D47: Not exceeding 10 m² including for edge repairs wider than 250mm | E47: ton (t) | G47: R2,550.00 | H47: =F47*G47 -> 0
C48: (b) | D48: Exceeding 10 m² but not exceeding 50 m² including for edge repairs wider than 250mm | E48: ton (t) | G48: R2,550.00 | H48: =F48*G48 -> 0
C49: (c) | D49: Exceeding 50 m² up to 100 m² including for edge repairs wider than 250mm | E49: ton (t) | G49: R2,550.00 | H49: =F49*G49 -> 0
C50: (d) | D50: Exceeding 100 m² | E50: ton (t) | G50: R2,550.00 | H50: =F50*G50 -> 0
B51: C8.8.4.4 | D51: Granular base material (state type and density) for a patch with a surface area | I51: X
C52: (a) | D52: Not exceeding 10 m² including for edge repairs wider than 250mm | E52: ton (t) | H52: =F52*G52 -> 0
C53: (b) | D53: Exceeding 10 m² but not exceeding 50 m² including for edge repairs wider than 250mm | E53: ton (t) | H53: =F53*G53 -> 0
C54: (c) | D54: Exceeding 50 m² up to 100 m² including for edge repairs wider than 250mm | E54: ton (t) | H54: =F54*G54 -> 0
C55: (d) | D55: Exceeding 100 m² | E55: ton (t) | H55: =F55*G55 -> 0
A56: C8.8.5 | D56: Geosynthetic patching
B57: C8.8.5.1 | D57: Sealing joints with geosynthetic strips (200mm wide polypropolene non-woven) | E57: metre (m) | G57: R22.00 | H57: =F57*G57 -> 0 | I57: X
A58: C8.8.6 | D58: Repairing edge breaks in surfacing
B59: C8.8.6.1 | D59: Cutting back the edges of the existing surfacing for the repairing of edge breaks | E59: metre (m) | G59: R50.00 | H59: =F59*G59 -> 0 | I59: Only though townn. Outside of town will be recycling and surfacing
B60: C8.8.6.2 | D60: Prime coat (invert bitumen emulsion applied at 0.8ℓ/m2) | E60: litre (ℓ) | G60: R22.00 | H60: =F60*G60 -> 0 | I60: X
B61: C8.8.6.3 | D61: Reconstructing edges using:
C62: (a) | D62: Continuously-graded hot asphalt (Sand skeletal continuously graded hot mix asphalt, NMPS 10mm, level I mix design) | E62: ton (t) | G62: R3,600.00 | H62: =F62*G62 -> 0 | I62: X | J62: Either do this with asphalt or recycle and surface
C63: (b) | D63: Continuously-graded cold asphalt (Agrèment SA certified - state class and density) | E63: ton (t) | H63: =F63*G63 -> 0 | I63: X
C64: (c) | D64: Bitumen Stabilised Material (state type and level of compaction) | E64: cubic metre (m3) | H64: =F64*G64 -> 0 | I64: X
A68: TOTAL CARRIED FORWARD TO SUMMARY | H68: =SUM(H5:H67) -> 0

Sheet C8.9 (hidden)
A1: C8.9 | D1: REPAIR OF SURFACE DEFECTS
A2: ITEM | C2: DESCRIPTION | D2: UNIT | E2: QTY | F2: RATE | G2: AMT | H2: Note to compiler: Items requiring additional information to be provided by compiler is marked in this column by X.
A5: C8.9.1 | C5: Heating of the road surface
B6: C8.9.1.1 | C6: Establishing of heating apparatus on site for softening of the road surface | D6: lump sum | E6: 1 | G6: =E6*F6 -> 0
B7: C8.9.1.2 | C7: Heating of road surface | G7: =E7*F7 -> 0
A8: C8.9.2 | C8: Aggregate for treatment of bleeding sections
B9: C8.9.2.1 | C9: Heated aggregate (state size) | D9: cubic metre (m3) | G9: =E9*F9 -> 0 | H9: X
B10: C8.9.2.2 | C10: Precoating of aggregate (state type and application litre/m3) | D10: cubic metre (m3) | G10: =E10*F10 -> 0 | H10: X
A11: C8.9.3 | C11: Application and rolling in of heated aggregate | D11: square metre (m2) | G11: =E11*F11 -> 0
A12: C8.9.4 | C12: Trial sections for heating, application and rolling in of heated aggregate | D12: square metre (m2) | G12: =E12*F12 -> 0
A13: C8.9.5 | C13: Water cutting
B14: C8.9.5.1 | C14: Establishing of water cutting equipment on site | D14: lump sum | F14: R22,666.67 | G14: =E14*F14 -> 0
B15: C8.9.5.2 | C15: Water cutting of the road surface | D15: square metre (m2) | F15: R15.00 | G15: =E15*F15 -> 0
A16: C8.9.6 | C16: Trial sections for water cutting | D16: square metre (m2) | F16: R18.33 | G16: =E16*F16 -> 0
A20: TOTAL CARRIED FORWARD TO SUMMARY | G20: =SUM(G5:G19) -> 0

Sheet C10.1_Surface Treatments (hidden)
A1: C10.1 | E1: GENERAL REQUIREMENTS FOR SURFACE TREATMENTS
A2: ITEM | D2: DESCRIPTION | E2: UNIT | F2: QTY | G2: RATE | H2: AMT | I2: Note to compiler: Items requiring additional information to be provided by compiler is marked in this column by X.
A5: C10.1.1 | D5: Single seals including a cover spray, if specified (indicate grade of aggregate and type of binder): | I5: X
B6: C10.1.1.1 | D6: Using 5,0mm aggregate | E6: square metre (m2) | H6: =F6*G6 -> 0
B7: C10.1.1.2 | D7: Using 7,1mm aggregate | E7: square metre (m2) | G7: R57.00 | H7: =F7*G7 -> 0 | I7: Armour seal for large section base patch
B8: C10.1.1.3 | D8: Using 10mm aggregate | E8: square metre (m2) | H8: 0 | I8: Armour seal for large section base patch
B9: C10.1.1.4 | D9: Using 14mm aggregate | E9: square metre (m2) | H9: =F9*G9 -> 0
B10: C10.1.1.5 | D10: Using 20mm aggregate | E10: square metre (m2) | H10: =F10*G10 -> 0
A11: C10.1.2 | D11: Single seals including a cover spray, if specified (indicate grade of aggregate and type of binder) spreading the aggregate by (state: walk behind spreader or by hand): | I11: X
B12: C10.1.2.1 | D12: Using 5,0mm aggregate | E12: square metre (m2) | H12: =F12*G12 -> 0
B13: C10.1.2.2 | D13: Using 7,1mm aggregate | E13: square metre (m2) | H13: =F13*G13 -> 0
B14: C10.1.2.3 | D14: Using 10mm aggregate | E14: square metre (m2) | H14: =F14*G14 -> 0
B15: C10.1.2.4 | D15: Using 14mm aggregate | E15: square metre (m2) | H15: =F15*G15 -> 0
B16: C10.1.2.5 | D16: Using 20mm aggregate | E16: square metre (m2) | H16: =F16*G16 -> 0
A17: C10.1.3 | D17: Multiple stone seals including a cover spray, if specified using:
B18: C10.1.3.1 | D18: 20mm and 10mm aggregate (state grade of aggregate and type of binder to be used for each layer) | E18: square metre (m2) | H18: =F18*G18 -> 0 | I18: X
B19: C10.1.3.2 | D19: 20mm and 7,1mm Grade 1 aggregate (hot applied type S-E1 second coat, cover spray of 65% cationic spray-grade emulsion diluted with 40% water) | E19: square metre (m2) | H19: =F19*G19 -> 0 | I19: X
B20: C10.1.3.3 | D20: 14mm and 7,1mm aggregate (state grade of aggregate and type of binder to be used for each layer) | E20: square metre (m2) | H20: =F20*G20 -> 0 | I20: X
B21: C10.1.3.4 | D21: 14mm and 5,0mm aggregate (state grade of aggregate and type of binder to be used for each layer) | E21: square metre (m2) | H21: 0 | I21: X
B22: C10.1.3.5 | D22: 20 mm/7,1mm double seal with a split application of 7,1 mm aggregate (Grade B aggregate, S-R1 binder for tack coat, S-E1 binder for penetration coat, diluted 65% cationic emulsion as cover spray) | E22: square metre (m2) | G22: R142.00 | H22: 0 | I22: X
A23: C10.1.4 | D23: Embargo period effects | H23: 0
B24: C10.1.4.1 | D24: Re-establishment of sealing team after embargo period | E24: lump sum | F24: lump | G24: sum
B25: C10.1.4.2 | D25: Extra-over for sealing during the specified embargo period (state seal type, binder for each layer) | E25: square metre (m2) | H25: 0 | I25: X
A26: C10.1.5 | D26: Sand or Grit seals using: | H26: 0
B27: C10.1.5.1 | D27: Sand seal (state grades of aggregate and types of binders to be used) | E27: square metre (m2) | H27: 0 | I27: X
B28: C10.1.5.2 | D28: Grit seal (state grades of aggregate and types of binders to be used) | E28: square metre (m2) | H28: 0 | I28: X
A29: C10.1.6 | D29: Sand or Grit seals using (state: walk behind spreader or by hand): | H29: 0 | I29: X
B30: C10.1.6.1 | D30: Sand seal (state grades of aggregate and types of binders to be used) | E30: square metre (m2) | H30: 0 | I30: X
B31: C10.1.6.2 | D31: Grit seal (state grades of aggregate and types of binders to be used) | E31: square metre (m2) | H31: 0 | I31: X
A32: C10.1.7 | D32: Graded aggregate (Otta) seals using: | H32: 0
B33: C10.1.7.1 | D33: Single minus 20mm aggregate (state grades of aggregate and types of binders to be used) | E33: square metre (m2) | H33: 0 | I33: X
B34: C10.1.7.2 | D34: Single minus 14mm aggregate (state grades of aggregate and types of binders to be used) | E34: square metre (m2) | H34: 0 | I34: X
B35: C10.1.7.3 | D35: Single minus 10mm aggregate (state grades of aggregate and types of binders to be used) | E35: square metre (m2) | H35: 0 | I35: X
B36: C10.1.7.4 | D36: Extra over for sand seal (state grades of aggregate and types of binders to be used) | E36: square metre (m2) | H36: 0 | I36: X
A37: C10.1.8 | D37: Graded aggregate (Otta) seals, with aggregate applied by hand, using: | H37: 0
B38: C10.1.8.1 | D38: Single minus 20mm aggregate (state grades of aggregate and types of binders to be used) | E38: square metre (m2) | H38: 0 | I38: X
B39: C10.1.8.2 | D39: Single minus 14mm aggregate (state grades of aggregate and types of binders to be used) | E39: square metre (m2) | H39: 0 | I39: X
B40: C10.1.8.3 | D40: Single minus 10mm aggregate (state grades of aggregate and types of binders to be used) | E40: square metre (m2) | H40: 0 | I40: X
B41: C10.1.8.4 | D41: Extra over for sand seal (state grades of aggregate and types of binders to be used) | E41: square metre (m2) | H41: 0 | I41: X
A42: C10.1.9 | D42: Bituminous binder variations: | H42: 0
B43: C10.1.9.1 | D43: 70/100 Penetration grade bitumen | E43: litre (ℓ) | H43: 0
B44: C10.1.9.2 | D44: 60% Stable-grade emulsion | E44: litre (ℓ) | H44: 0
B45: C10.1.9.3 | D45: Cationic Stable grade emulsion (indicate bitumen content) | E45: litre (ℓ) | H45: 0 | I45: X
B46: C10.1.9.4 | D46: Cationic Spray-grade emulsion (indicate bitumen content) | E46: litre (ℓ) | H46: 0 | I46: X
B47: C10.1.9.5 | D47: Homogeneous modified binder (indicate type and bitumen content) cold applied | E47: litre (ℓ) | F47: =ROUNDUP(((F22)*(1.1))*10/100,-1)+F7*0.1 -> 0 | G47: R15.70 | H47: 0 | I47: X
B48: C10.1.9.6 | D48: Non-homogeneous modified binder (class S-R1) | E48: litre (ℓ) | F48: =ROUNDUP(((F22)*(1.9))*10/100,-1) -> 0 | G48: R13.30 | H48: 0 | I48: X
B49: C10.1.9.7 | D49: Homogeneous modified binder (indicate type) hot applied | E49: litre (ℓ) | H49: 0 | I49: X
B50: C10.1.9.8 | D50: Homogeneous modified binder S-E1 with 4,5% MC30 | E50: litre (ℓ) | H50: 0
B51: C10.1.9.9 | D51: Homogeneous modified binder S-E1 with 9% MC30 | E51: litre (ℓ) | H51: 0
B52: C10.1.9.10 | D52: MC-3000 cut-back bitumen | E52: litre (ℓ) | H52: 0
B53: C10.1.9.11 | D53: Precoating fluid (state type) | E53: litre (ℓ) | F53: =ROUNDUP(((Q133*12)+(Q135*22))*10/100,-1) -> 0 | G53: R11.80 | H53: 0 | I53: X
A54: C10.1.10 | D54: Aggregate variation (state grade): | H54: 0 | I54: X
B55: C10.1.10.1 | D55: 5mm aggregate | E55: cubic metre (m3) | H55: 0
B56: C10.1.10.2 | D56: 7,1mm aggregate | E56: cubic metre (m3) | F56: =ROUNDUP(((F22+F7/2)/150)*10/100,-1) -> 0 | G56: R744.00 | H56: 0
B57: C10.1.10.3 | D57: 10mm aggregate | E57: cubic metre (m3) | F57: =ROUNDUP(((F7)/175)*10/100,-1) -> 0 | G57: R744.00 | H57: 0
B58: C10.1.10.4 | D58: 14mm aggregate | E58: cubic metre (m3) | H58: 0
B59: C10.1.10.5 | D59: 20mm aggregate | E59: cubic metre (m3) | F59: =ROUNDUP(((F22)/60)*10/100,-1) -> 0 | G59: R744.00 | H59: 0
B60: C10.1.10.6 | D60: Sand | E60: cubic metre (m3) | H60: 0
B61: C10.1.10.7 | D61: Grit | E61: cubic metre (m3) | H61: 0
A62: C10.1.11 | D62: Application of cover spray: | H62: 0
B63: C10.1.11.1 | D63: 60% Anionic Stable-grade emulsion | E63: litre (ℓ) | H63: 0
B64: C10.1.11.2 | D64: 60% Diluted Anionic stable-grade emulsion (indicate dilution in % emulsion/% water) | E64: litre (ℓ) | H64: 0 | I64: X
B65: C10.1.11.3 | D65: Diluted Cationic spray-grade emulsion (indicate % bitumen and dilution in % emulsion/% water) | E65: litre (ℓ) | H65: 0 | I65: X
B66: C10.1.11.4 | D66: Diluted SC-E1 (indicate % bitumen and dilution in % emulsion/% water) | E66: litre (ℓ) | H66: 0 | I66: X
A67: C10.1.12 | D67: Application of cover spray by hand: | H67: 0
B68: C10.1.12.1 | D68: 60% Anionic Stable-grade emulsion | E68: litre (ℓ) | H68: 0
B69: C10.1.12.2 | D69: 60% Diluted Anionic Stable-grade emulsion (indicate dilution in % emulsion/% water) | E69: litre (ℓ) | H69: 0 | I69: X
B70: C10.1.12.3 | D70: Diluted Cationic Spray-grade emulsion (indicate % bitumen and dilution in % emulsion/% water) | E70: litre (ℓ) | H70: 0 | I70: X
B71: C10.1.12.4 | D71: Diluted SC-E1 (indicate % bitumen and dilution in % emulsion/% water) | E71: litre (ℓ) | H71: 0 | I71: X
A72: C10.1.13 | D72: Precoating of aggregate using a dedicated plant | H72: 0
B73: C10.1.13.1 | D73: Product containing low flashpoint solvent (indicate precoating fluid) | E73: litre (ℓ) | H73: 0 | I73: X
B74: C10.1.13.2 | D74: Product containing no low flashpoint solvent (indicate precoating fluid) | E74: litre (ℓ) | H74: 0 | I74: X
A75: C10.1.14 | D75: Precoating of aggregate using a frontend loader
B76: C10.1.14.1 | D76: Product containing low flashpoint solvent (diluted stable grade bitumen emulsion (60/40)) | E76: litre (ℓ) | H76: =F76*G76 -> 0 | I76: X
B77: C10.1.14.2 | D77: Product containing no low flashpoint solvent (indicate precoating fluid) | E77: litre (ℓ) | H77: =F77*G77 -> 0 | I77: X
A78: C10.1.15 | D78: Precoating of aggregate by hand
B79: C10.1.15.1 | D79: Product containing low flashpoint solvent (indicate precoating fluid) | E79: litre (ℓ) | H79: =F79*G79 -> 0 | I79: X
B80: C10.1.15.2 | D80: Product containing no low flashpoint solvent (indicate precoating fluid) | E80: litre (ℓ) | H80: =F80*G80 -> 0 | I80: X
A81: C10.1.16 | D81: Addition of wetting agent:
B82: C10.1.16.1 | D82: Providing and supplying | E82: prime cost (PC) sum | F82: Prime | G82: Cost
B83: C10.1.16.2 | D83: Handling, applying, profit and all other costs | E83: percentage of prime-cost sum | F83: =H82 -> 0 | H83: =F83*G83 -> 0
A84: C10.1.17 | D84: Aggregate for blinding:
B85: C10.1.17.1 | D85: Natural sand | E85: cubic metre (m3) | H85: =F85*G85 -> 0
B86: C10.1.17.2 | D86: Crusher sand | E86: cubic metre (m3) | G86: R788.00 | H86: =F86*G86 -> 0
A87: C10.1.18 | D87: Aggregate for blinding by hand:
B88: C10.1.18.1 | D88: Natural sand | E88: cubic metre (m3) | H88: =F88*G88 -> 0
B89: C10.1.18.2 | D89: Crusher sand | E89: cubic metre (m3) | H89: =F89*G89 -> 0
A90: C10.1.19 | D90: Extra over item for work in areas inaccessible to mechanical equipment:
B91: C10.1.19.1 | D91: Single seals | E91: square metre (m2) | H91: =F91*G91 -> 0
B92: C10.1.19.2 | D92: Multiple stone seals | E92: square metre (m2) | H92: 0
B93: C10.1.19.3 | D93: Cape seals with one layer of slurry | E93: square metre (m2) | H93: 0
B94: C10.1.19.4 | D94: Cape seals with two layers of slurry | E94: square metre (m2) | H94: 0
B95: C10.1.19.5 | D95: Graded aggregate seals | E95: square metre (m2) | H95: 0
B96: C10.1.19.6 | D96: Sand and Grit seals | E96: square metre (m2) | H96: 0
B97: C10.1.19.7 | D97: Conventional slurry | E97: square metre (m2) | H97: 0
B98: C10.1.19.8 | D98: Microsurfacing | E98: square metre (m2) | H98: 0
B99: C10.1.19.9 | D99: Adding Grit or slurry to single seals on areas subjected to traffic turning and breaking actions or localised cold areas:
C100: (a) | D100: Application of diluted emulsion (state type, % bitumen and dilution) | E100: litre (ℓ) | H100: =F100*G100 -> 0 | I100: X
C101: (b) | D101: Applying Grit | E101: cubic metre (m3) | H101: =F101*G101 -> 0
C102: (c) | D102: Applying Texture slurry | E102: cubic metre (m3) | H102: =F102*G102 -> 0
A103: C10.1.20 | D103: Supply and application of geosynthetic membrane:
B104: C10.1.20.1 | D104: Supply and application of geosynthetic membrane (polypropolene non-woven) | E104: square metre (m2) | H104: =F104*G104 -> 0 | I104: X
A105: C10.1.21 | D105: Slurry and microsurfacing:
B106: C10.1.21.1 | D106: Conventional slurry (indicate type and grade of binder and grade of aggregate) | E106: cubic metre (m3) | H106: =F106*G106 -> 0 | I106: X
B107: C10.1.21.2 | D107: Microsurfacing (indicate type and grade of binder and grade of aggregate) | E107: cubic metre (m3) | F107: =ROUNDUP((F7)*0.0015*1.9,0) -> 0 | G107: R4,700.00 | H107: =F107*G107 -> 0 | I107: X
A108: C10.1.22 | D108: Bituminous single seal and slurry, including a cover spray if specified:
B109: C10.1.22.1 | D109: Bituminous single seal with 20mm aggregate and first slurry (indicate type of tack coat and cover spray binder and grade of aggregate) | E109: square metre (m2) | H109: =F109*G109 -> 0 | I109: X
B110: C10.1.22.2 | D110: Bituminous single seal with 14mm aggregate and slurry (indicate type of tack coat and cover spray binder, grade of aggregate and grade of slurry) | E110: square metre (m2) | H110: =F110*G110 -> 0 | I110: X
B111: C10.1.22.3 | D111: Bituminous single seal with 10mm aggregate and slurry (indicate type of tack coat and cover spray binder, grade of aggregate and grade of slurry) | E111: square metre (m2) | H111: =F111*G111 -> 0 | I111: X
B112: C10.1.22.4 | D112: Extra over C10.1.22.1 for application of second slurry (state grade of slurry) | E112: square metre (m2) | H112: =F112*G112 -> 0 | I112: X
A113: C10.1.23 | D113: Slurry-bound macadam seal:
B114: C10.1.23.1 | D114: Slurry-bound macadam seal with 14mm aggregate and slurry (indicate thickness and grade of aggregate) | E114: square metre (m2) | H114: =F114*G114 -> 0 | I114: X
B115: C10.1.23.2 | D115: Slurry-bound macadam seal with 20mm aggregate and slurry (indicate thickness and grade of aggregate) | E115: square metre (m2) | H115: =F115*G115 -> 0 | I115: X
B116: C10.1.23.3 | D116: Slurry-bound macadam seal with 28mm aggregate and slurry (indicate thickness and grade of aggregate) | E116: square metre (m2) | H116: =F116*G116 -> 0 | I116: X
A117: C10.1.24 | D117: Variation in the rate of application of the fine slurry:
B118: C10.1.24.1 | D118: Fine grade | E118: cubic metre (m3) | H118: =F118*G118 -> 0
B119: C10.1.24.2 | D119: Medium grade | E119: cubic metre (m3) | H119: =F119*G119 -> 0
A120: C10.1.25 | D120: Variation in active filler content (specify active filler) | E120: ton (t) | H120: =F120*G120 -> 0 | I120: X
A121: C10.1.26 | D121: Trial sections for all seal types specified (20 mm/7,1mm double seal with a split application of 7,1 mm aggregate (Grade B aggregate, S-R1 binder for tack coat, S-E1 binder for penetration coat, diluted 65% cationic emulsion as cover spray) ) | E121: lump sum | F121: lump | G121: sum | I121: X
A122: C10.1.27 | D122: Provision of Performance Guarantee in respect of the Surfacing | E122: lump sum | F122: lump | G122: sum
A123: C10.1.28 | D123: Surfacing (state type and binders) | E123: square metre (m2) | H123: =F123*G123 -> 0 | I123: X
A127: TOTAL CARRIED FORWARD TO SUMMARY | H127: =SUM(H5:H126) -> 0
N131: B45.05 | O131: Precoating of aggregate (Colkote S or similar approved) at a rate as specified in Table B4302/14:
O133: (a) 20,0mm | P133: m³ | Q133: =ROUNDUP((F22)/70,-1) -> 0
O134: 10mm
O135: (b) 7mm | P135: m³ | Q135: =ROUNDUP((F22+F7)/140,-1) -> 0

Sheet C11.1 (hidden)
A1: C11.1 | E1: PITCHING, STONEWORK, CAST IN SITU CONCRETE FOR PROTECTION AGAINST EROSION
A2: ITEM | D2: DESCRIPTION | E2: UNIT | F2: QTY | G2: RATE | H2: AMT | I2: Note to compiler: Items requiring additional information to be provided by compiler is marked in this column by X.
A5: C11.1.1 | D5: Foundation trenches for stone masonry walls
B6: C11.1.1.1 | D6: Excavating foundation trenches in soft material using labour enhanced construction methods 0m to 1,0m depth | E6: cubic metre (m3) | H6: =F6*G6 -> 0
B7: C11.1.1.2 | D7: Excavating foundation trenches in intermediate material using labour enhanced construction methods 0 m to 1,0m depth | E7: cubic metre (m3) | H7: =F7*G7 -> 0
A8: C11.1.2 | D8: Stone pitching
B9: C11.1.2.1 | D9: Plain stone pitching
C10: (a) | D10: Method 1 | E10: square metre (m2) | H10: =F10*G10 -> 0
C11: (b) | D11: Method 2 | E11: square metre (m2) | H11: =F11*G11 -> 0
B12: C11.1.2.2 | D12: Grouted stone pitching with mortar | E12: square metre (m2) | H12: =F12*G12 -> 0
B13: C11.1.2.3 | D13: Grouted stone pitching on a concrete bed | E13: square metre (m2) | H13: =F13*G13 -> 0
A14: C11.1.3 | D14: Riprap
B15: C11.1.3.1 | D15: Packed riprap (“critical mass of stone” and thickness indicated) | E15: cubic metre (m3) | H15: =F15*G15 -> 0 | I15: X
B16: C11.1.3.2 | D16: Extra over item C11.1.3.1 for constructing packed riprap using labour enhanced construction methods (maximum size of stone shall be 0,03 m3 or a maximum mass of 30 kg) | E16: cubic metre (m3) | H16: =F16*G16 -> 0 | I16: X
B17: C11.1.3.3 | D17: Dumped riprap (critical mass of stone and thickness indicated) | E17: cubic metre (m3) | H17: =F17*G17 -> 0 | I17: X
B18: C11.1.3.4 | D18: Filter layer consisting of:
C19: (a) | D19: Crushed stone | E19: cubic metre (m3) | H19: =F19*G19 -> 0
C20: (b) | D20: Filter sand | E20: cubic metre (m3) | H20: =F20*G20 -> 0
C21: (c) | D21: Geotextile (type, class and grade stated) | E21: square metre (m2) | H21: =F21*G21 -> 0 | I21: X
A22: C11.1.4 | D22: Stone masonry walls:
B23: C11.1.4.1 | D23: Plain packed stone walls | E23: cubic metre (m3) | H23: =F23*G23 -> 0
B24: C11.1.4.2 | D24: Cement-mortared stone walls | E24: cubic metre (m3) | H24: =F24*G24 -> 0
B25: C11.1.4.3 | D25: Extra over items C11.1.4.1 and C11.1.4.2 for procuring stone from commercial sources | E25: cubic metre (m3) | H25: =F25*G25 -> 0
A26: C11.1.5 | D26: Concrete pitching or paving
B27: C11.1.5.1 | D27: Cast in situ concrete pitching or paving (class of concrete and thickness of pitching or paving indicated) | E27: square metre (m2) | H27: =F27*G27 -> 0 | I27: X
B28: C11.1.5.2 | D28: Prefabricated concrete grass blocks (type and thickness indicated) | E28: square metre (m2) | H28: =F28*G28 -> 0 | I28: X
B29: C11.1.5.3 | D29: Welded steel fabric used for cast in situ pitching or paving (type indicated) | E29: kilogram (kg) | H29: =F29*G29 -> 0 | I29: X
A30: C11.1.6 | D30: Concrete edge beams (class of concrete indicated) | E30: cubic metre (m3) | H30: =F30*G30 -> 0 | I30: X
A31: C11.1.7 | D31: Provision of approved herbicide and ant poison:
B32: C11.1.7.1 | D32: Provision of materials | E32: prime cost (PC) sum | F32: Prime | G32: Cost
B33: C11.1.7.2 | D33: Contractor’s charges and profit added to the prime cost sum | E33: percentage (%) | F33: =H32 -> 0 | H33: =F33*G33 -> 0
A37: TOTAL CARRIED FORWARD TO SUMMARY | H37: =SUM(H5:H36) -> 0

Sheet C9.1_Asphalt layer (hidden)
A1: C9.1 | E1: ASPHALT LAYERS
A2: ITEM | D2: DESCRIPTION | E2: UNIT | F2: QTY | G2: RATE | H2: AMT | I2: Note to compiler: Items requiring additional information to be provided by compiler is marked in this column by X.
A5: C9.1.1 | D5: Asphalt mix designs
B6: C9.1.1.1 | D6: Stone skeletal mixes:
C7: (a) | D7: ='C8.8_Patching&Edge Break'!D46 -> Stone skeletal mix – continuously graded as defined (120mm thickness, PG64H-16(PMB) grade binder, 25mm maximum size aggregate and design mix level II) | E7: lump sum | F7: lump | G7: sum
C8: (b) | D8: ='C8.8_Patching&Edge Break'!D62 -> Continuously-graded hot asphalt (Sand skeletal continuously graded hot mix asphalt, NMPS 10mm, level I mix design) | E8: lump sum | F8: lump | G8: sum
C9: (c) | D9: =D43 -> Stone skeletal mix – continuously graded as defined (120mm thickness, PG64H-16(PMB) grade binder, 25mm maximum size aggregate and design mix level II) | E9: lump sum | F9: lump | G9: sum
C10: (d) | D10: =D63 -> Stone skeletal mix – continuously graded as defined (80mm thickness, PG64H-16(PMB) grade binder, 20mm maximum size aggregate and design mix level II) | E10: lump sum | F10: lump | G10: sum
C11: (b) | D11: High modulus asphalt (EME) (state binder type and level of design) | E11: lump sum | F11: lump | G11: sum | I11: X
C12: (c) | D12: Stone Mastic Asphalt (SMA) (state binder type) | E12: lump sum | F12: lump | G12: sum | I12: X
C13: (d) | D13: Ultrathin Friction Courses (UTFC) (state binder type) | E13: lump sum | F13: lump | G13: sum | I13: X
C14: (e) | D14: Porous asphalt (state binder type) | E14: lump sum | F14: lump | G14: sum | I14: X
C15: (f) | D15: Bitumen rubber open and gap graded mixes (state mix type) | E15: lump sum | F15: lump | G15: sum | I15: X
C16: (g) | D16: Other: (as stated and defined in the Contract Documentation) | E16: lump sum | F16: lump | G16: sum | I16: X
B17: C9.1.1.2 | D17: Sand skeletal mixes:
C18: (a) | D18: Continuously graded base or surfacing (state binder type and level of design) | I18: X
D19: =D43 -> Stone skeletal mix – continuously graded as defined (120mm thickness, PG64H-16(PMB) grade binder, 25mm maximum size aggregate and design mix level II) | E19: lump sum | F19: lump | G19: sum
D20: =D63 -> Stone skeletal mix – continuously graded as defined (80mm thickness, PG64H-16(PMB) grade binder, 20mm maximum size aggregate and design mix level II) | E20: lump sum | F20: lump | G20: sum | K20: =160+45 -> 205
C22: (b) | D22: Semi-gap graded mixes (state binder type and level of design) | E22: lump sum | F22: lump | G22: sum | I22: X
C23: (c) | D23: Gap graded mixes (state binder type and level of design) | E23: lump sum | F23: lump | G23: sum | I23: X
C24: (d) | D24: Sand asphalt (state binder type and level of design) | E24: lump sum | F24: lump | G24: sum | I24: X
C25: (e) | D25: Other: (as stated and defined in the Contract Documentation) | E25: lump sum | F25: lump | G25: sum | I25: X
A26: C9.1.2 | D26: Construction of trial sections
B27: C9.1.2.1 | D27: Asphalt layers (state mix type, layer thickness and placing technique (hand/paver)) | E27: square metre (m2) | I27: X
B28: C9.1.2.2 | D28: Removal of trial section where so instructed by the Engineer | E28: square metre (m2)
A29: C9.1.3 | D29: Application of bond coat | K29: =80+120 -> 200
B30: C9.1.3.1 | D30: Stable–grade 30% net bitumen emulsion as specified. Applied with a calibrated distributer | E30: litre (ℓ) | F30: =ROUNDUP(0.6*F63,-1) -> 0 | G30: R10.00
B31: C9.1.3.2 | D31: Applied in restricted areas using a portable pressure sprayer | E31: litre (ℓ) | F31: =F30*0.05 -> 0 | G31: R13.00
B32: C9.1.3.3 | D32: Applied by hand using brushes on all exposed transverse and longitudinal construction joints | E32: litre (ℓ)
B33: C9.1.3.4 | D33: Other: (state type, such as standard, modified emulsion, “trackless”, Agrèment certified, or heated if applied for night work) | E33: litre (ℓ) | I33: X
A34: C9.1.4 | D34: Asphalt base
B35: C9.1.4.1 | D35: New Construction
C36: (a) | D36: Stone skeletal mix – continuously graded as defined (state layer thickness, binder type and design class/ level and placing technique) | E36: square metre (m2) | I36: X
C37: (b) | D37: Stone skeletal mix – High Modulus (EME) as defined (state layer thickness, binder type, design class/ level and placing technique) | E37: square metre (m2) | I37: X
C38: (c) | D38: Sand skeletal mix – continuously graded as defined (state layer thickness, binder type, design class/ level and placing technique) | E38: square metre (m2) | I38: X
C39: (d) | D39: Any of the above mix types where the use of reclaimed asphalt has been specified (indicate maximum % reclaimed asphalt or binder replacement limits) | E39: square metre (m2) | I39: X
C40: (e) | D40: Any mix certified for specific applications by an approved agency as being fit for the purpose and as specified in the Contract Documentation. | E40: square metre (m2) | I40: X
D41: In all cases state placing technique (hand/paver) | I41: X
B42: C9.1.4.2 | D42: Rehabilitation
C43: (a) | D43: Stone skeletal mix – continuously graded as defined (120mm thickness, PG64H-16(PMB) grade binder, 25mm maximum size aggregate and design mix level II) | E43: ton (t) | F43: =ROUNDUP(((Units!M3)*120/1000)*2.45,-2) -> 0 | G43: R2,400.00 | I43: X
C44: (b) | D44: Stone skeletal mix – High Modulus (EME) as defined (state layer thickness, binder type and design class/ level) | E44: ton (t) | I44: X
C45: (c) | D45: Sand skeletal mix – continuously graded as defined (90mm thickness, PG64H-16 grade binder, 20mm maximum size aggregate and design mix level II) | E45: ton (t) | I45: X
C46: (d) | D46: Any of the above mix types where the use of reclaimed asphalt has been specified (indicate maximum % reclaimed asphalt or binder replacement limits) | E46: ton (t) | I46: X
C47: (e) | D47: Certified: any mixes certified for specific applications by an approved agency as being fit for the purpose and as specified in the Contract Documentation | E47: ton (t) | I47: X
D48: In all cases state placing technique (hand/paver) | I48: X
A49: C9.1.5 | D49: Asphalt surfacing
B50: C9.1.5.1 | D50: New construction
C51: (a) | D51: Stone skeletal mix – continuously graded as defined (50mm thick, 14mm NMPS, A-P1, design mix level II) | E51: square metre (m2) | I51: X
C52: (b) | D52: Stone skeletal mix – SMA as defined (state layer thickness, binder type) | E52: square metre (m2) | I52: X
C53: (c) | D53: Stone skeletal mix - open graded as defined (state layer thickness and binder type) | E53: square metre (m2) | I53: X
C54: (d) | D54: Stone skeletal mix- gap graded as defined (state layer thickness and binder type) | E54: square metre (m2) | I54: X
C55: (e) | D55: Sand skeletal mix – continuously graded as defined (state layer thickness, binder type, design class/ level) | E55: square metre (m2) | I55: X
C56: (f) | D56: Semi gap mix – as defined (state layer thickness, binder type and design level) | E56: square metre (m2) | I56: X
C57: (g) | D57: Sand skeletal mix - gap graded mix (state layer thickness, binder type design class/level) | E57: square metre (m2) | I57: X
C58: (h) | D58: Any of the above mix types where the use of reclaimed asphalt has been specified (indicate maximum % reclaimed asphalt or binder replacement limits) | E58: square metre (m2) | I58: X
C59: (i) | D59: Certified: any mixes certified for specific applications by an approved agency as being fit for the purpose and as specified in the Contract Documentation | E59: square metre (m2) | I59: X
D60: In all cases state placing technique (hand/paver) | I60: X
B61: C9.1.5.2 | D61: Rehabilitation
C62: (a) | D62: Stone skeletal mixes: | I62: X
C63: (i) | D63: Stone skeletal mix – continuously graded as defined (80mm thickness, PG64H-16(PMB) grade binder, 20mm maximum size aggregate and design mix level II) | E63: ton (t) | F63: =ROUNDUP(((Units!M1)*80/1000)*2.45,-2) -> 0 | G63: R2,400.00
C64: (b) | D64: Stone skeletal mix – SMA as defined (state layer thickness, binder type) | E64: ton (t) | I64: X
C65: (c) | D65: Stone skeletal mix - gap graded as defined (state layer thickness and binder type) | E65: ton (t) | I65: X
C66: (d) | D66: Stone skeletal mix- open graded as defined (state layer thickness and binder type) | E66: ton (t) | I66: X
C67: (e) | D67: Sand skeletal mix – continuously graded as defined (35mm thickness, PG64H-16 grade binder, 10mm maximum size aggregate, design mix level II) | E67: ton (t) | I67: X
C68: (f) | D68: Sand skeletal mix - gap graded mix (state layer thickness, binder type design class/level) | E68: ton (t) | I68: X
C69: (g) | D69: Any of the above mix types where the use of reclaimed asphalt has been specified (indicate maximum % reclaimed asphalt or binder replacement limits) | E69: ton (t) | I69: X
C70: (h) | D70: Certified: any mixes certified for specific applications by an approved agency as being fit for the purpose and as specified in the Contract Documentation | E70: ton (t) | I70: X
D71: In all cases state placing technique (hand/paver) | I71: X
A72: C9.1.6 | D72: Extra over pay items C9.1.4.1 and C9.1.5.1 for placing small quantities of asphalt of less than 10 tons specially produced as specified in terms of Clause A9.1.7.1(d) | E72: ton (t)
A73: C9.1.7 | D73: Placing and compacting asphalt in restricted areas
B74: C9.1.7.1 | D74: Extra over payment items C9.1.4.1 and C9.1.5.1 (state layer thickness, mix class, binder type, nominal maximum particle size and placing technique (hand/paver)) | E74: square metre (m2) | I74: X
B75: C9.1.7.2 | D75: Extra over payment items C9.1.4.2 and C9.1.5.2 (state layer thickness, mix class, binder type, nominal maximum particle size and placing technique (hand/paver)) | E75: ton (t) | I75: X
A76: C9.1.8 | D76: Surfacing of bridge decks
B77: C9.1.8.1 | D77: Levelling course: Continuously graded (Paver placed) | I77: X
D78: Stone Skeleton HMA, Course Continuously graded, A-E2 binder, NMPS of 7,1mm, Level 2 Design, nominal layer thickness of 25mm, laid by paver | E78: ton (t) | G78: R2,600.00
B79: C9.1.8.2 | D79: Surfacing (Paver placed) | I79: X
D80: Stone Skeleton HMA, Course Continuously graded, A-E2 binder, NMPS of 14mm, Level 2 Design, nominal layer thickness of 45mm, laid by paver | E80: ton (t) | G80: R2,600.00
A81: C9.1.9 | D81: Application of rolled in chippings (state nominal size) | I81: X
B82: C9.1.9.1 | D82: By means of chip spreader | E82: square metre (m2)
B83: C9.1.9.2 | D83: By hand in restricted areas | E83: square metre (m2)
A84: C9.1.10 | D84: Variation rates
B85: C9.1.10.1 | D85: PG64H-16(PMB) | E85: ton (t) | G85: R11,000.00 | I85: X
B86: C9.1.10.2 | D86: Aggregate | E86: ton (t) | G86: R5,000.00
B87: C9.1.10.3 | D87: Active filler (lime unless stated in Contract Documentation) | E87: ton (t) | I87: X
B88: C9.1.10.4 | D88: Cellulose fibre (state type) | E88: ton (t) | I88: X
B89: C9.1.10.5 | D89: Rolled-in chippings | E89: ton (t)
B90: C9.1.10.6 | D90: Bituminous bond coat – net bitumen (state type) | E90: ton (t) | I90: X
A91: C9.1.11 | D91: Asphalt warm mix technology – extra over/under rate
B92: C9.1.11.1 | D92: New construction | E92: square metre (m2)
B93: C9.1.11.2 | D93: Rehabilitation | E93: ton (t)
A94: C9.1.12 | D94: Asphalt reinforcing - complete (polypropolene non-woven) | E94: square metre (m2) | G94: R80.00 | I94: X
A95: C9.1.13 | D95: Coring of asphalt layers
B96: C9.1.13.1 | D96: 100mm diameter | E96: number (No.) | G96: R370.00
B97: C9.1.13.2 | D97: 150mm diameter | E97: number (No.) | G97: R370.00
A98: C9.1.14 | D98: Surface regularity testing as described in Clause A9.1.8.4
B99: C9.1.14.1 | D99: Establishment of equipment: (specify type) Inertial laser Profilometer Other Profilometer type, e.g. ARRB Walking or Face Dipstick | E99: number (No.) | I99: X
B100: C9.1.14.2 | D100: Profiler Surveys utilising equipment as specified - Base layers and surfacing layers | E100: lane kilometre (km)
A101: C9.1.15 | D101: Milling of bridge decks and keys adjacent to bridge decks
B102: C9.1.15.1 | D102: Provision of an appropriate sized milling machine | E102: number (No.)
B103: C9.1.15.2 | D103: Milling of bridge decks and keys to bridge deck approaches | E103: cubic metre (m3)
B104: C9.1.15.3 | D104: Cleaning of milled surfaces | E104: square metre (m2)
A105: C9.1.16 | D105: Work undertaken in accordance with a Product Performance Guarantee System
B106: C9.1.16.1 | D106: Provision of a Performance Guarantee | E106: lump sum | F106: lump | G106: sum
B107: C9.1.16.2 | D107: Construction of pavement layer (indicate layer/s) | E107: square metre (m2) | I107: X
A108: PC9.1.17 | D108: Electrical works
B109: PC9.1.17.1 | D109: Electrical works done by an ACSA nominated sub contractor | E109: Provisional Sum | F109: Prov | G109: sum
B110: PC9.1.17.2 | D110: Handling costs and profit in respect of item C9.1.17.1 | E110: percentage (%) | F110: =H109 -> 0 | G110: 1%
A113: TOTAL CARRIED FORWARD TO SUMMARY | H113: =SUM(H5:H112) -> 0

Sheet Units (hidden)
L1: Asp surf | M1: =N8+N18+N29+N41+N64+N53+N75+N86+N97 -> 0 | N1: m2 | O1: =M1*0.07*2.45*2400 -> 0 | P1: =M1*0.08*2.45*2400 -> 0 | Q1: =P1-O1 -> 0
L2: Grids | M2: =N9+N19+N30+N42+N65+N54+N76+N87+N98 -> 0 | N2: m2
A3: Machada | B3: 2.00 | C3: months | L3: Asp base | M3: =(O8+O18+O29+O41+O64+O53+O75+O86+O97) -> 0 | N3: m2
A4: Ray + Wit | C4: months
A5: Mobilization | C5: months
A6: Comstruction duration Asp | B6: =M6+M16+M27+M39+M62 -> 0 | C6: months | L6: Duration
N7: Surfacing | O7: Base | P7: Joints | Q7: Import base | R7: Asphalt | S7: Grid | T7: Concrete m3 | U7: Joint | V7: Total
L8: Denel | M8: Asphalt | R8: 2400 | V8: =(N8*0.045*R8+O8*0.16*R8)*2.45 -> 0 | W8: =V8/V$120 -> 
A9: Total surfaced area | C9: m2 | M9: Asphalt grid | S9: 80 | V9: =S9*N9 -> 0 | W9: =V9/V$121 -> 
M10: Concrete | P10: 500 | T10: 4500 | U10: 20 | V10: =T10*N10+P10*U10 -> R10,000.00 | W10: =V10/V$122 -> 100%
M11: Stabilised base | W11: =V11/V$123 -> 
A12: Road length | B12: 5 | C12: km | M12: Block paving
A13: Climbing lane | C13: km
V14: =SUM(V8:V13) -> R10,000.00 | W14: =V14/V$126 -> 100%
A16: Asphalt | L16: Duration | O16: =(N18*0.04+0.16*O18)*2.45 -> 0
A17: Surface Area | C17: m2 | N17: Surfacing | O17: Base | P17: Joints | Q17: Import base | R17: Asphalt | S17: Grid | T17: Concrete m3 | U17: Joint | V17: Total
A18: Base Area | C18: m2 | L18: Echo pushback | M18: Asphalt | R18: 2400 | V18: =(N18*0.045*R18+O18*0.16*R18)*2.45 -> 0 | W18: =V18/V$120 -> 
M19: Asphalt grid | S19: 80 | V19: =S19*N19 -> 0 | W19: =V19/V$121 -> 
M20: Concrete | T20: 4500 | U20: 20 | V20: =T20*N20+P20*U20 -> 0 | W20: =V20/V$122 -> 0%
M21: Stabilised base | W21: =V21/V$123 -> 
M22: Block paving
V24: =SUM(V18:V23) -> 0 | W24: =V24/V$126 -> 0%
L27: Duration | O27: =(N29*0.04+0.16*O29)*2.45 -> 0
N28: Surfacing | O28: Base | P28: Joints | Q28: Import base | R28: Asphalt | S28: Grid | T28: Concrete m3 | U28: Joint | V28: Total
L29: Alpha | M29: Asphalt | R29: 2400 | V29: =(N29*0.045*R29+O29*0.16*R29)*2.45 -> 0 | W29: =V29/V$120 -> 
M30: Asphalt grid | S30: 80 | V30: =S30*N30 -> 0 | W30: =V30/V$121 -> 
M31: Concrete | T31: 4500 | U31: 20 | V31: =T31*N31+P31*U31 -> 0 | W31: =V31/V$122 -> 0%
M32: Stabilised base
A33: Line markings | M33: Block paving
A34: No pass | C34: Dash | D34: Solid line
A35: both (solid-dash-solid) | B35: single (dash-solid) | C35: Full length + | V35: =SUM(V29:V34) -> 0 | W35: =V35/V$126 -> 0%
A36: =0.16+0.27+0.33+0.28+0.41+0.26+0.34+0.24+0.31+0.24+0.24+0.71 -> 3.8 | B36: =0.25+0.45+0.43+0.47+0.41+0.4+0.56+0.08+0.23+0.37+0.43+0.27+0.23+0.62+0.58+0.44+0.29+0.57+0.56+0.55+0.379 -> 8.6 | C36: =0.5+0.14*2+0.26*2+0.14*2+0.12*2+0.26*2+0.14*2+0.14*2+0.26*2+0.31*2+0.16*2 -> 4.4 | D36: 0.3
A38: Stop (line and letters)
A39: 20 | L39: Duration | O39: =(N41*0.04+0.16*O41)*2.45 -> 0
N40: Surfacing | O40: Base | P40: Joints | Q40: Import base | R40: Asphalt | S40: Grid | T40: Concrete m3 | U40: Joint | V40: Total
A41: Turn arrow from dash | B41: Full arrow | L41: India | M41: Asphalt | R41: 2400 | V41: =(N41*0.045*R41+O41*0.16*R41)*2.45 -> 0 | W41: =V41/V$120 -> 
A42: =18+6+6+6+6+6+6+6+6+6+6+3+6+6+6+6+6+6+6+6+6+6+6+6+6+6+6+6 -> 177 | B42: =66+16+15+24+16+17+23+30+17+24+18+18+30+34 -> 348 | M42: Asphalt grid | S42: 80 | V42: =S42*N42 -> 0 | W42: =V42/V$121 -> 
M43: Concrete | T43: 4500 | U43: 20 | V43: =T43*N43+P43*U43 -> 0 | W43: =V43/V$122 -> 0%
A44: Yellow (km72,73) | M44: Stabilised base | W44: =V44/V$123 -> 
A45: =12*8 -> 96 | M45: Block paving
M46: Geocells
V47: =SUM(V41:V46) -> 0 | W47: =V47/V$126 -> 0%
L51: Duration | O51: =(N53*0.04+0.16*O53)*2.45 -> 0
N52: Surfacing | O52: Base | P52: Joints | Q52: Import base | R52: Asphalt | S52: Grid | T52: Concrete m3 | U52: Joint | V52: Total
L53: Service roads | M53: Asphalt | R53: 2400 | V53: =(N53*0.045*R53+O53*0.16*R53)*2.45 -> 0 | W53: =V53/V$120 -> 
M54: Asphalt grid | S54: 80 | V54: =S54*N54 -> 0 | W54: =V54/V$121 -> 
M55: Concrete | T55: 4500 | U55: 20 | V55: =T55*N55+P55*U55 -> 0 | W55: =V55/V$122 -> 0%
M56: Stabilised base | W56: =V56/V$123 -> 
M57: Block paving
M58: Geocells
V59: =SUM(V53:V58) -> 0 | W59: =V59/V$126 -> 0%
N60: 6477
L62: Duration
N63: Surfacing | O63: Base | P63: Joints | Q63: Import base | R63: Asphalt | S63: Grid | T63: Concrete m3 | U63: Joint | V63: Total | X63: m2
L64: Lima | M64: Asphalt | R64: 2400 | V64: =(N64*0.045*R64+O64*0.16*R64)*2.45 -> 0 | W64: =V64/V$120 ->  | X64: =5000000/R64/2.45/0.08 -> 10,629.25
M65: Asphalt grid | S65: 80 | V65: =S65*N65 -> 0 | W65: =V65/V$121 -> 
M66: Concrete | T66: 4500 | U66: 20 | V66: =T66*N66*0.25+P66*U66 -> 0 | W66: =V66/V$122 -> 0%
M67: Stabilised base | V67: =Q67*0.3*450 -> 0
M68: Block paving
M69: Geocells
V70: =SUM(V64:V69) -> 0 | W70: =V70/V$126 -> 0%
L73: Duration
N74: Surfacing | O74: Base | P74: Joints | Q74: Import base | R74: Asphalt | S74: Grid | T74: Concrete m3 | U74: Joint | V74: Total
L75: Quebec | M75: Asphalt | R75: 2400 | V75: =(N75*0.045*R75+O75*0.16*R75)*2.45 -> 0 | W75: =V75/V$120 -> 
M76: Asphalt grid | S76: 80 | V76: =S76*N76 -> 0 | W76: =V76/V$121 -> 
M77: Concrete | T77: 4500 | U77: 20 | V77: =T77*N77*0.25+P77*U77 -> 0 | W77: =V77/V$122 -> 0%
M78: Stabilised base | V78: =Q78*0.3*450 -> 0
M79: Block paving
M80: Geocells
V81: =SUM(V75:V80) -> 0 | W81: =V81/V$126 -> 0%
L84: Duration
N85: Surfacing | O85: Base | P85: Joints | Q85: Import base | R85: Asphalt | S85: Grid | T85: Concrete m3 | U85: Joint | V85: Total
L86: Charlie | M86: Asphalt | R86: 2400 | V86: =(N86*0.045*R86+O86*0.16*R86)*2.45 -> 0 | W86: =V86/V$120 -> 
M87: Asphalt grid | S87: 80 | V87: =S87*N87 -> 0 | W87: =V87/V$121 -> 
M88: Concrete | T88: 4500 | U88: 20 | V88: =T88*N88*0.25+P88*U88 -> 0 | W88: =V88/V$122 -> 0%
M89: Stabilised base | V89: =Q89*0.3*450 -> 0
M90: Block paving
M91: Geocells
V92: =SUM(V86:V91) -> 0 | W92: =V92/V$126 -> 0%
L95: Duration
N96: Surfacing | O96: Base | P96: Joints | Q96: Import base | R96: Asphalt | S96: Grid | T96: Concrete m3 | U96: Joint | V96: Total
L97: 03L +21R | M97: Asphalt | R97: 2400 | V97: =(N97*0.045*R97+O97*0.16*R97)*2.45 -> 0 | W97: =V97/V$120 -> 
M98: Asphalt grid | S98: 80 | V98: =S98*N98 -> 0 | W98: =V98/V$121 -> 
M99: Concrete | T99: 4500 | U99: 20 | V99: =T99*N99*0.25+P99*U99 -> 0 | W99: =V99/V$122 -> 0%
M100: Stabilised base | V100: =Q100*0.3*450 -> 0
M101: Block paving
M102: Geocells
V103: =SUM(V97:V102) -> 0 | W103: =V103/V$126 -> 0%
L110: Scope | M110: Original scope | N110: Additional scope
L111: Taxilane Lima | M111: R14,917,280.00
L112: Taxiway Quebec | M112: R2,529,994.40
L113: Taxiway Charlie | M113: R1,958,200.00
L114: Echo taxiway (Denel gate) | N114: R15,869,052.00
L115: Echo taxiway (Pushback area) | N115: R3,277,770.00 | U115: Asphalt volumes | V115: =V120/2400/2.45 -> 0
L116: Alpha taxiway | N116: R8,524,160.00
L117: India taxiway | N117: R3,462,940.00
L118: Service roads | N118: R6,542,292.80 | W118: Taxilane Lima | X118: Taxiway Quebec | Y118: Taxiway Charlie | Z118: Echo taxiway (Denel gate) | AA118: Echo taxiway (Pushback area) | AB118: Alpha taxiway | AC118: India taxiway | AD118: Service roads
L119: 03L +21R
J120: =M120-K120 -> R1,126,797.92 | K120: 18278676.48 | M120: =SUM(M111:M118) -> R19,405,474.40 | N120: =SUM(N111:N118) -> R37,676,214.80 | U120: Asphalt | V120: =V8+V18+V29+V41+V64+V53+V75+V86+V97 -> 0 | W120: =W8 ->  | X120: =W18 ->  | Y120: =W29 ->  | Z120: =W41 ->  | AA120: =W53 ->  | AB120: =W64 ->  | AC120: =W75 ->  | AD120: =W86 -> 
U121: Asphalt grid | V121: 0 | W121: =W9 ->  | X121: =W19 ->  | Y121: =W30 ->  | Z121: =W42 ->  | AA121: =W54 ->  | AB121: =W65 ->  | AC121: =W76 ->  | AD121: =W87 -> 
L122: Combined sum | M122: =M120+N120 -> R57,081,689.20 | N122: ='Summary of Pricing'!C63 -> 0 | O122: =M122-N122 -> R57,081,689.20 | U122: Concrete | V122: R10,000.00 | W122: =W10 -> 100% | X122: =W20 -> 0% | Y122: =W31 -> 0% | Z122: =W43 -> 0% | AA122: =W55 -> 0% | AB122: =W66 -> 0% | AC122: =W77 -> 0% | AD122: =W88 -> 0%
L123: P & Gs | M123: =M122*0.15 -> R8,562,253.38 | U123: Stabilised base | V123: 0
L124: Contingencies | M124: =SUM(M122:M123)*0.1 -> R6,564,394.26 | U124: Block paving | V124: 0
L125: Sum | M125: =SUM(M122:M124) -> R72,208,336.84 | U125: Geocells | V125: 0
L126: Vat | M126: =M125*0.15 -> R10,831,250.53 | V126: =V14+V24+V35+V47+V70+V59+V81+V92 -> R10,000.00 | W126: =W14 -> 100% | X126: =W24 -> 0% | Y126: =W35 -> 0% | Z126: =W47 -> 0% | AA126: =W59 -> 0% | AB126: =W70 -> 0% | AC126: =W81 -> 0% | AD126: =W92 -> 0%
L127: Final total | M127: =SUM(M125:M126) -> R83,039,587.36
L131: Scope | M131: Original scope | N131: Additional scope | O131: Change in price
L132: Taxilane Lima | M132: R22,191,039.77 | O132: =M132-M111 -> R7,273,759.77 | P132: Increased area between Lima and India
L133: Taxiway Quebec | M133: R3,568,890.19 | O133: =M133-M112 -> R1,038,895.79
L134: Taxiway Charlie | M134: R28,175,448.85 | O134: =M134-M113 -> R26,217,248.85 | P134: Increased the area to not just include failed areas
L135: Echo taxiway (Denel gate) | N135: R24,978,781.93 | O135: =N135-N114 -> R9,109,729.93 | P135: Increased area to the full required extent
L136: Echo taxiway (Pushback area) | N136: R5,286,021.70 | O136: =N136-N115 -> R2,008,251.70
L137: Alpha taxiway | N137: R12,680,594.15 | O137: =N137-N116 -> R4,156,434.15
L138: India taxiway | N138: R5,151,491.37 | O138: =N138-N117 -> R1,688,551.37
L139: Service roads | N139: R9,732,356.01 | O139: =N139-N118 -> R3,190,063.21
L140: 03L +21R | N140: R15,500,547.00
L141: Drainage | M141: ='Summary of Pricing'!C19+'Summary of Pricing'!C11+'Summary of Pricing'!C24 -> R500,000.00 | O141: =M141 -> R500,000.00 | P141: Was not originally included
M142: =SUM(M132:M141) -> R54,435,378.80 | N142: =SUM(N132:N141) -> R73,329,792.16
L144: Combined sum | M144: =M142+N142 -> R127,765,170.96
L145: Contingencies | M145: =SUM(M144)*0.15 -> R19,164,775.64
L146: Sum | M146: =SUM(M143:M145) -> R146,929,946.61
L147: Vat | M147: =M146*0.15 -> R22,039,491.99
L148: Final total | M148: =SUM(M146:M147) -> R168,969,438.60

Sheet C11.2 (hidden)
A1: C11.2 | E1: NON-STRUCTURAL GABIONS
A2: ITEM | D2: DESCRIPTION | E2: UNIT | F2: QTY | G2: RATE | H2: AMT | I2: Note to compiler: Items requiring additional information to be provided by compiler is marked in this column by X.
A5: C11.2.1 | D5: Foundation trench excavation:
B6: C11.2.1.1 | D6: Excavating all material situated within the following depth ranges below the surface level
C7: (a) | D7: 0m to 1,5m | E7: cubic metre (m3) | G7: R500.00 | H7: =F7*G7 -> 0
C8: (b) | D8: Exceeding 1,5m and up to 3,0m | E8: cubic metre (m3) | G8: R500.00 | H8: 0
C9: (c) | D9: Etc, in increments of 1,5m | E9: cubic metre (m3) | H9: 0 | I9: X
B10: C11.2.1.2 | D10: Extra over sub-item C11.2.1.1 for excavation in hard material, irrespective of depth | E10: cubic metre (m3) | G10: R500.00 | H10: 0
B11: C11.2.1.3 | D11: Excavating soft material within 1,5m below the surface level using labour enhanced construction methods | E11: cubic metre (m3) | H11: 0
B12: C11.2.1.4 | D12: Excavating intermediate material within 1,5m below the surface level using labour enhanced construction methods | E12: cubic metre (m3) | H12: 0
A13: C11.2.2 | D13: Surface preparation for bedding the gabion boxes and mattresses | E13: square metre (m2) | G13: R50.00 | H13: 0
A14: C11.2.3 | D14: Gabion boxes and mattresses:
